Workbook

Sheet Summary
B3: Operating | H3: Ratios
D4: Cost/kW | H4: Project IRR - Pre-tax
D5: Capacity Factor - P50 | H5: Project IRR - After-tax
D6: Standard Deviation as % of P50 | H6: Debt IRR - Pre-tax
D7: Levelised O&M Cost/kW-yr | H7: Debt IRR- After-tax
D8: Levelised O&M Cost/MW-hr | H8: Equity IRR
D9: LCOE Nominal
D10: LCOE Real | H10: DSCR
B12: General Debt Parameters
D13: Target DSCR
D14: Maximum Debt/Capital
B16: Debt Stucture | E16: Issue 1 | F16: Issue 2 | G16: Issue 3 | H16: Issue 4
D17: Percent of Debt
D18: Tenure
D19: Debt Life

Sheet Wind Study
A1: Wind Farm 1
B2: Production | D2: Vestas | E2: Gamesa | F2: GE | G2: Siemens
C3: Wind Farm Rated Power MW | D3: 28.8 | E3: 32 | F3: 25.6 | G3: 29.9
C4: Gross Energy Output GWh/annum | D4: 140.3 | E4: 138.2 | F4: 136.9 | G4: 136.7
C5: Wake effect | D5: 94.7 | E5: 94.5 | F5: 95.2 | G5: 95.9
C6: Availability | D6: 96.3 | E6: 96.3 | F6: 96.3 | G6: 96.3
C7: Electrical efficiency | D7: 98.4 | E7: 98.4 | F7: 98.4 | G7: 98.4
C8: Turbine performance | D8: 100 | E8: 100 | F8: 100 | G8: 100
C9: Environmental | D9: 99.5 | E9: 99.5 | F9: 99.5 | G9: 99.5
C10: Curtailment | D10: 100 | E10: 100 | F10: 100 | G10: 100
C11: Net Energy Output GWh/annum | D11: 125.3 | E11: 123.2 | F11: 122.9 | G11: 123.5
C12: Equivalent hours hours | D12: 4350 | E12: 3849 | F12: 4800 | G12: 4132
B14: Standard Deviation (uncertainty) | D14: Vestas | E14: Gamesa | F14: GE | G14: Siemens | M14: Base Std 1 | N14: 20.2
C15: In any one year period | D15: 20.2 | E15: 21.5 | F15: 17.6 | G15: 21 | M15: Base Std 2 | N15: 51
C16: In any ten year period | D16: 14.2 | E16: 15 | F16: 12.7 | G16: 14.7 | M16: Ratio | N16: =std_2a/std_1a -> 2.524752475
B18: 1 year | J18: Prob
C19: P50 | D19: ='Wind Study'!D11 -> 125.3 | E19: ='Wind Study'!E11 -> 123.2 | F19: ='Wind Study'!F11 -> 122.9 | G19: ='Wind Study'!G11 -> 123.5 | J19: 0.5
C20: P99 | D20: =_xlfn.NORM.INV($J20,D$11,D$15) -> 78.30777294 | E20: 73.18352071 | F20: 81.95627742 | G20: 74.64669465 | J20: 0.01
C21: p90 | D21: 99.41265838 | E21: 95.64664134 | F21: 100.3446924 | G21: 96.58741712 | J21: 0.1
B22: 10 year
C23: P50 | D23: ='Wind Study'!D11 -> 125.3 | E23: ='Wind Study'!E11 -> 123.2 | F23: ='Wind Study'!F11 -> 122.9 | G23: ='Wind Study'!G11 -> 123.5
C24: P99 | D24: =_xlfn.NORM.INV($J20,D$11,D$16) -> 92.26586019 | E24: 88.30478189 | F24: 93.355382 | G24: 89.30268625
C25: p90 | D25: 107.1019678 | E25: 103.9767265 | F25: 106.6242951 | G25: 104.661192
B27: Downside Case -- P99/P50 1 - year | D27: =D20/D19 -> 0.6249622741 | E27: =E20/E19 -> 0.5940220837 | F27: =F20/F19 -> 0.6668533557 | G27: =G20/G19 -> 0.6044266773
A29: Wind Farm 2
D30: Vestas | E30: Gamesa | F30: GE | G30: Siemens
C31: Wind Farm Rated Power MW | D31: 77.4 | E31: 88 | F31: 70.4 | G31: 80.5
C32: Gross Energy Output GWh/annum | D32: 370.6 | E32: 377.3 | F32: 370 | G32: 365.5
C33: Wake effect | D33: 90.7 | E33: 90 | F33: 91.6 | G33: 90.7
C34: Availability | D34: 96.3 | E34: 96.3 | F34: 96.3 | G34: 96.3
C35: Electrical efficiency | D35: 98 | E35: 98 | F35: 98 | G35: 98
C36: Turbine performance | D36: 100 | E36: 100 | F36: 100 | G36: 100
C37: Environmental | D37: 99.5 | E37: 99.5 | F37: 99.5 | G37: 99.5
C38: Curtailment | D38: 100 | E38: 100 | F38: 100 | G38: 100
C39: Net Energy Output GWh/annum | D39: 315.8 | E39: 318.8 | F39: 318.5 | G39: 311.5
C40: Equivalent hours hours | D40: 4081 | E40: 3623 | F40: 4524 | G40: 3869
C42: Standard Deviation (uncertainty) | D42: Vestas | E42: Gamesa | F42: GE | G42: Siemens
C43: In any one year period | D43: 51 | E43: 55.6 | F43: 47.4 | G43: 52.7
C44: In any ten year period | D44: 36.3 | E44: 38.8 | F44: 34.3 | G44: 37
B46: 1 year
C47: P50 | D47: ='Wind Study'!D39 -> 315.8 | E47: ='Wind Study'!E39 -> 318.8 | F47: ='Wind Study'!F39 -> 318.5 | G47: ='Wind Study'!G39 -> 311.5 | J47: 0.5
C48: P99 | D48: =_xlfn.NORM.INV($J48,D$39,D$43) -> 197.1562584 | E48: 189.4550582 | F48: 208.2311108 | G48: 188.901467 | J48: 0.01
C49: p90 | D49: 250.4408702 | E49: 247.545733 | F49: 257.7544558 | G49: 243.9622325 | J49: 0.1
B51: 10 year
C52: P50 | D52: ='Wind Study'!D39 -> 315.8 | E52: ='Wind Study'!E39 -> 318.8 | F52: ='Wind Study'!F39 -> 318.5 | G52: ='Wind Study'!G39 -> 311.5
C53: P99 | D53: =_xlfn.NORM.INV($J48,D$39,D$44) -> 231.3535722 | E53: 228.5377025 | F53: 238.7062679 | G53: 225.4251287
C54: p90 | D54: 269.2796782 | E54: 269.0757993 | F54: 274.5427813 | G54: 264.0825921
B56: Downside Case - P99 vs P50 1 Year | D56: =D48/D47 -> 0.6243073414 | E56: =E48/E47 -> 0.5942755903 | F56: =F48/F47 -> 0.653786847 | G56: =G48/G47 -> 0.6064252553

Sheet Financial Model
B1: Production | E1: Price | F1: =F57 -> 51.67817082 | H1: Equity IRR | I1: =H549 -> 0.02339372337
B2: Credit Spread | E2: Dev Fee | F2: =H259 -> 0 | H2: Project IRR | I2: =F240 -> 0.04191755354
A4: Timeline
B5: Period | I5: 1 | J5: 2 | K5: 3 | L5: 4 | M5: 5 | N5: 6 | O5: 7 | P5: 8 | Q5: 9 | R5: 10 | S5: 11 | T5: 12 | U5: 13 | V5: 14 | W5: 15 | X5: 16 | Y5: 17 | Z5: 18 | AA5: 19 | AB5: 20 | AC5: 21 | AD5: 22 | AE5: 23 | AF5: 24 | AG5: 25 | AH5: 26 | AI5: 27 | AJ5: 28 | AK5: 29 | AL5: 30 | AM5: 31 | AN5: 32 | AO5: 33 | AP5: 34 | AQ5: 35 | AR5: 36 | AS5: 37 | AT5: 38 | AU5: 39 | AV5: 40 | AW5: 41 | AX5: 42 | AY5: 43 | AZ5: 44 | BA5: 45 | BB5: 46 | BC5: 47 | BD5: 48 | BE5: 49 | BF5: 50 | BG5: 51 | BH5: 52 | BI5: 53 | BJ5: 54 | BK5: 55 | BL5: 56 | BM5: 57 | BN5: 58 | BO5: 59 | BP5: 60
B6: Construction | F6: =F19 -> 18 | I6: =I5<=$F$6 -> TRUE | J6: =J5<=$F$6 -> TRUE | K6: TRUE | L6: TRUE | M6: TRUE | N6: TRUE | O6: TRUE | P6: TRUE | Q6: TRUE | R6: TRUE | S6: TRUE | T6: TRUE | U6: TRUE | V6: TRUE | W6: TRUE | X6: TRUE | Y6: TRUE | Z6: TRUE | AA6: FALSE | AB6: FALSE | AC6: FALSE | AD6: FALSE | AE6: FALSE | AF6: FALSE | AG6: FALSE | AH6: FALSE | AI6: FALSE | AJ6: FALSE | AK6: FALSE | AL6: FALSE | AM6: FALSE | AN6: FALSE | AO6: FALSE | AP6: FALSE | AQ6: FALSE | AR6: FALSE | AS6: FALSE | AT6: FALSE | AU6: FALSE | AV6: FALSE | AW6: FALSE | AX6: FALSE | AY6: FALSE | AZ6: FALSE | BA6: FALSE | BB6: FALSE | BC6: FALSE | BD6: FALSE | BE6: FALSE | BF6: FALSE | BG6: FALSE | BH6: FALSE | BI6: FALSE | BJ6: FALSE | BK6: FALSE | BL6: FALSE | BM6: FALSE | BN6: FALSE | BO6: FALSE | BP6: FALSE
B7: Periods per Month | E7: =F15 -> 1 | F7: =F16 -> 12 | I7: =IF(I6,$E$7,$F$7) -> 1 | J7: =IF(J6,$E$7,$F$7) -> 1 | K7: 1 | L7: 1 | M7: 1 | N7: 1 | O7: 1 | P7: 1 | Q7: 1 | R7: 1 | S7: 1 | T7: 1 | U7: 1 | V7: 1 | W7: 1 | X7: 1 | Y7: 1 | Z7: 1 | AA7: 12 | AB7: 12 | AC7: 12 | AD7: 12 | AE7: 12 | AF7: 12 | AG7: 12 | AH7: 12 | AI7: 12 | AJ7: 12 | AK7: 12 | AL7: 12 | AM7: 12 | AN7: 12 | AO7: 12 | AP7: 12 | AQ7: 12 | AR7: 12 | AS7: 12 | AT7: 12 | AU7: 12 | AV7: 12 | AW7: 12 | AX7: 12 | AY7: 12 | AZ7: 12 | BA7: 12 | BB7: 12 | BC7: 12 | BD7: 12 | BE7: 12 | BF7: 12 | BG7: 12 | BH7: 12 | BI7: 12 | BJ7: 12 | BK7: 12 | BL7: 12 | BM7: 12 | BN7: 12 | BO7: 12 | BP7: 12
B8: Date: End of Period | F8: =F18 -> 2019-01-01 | I8: =F8 -> 2019-01-01 | J8: =EDATE(I8,J7) -> 2019-02-01 | K8: =EDATE(J8,K7) -> 2019-03-01 | L8: 2019-04-01 | M8: 2019-05-01 | N8: 2019-06-01 | O8: 2019-07-01 | P8: 2019-08-01 | Q8: 2019-09-01 | R8: 2019-10-01 | S8: 2019-11-01 | T8: 2019-12-01 | U8: 2020-01-01 | V8: 2020-02-01 | W8: 2020-03-01 | X8: 2020-04-01 | Y8: 2020-05-01 | Z8: 2020-06-01 | AA8: 2021-06-01 | AB8: 2022-06-01 | AC8: 2023-06-01 | AD8: 2024-06-01 | AE8: 2025-06-01 | AF8: 2026-06-01 | AG8: 2027-06-01 | AH8: 2028-06-01 | AI8: 2029-06-01 | AJ8: 2030-06-01 | AK8: 2031-06-01 | AL8: 2032-06-01 | AM8: 2033-06-01 | AN8: 2034-06-01 | AO8: 2035-06-01 | AP8: 2036-06-01 | AQ8: 2037-06-01 | AR8: 2038-06-01 | AS8: 2039-06-01 | AT8: 2040-06-01 | AU8: 2041-06-01 | AV8: 2042-06-01 | AW8: 2043-06-01 | AX8: 2044-06-01 | AY8: 2045-06-01 | AZ8: 2046-06-01 | BA8: 2047-06-01 | BB8: 2048-06-01 | BC8: 2049-06-01 | BD8: 2050-06-01 | BE8: 2051-06-01 | BF8: 2052-06-01 | BG8: 2053-06-01 | BH8: 2054-06-01 | BI8: 2055-06-01 | BJ8: 2056-06-01 | BK8: 2057-06-01 | BL8: 2058-06-01 | BM8: 2059-06-01 | BN8: 2060-06-01 | BO8: 2061-06-01 | BP8: 2062-06-01
B9: Operation | F9: =F22 -> 2050-07-01 | G9: =COUNTIF(I9:BP9,TRUE) -> 30 | I9: =AND(NOT(I6),I8<$F$9) -> FALSE | J9: =AND(NOT(J6),J8<$F$9) -> FALSE | K9: FALSE | L9: FALSE | M9: FALSE | N9: FALSE | O9: FALSE | P9: FALSE | Q9: FALSE | R9: FALSE | S9: FALSE | T9: FALSE | U9: FALSE | V9: FALSE | W9: FALSE | X9: FALSE | Y9: FALSE | Z9: FALSE | AA9: TRUE | AB9: TRUE | AC9: TRUE | AD9: TRUE | AE9: TRUE | AF9: TRUE | AG9: TRUE | AH9: TRUE | AI9: TRUE | AJ9: TRUE | AK9: TRUE | AL9: TRUE | AM9: TRUE | AN9: TRUE | AO9: TRUE | AP9: TRUE | AQ9: TRUE | AR9: TRUE | AS9: TRUE | AT9: TRUE | AU9: TRUE | AV9: TRUE | AW9: TRUE | AX9: TRUE | AY9: TRUE | AZ9: TRUE | BA9: TRUE | BB9: TRUE | BC9: TRUE | BD9: TRUE | BE9: FALSE | BF9: FALSE | BG9: FALSE | BH9: FALSE | BI9: FALSE | BJ9: FALSE | BK9: FALSE | BL9: FALSE | BM9: FALSE | BN9: FALSE | BO9: FALSE | BP9: FALSE
B10: Project Age | I10: =H10+I9 -> 0 | J10: =I10+J9 -> 0 | K10: 0 | L10: 0 | M10: 0 | N10: 0 | O10: 0 | P10: 0 | Q10: 0 | R10: 0 | S10: 0 | T10: 0 | U10: 0 | V10: 0 | W10: 0 | X10: 0 | Y10: 0 | Z10: 0 | AA10: 1 | AB10: 2 | AC10: 3 | AD10: 4 | AE10: 5 | AF10: 6 | AG10: 7 | AH10: 8 | AI10: 9 | AJ10: 10 | AK10: 11 | AL10: 12 | AM10: 13 | AN10: 14 | AO10: 15 | AP10: 16 | AQ10: 17 | AR10: 18 | AS10: 19 | AT10: 20 | AU10: 21 | AV10: 22 | AW10: 23 | AX10: 24 | AY10: 25 | AZ10: 26 | BA10: 27 | BB10: 28 | BC10: 29 | BD10: 30 | BE10: 30 | BF10: 30 | BG10: 30 | BH10: 30 | BI10: 30 | BJ10: 30 | BK10: 30 | BL10: 30 | BM10: 30 | BN10: 30 | BO10: 30 | BP10: 30
A12: Assumptions
B14: Timing
C15: Months/Period - Construction | E15: Months | F15: 1
C16: Months/Period - Operation | E16: Months | F16: 12
C18: Financial Close Date | E18: Date | F18: 2019-01-01
C19: Construction Period | E19: Months | F19: 18
C20: Commercial Operation | E20: Date | F20: =EDATE(F18,F19) -> 2020-07-01
C21: Operation Period | E21: Years | F21: 30
C22: Decommissioning | E22: Date | F22: =EDATE(F20,F21*12) -> 2050-07-01
B24: Operating assumptions
C25: Capacity
D26: Farm 1 | E26: MW | F26: ='Wind Study'!D31 -> 77.4
D27: Farm 2 | E27: MW | F27: ='Wind Study'!D3 -> 28.8
D28: Total | E28: MW | F28: =SUM(F26:F27) -> 106.2
C29: P99 | G29: Std Dev
D30: Farm 1 | E30: GWH | F30: ='Wind Study'!D48 -> 197.1562584 | G30: ='Wind Study'!D43 -> 51
D31: Farm 2 | E31: GWH | F31: ='Wind Study'!D20 -> 78.30777294 | G31: ='Wind Study'!D15 -> 20.2
D32: Total | E32: GWH | F32: =SUM(F30:F31) -> 275.4640314
C33: P50
D34: Farm 1 | E34: GWH | F34: ='Wind Study'!D39 -> 315.8
D35: Farm 2 | E35: GWH | F35: ='Wind Study'!D11 -> 125.3
D36: Total | E36: GWH | F36: =SUM(F34:F35) -> 441.1
C37: P90
D38: Farm 1 | E38: GWH | F38: ='Wind Study'!D54 -> 269.2796782
D39: Farm 2 | E39: GWH | F39: ='Wind Study'!D23 -> 125.3
D40: Total | E40: GWH | F40: =SUM(F38:F39) -> 394.5796782
B42: EPC Assumption
C43: EPC Costs | E43: USD Millions | F43: 218.8
C44: Total Capacity | E44: MW | F44: =F28 -> 106.2
C45: Cost per KW | E45: USD/kW | F45: =F43/F44*1000 -> 2060.263653
C47: S-Curve
D48: Month | H48: 0 | I48: 1 | J48: 19
D49: Percent | H49: 0 | I49: 0.05555555556 | J49: 0
B51: O&M Assumptions | G51: =F18 -> 2019-01-01 | H51: =F20 -> 2020-07-01 | I51: =EDATE(H51,5*12) -> 2025-07-01 | J51: =EDATE(I51,5*12) -> 2030-07-01 | K51: =EDATE(J51,5*12) -> 2035-07-01
C52: Cost per kW | E52: USD/KWy | H52: 30 | I52: 32 | J52: 40 | K52: 45
C54: O&M Inflation | E54: % p.a. | G54: 0.015 | H54: 0.02 | I54: 0.022 | J54: 0.024
B56: PPA Assumptions
C57: Base PPA Price | E57: USD/MWH | F57: 51.67817082 | G57: Price
C58: Annual Escalation | E58: % | F58: 0.02
B60: Tax and depreciation
C61: Depreciation life | F61: 12
C62: Tax rate | F62: 0
A64: Financing Assumptions
B65: General Debt Parameters
C66: Debt Sizing
D67: Maximum Debt capital | E67: % | F67: 0.8
D68: Minimum DSCR P50 case | F68: 1.35
D69: Minimum DSCR P99 case | F69: 1
D70: Minimum DSCR P90 case | F70: 1.2
D71: Input DSCR Applied | E71: ='Scenario sheet'!G16 -> 2 | F71: =INDEX(F68:F70,E71) -> 1
D73: Debt Method (1 Fixed; 4 Minimum) | F73: 1 | G73: Debt Method | K73: Set to P50
K74: Set Debt Method to 4
C75: Fixed Debt Option | K75: Run Goal Seek
D76: Fixed Amount of Debt | F76: 138716.2304 | G76: Fixed Debt | K76: Keep Minimum Method
D77: Debt IRR | F77: ='Parallel Model'!H374 -> 0.06282485708 | K77: Change to P99
D78: PV of CFADS at Debt IRR | F78: =E423 -> 138716.0245 | K78: Compute Debt
D79: LLCR for Aggregate Sculpting | F79: =IF(F76,F78/F76,100) -> 0.9999985157 | K79: If minimum is less than computed put in fixed
K80: go back until debt remains the same
C81: Sizing from Debt to Cap or DSCR
D82: Debt Using Debt to Capital | E82: =F67 -> 0.8 | F82: =E82*H265 -> 186865.4053
D83: LLCR at Max Debt to Capital | F83: =F78/F82 -> 0.7423312212
D84: DSCR Sizing Applied if not Fixed | E84: 2 | F84: =MAX(F83,F71) -> 1
D85: Debt Size from Input DSCR | E85: =F71 -> 1 | F85: =E428 -> 138716.0245
D86: Minimum Debt Size | F86: =MIN(F85,F82) -> 138716.0245 | G86: Computed Debt
D88: Final DSCR Applied | F88: =IF(F73=1,F79,F84) -> 0.9999985157
D89: Debt Size Applied | F89: =IF(F73=1,F76,F86) -> 138716.2304
D91: Target Equity IRR | F91: 0.11
D92: NPV at target IRR | F92: =XNPV(F91,'Financial Model'!I548:BP548,'Financial Model'!I8:BP8) -> -77487.02873 | G92: npv target
C94: Debt funding
D95: Up-fron Equity Percent | E95: % | F95: 0
C97: Credit protection
D98: Debt Service Reserve Percent | E98: Periods/% | F98: 0.5
D99: Cash Trap Covenent | E99: DSCR | F99: 1.2
D100: Cash Sweep | E100: % of Cash | F100: 0
B102: Debt Issue 1 (Capturing Debt Issue)
C103: Percent of Senior | E103: Percent | F103: =1-F122-F143-F164 -> 0.55
C105: Repayment
D106: Tenor | E106: years | F106: 20
D107: Sculpting repayment | F107: TRUE
D108: Level repayment | F108: =NOT(F107) -> FALSE
D109: Debt Repayment Date | F109: =EDATE($F$20,F106*12) -> 2040-07-01
D111: Sculpt | F111: TRUE
C113: Interest rate and fees
D114: Up-front fee | E114: % | F114: 0.015
D115: Commitment fee | E115: % | F115: 0.008
D117: Base interest rate | E117: % | F117: 0.025
F118: 0 | G118: 1 | H118: 4 | I118: 7 | J118: 10 | K118: 13
D119: Credit spread | E119: 1 | F119: =INDEX('Scenario sheet'!B5:B7,'Financial Model'!$E$119) -> 0.0425 | G119: =INDEX('Scenario sheet'!C5:C7,'Financial Model'!$E$119) -> 0.0437 | H119: =INDEX('Scenario sheet'!D5:D7,'Financial Model'!$E$119) -> 0.045 | I119: =INDEX('Scenario sheet'!E5:E7,'Financial Model'!$E$119) -> 0.0475 | J119: =INDEX('Scenario sheet'!F5:F7,'Financial Model'!$E$119) -> 0.05 | K119: =INDEX('Scenario sheet'!G5:G7,'Financial Model'!$E$119) -> 0.055
B121: Debt Issue 2 (Non Capturing Issue)
C122: Percent of Senior | E122: Percent | F122: 0.1
C124: Repayment
D125: Tenor | E125: years | F125: 14
D126: Sculpting repayment | F126: TRUE
D127: Input Repayment | F127: =NOT(F126) -> FALSE
D128: Debt Repayment Date | F128: =EDATE($F$20,F125*12) -> 2034-07-01
D130: Sculpting | F130: TRUE
D131: Input Repayment Period | F131: 0 | G131: 1 | H131: 14 | I131: 15 | J131: 20 | K131: 30
D132: Input Repayment | F132: 0 | G132: =1/$F$125 -> 0.07142857143 | H132: =1/$F$125 -> 0.07142857143 | I132: 0 | J132: 0 | K132: 0
C134: Interest rate and fees
D135: Up-front fee | E135: % | F135: 0.013
D136: Commitment fee | E136: % | F136: 0.007
D138: Base interest rate | E138: % | F138: 0.03
F139: 0 | G139: 1 | H139: 4 | I139: 7 | J139: 10 | K139: 13
D140: Credit spread | E140: 2 | F140: =INDEX('Scenario sheet'!B$5:B$7,'Financial Model'!$E$140) -> 0.0425 | G140: =INDEX('Scenario sheet'!C$5:C$7,'Financial Model'!$E$140) -> 0.03 | H140: =INDEX('Scenario sheet'!D$5:D$7,'Financial Model'!$E$140) -> 0.03 | I140: =INDEX('Scenario sheet'!E$5:E$7,'Financial Model'!$E$140) -> 0.03 | J140: =INDEX('Scenario sheet'!F$5:F$7,'Financial Model'!$E$140) -> 0.03 | K140: =INDEX('Scenario sheet'!G$5:G$7,'Financial Model'!$E$140) -> 0.03
B142: Debt Issue 3
C143: Percent of Senior | E143: Percent | F143: 0.15
C145: Repayment
D146: Tenor | E146: years | F146: 15
D147: Sculpting repayment | F147: TRUE
D148: Level repayment | F148: =NOT(F147) -> FALSE
D149: Debt Repayment Date | F149: =EDATE($F$20,F146*12) -> 2035-07-01
D151: Sculpting | F151: TRUE
D152: Input Repayment Period | F152: 0 | G152: 1 | H152: =F146 -> 15 | I152: 16 | J152: 20 | K152: 30
D153: Input Repayment | F153: 0 | G153: =1/$F$146 -> 0.06666666667 | H153: =1/$F$146 -> 0.06666666667 | I153: 0 | J153: 0 | K153: 0
C155: Interest rate and fees
D156: Up-front fee | E156: % | F156: 0.01
D157: Commitment fee | E157: % | F157: 0.01
D159: Base interest rate | E159: % | F159: 0.03
F160: 0 | G160: 1 | H160: 4 | I160: 7 | J160: 10 | K160: 13
D161: Credit spread | E161: 2 | F161: =INDEX('Scenario sheet'!B$5:B$7,$E$161) -> 0.0425 | G161: =INDEX('Scenario sheet'!C$5:C$7,$E$161) -> 0.03 | H161: =INDEX('Scenario sheet'!D$5:D$7,$E$161) -> 0.03 | I161: =INDEX('Scenario sheet'!E$5:E$7,$E$161) -> 0.03 | J161: =INDEX('Scenario sheet'!F$5:F$7,$E$161) -> 0.03 | K161: =INDEX('Scenario sheet'!G$5:G$7,$E$161) -> 0.03
B163: Debt Issue 4
C164: Percent of Senior | E164: Percent | F164: 0.2
C166: Repayment
D167: Tenor | E167: years | F167: 17
D168: Sculpting repayment | F168: TRUE
D169: Level repayment | F169: =NOT(F168) -> FALSE
D170: Debt Repayment Date | F170: =EDATE($F$20,F167*12) -> 2037-07-01
D172: Sculpting | F172: TRUE
D173: Input Repayment Period | F173: 0 | G173: 1 | H173: 17 | I173: 16 | J173: 20 | K173: 30
D174: Input Repayment | F174: 0 | G174: =1/$F$167 -> 0.05882352941 | H174: =1/$F$167 -> 0.05882352941 | I174: 0 | J174: 0 | K174: 0
C176: Interest rate and fees
D177: Up-front fee | E177: % | F177: 0.012
D178: Commitment fee | E178: % | F178: 0.011
D180: Base interest rate | E180: % | F180: 0.02
F181: 0 | G181: 1 | H181: 4 | I181: 7 | J181: 10 | K181: 13
D182: Credit spread | E182: 2 | F182: =INDEX('Scenario sheet'!B5:B7,'Financial Model'!$E$182) -> 0.0425 | G182: =INDEX('Scenario sheet'!C5:C7,'Financial Model'!$E$182) -> 0.03 | H182: =INDEX('Scenario sheet'!D5:D7,'Financial Model'!$E$182) -> 0.03 | I182: 0 | J182: 0 | K182: 0
C184: Check of Total Debt Percent | F184: =F164+F143+F122+F103 -> 1
A186: Re-Financing Assumptions
B188: Re-Financing 1
C189: DSCR for Re-financing
A208: Operating & Analysis
B209: Capacity | E209: MW | F209: =F28 -> 106.2 | I209: =$F$209*I9 -> 0 | J209: 0 | K209: 0 | L209: 0 | M209: 0 | N209: 0 | O209: 0 | P209: 0 | Q209: 0 | R209: 0 | S209: 0 | T209: 0 | U209: 0 | V209: 0 | W209: 0 | X209: 0 | Y209: 0 | Z209: 0 | AA209: 106.2 | AB209: 106.2 | AC209: 106.2 | AD209: 106.2 | AE209: 106.2 | AF209: 106.2 | AG209: 106.2 | AH209: 106.2 | AI209: 106.2 | AJ209: 106.2 | AK209: 106.2 | AL209: 106.2 | AM209: 106.2 | AN209: 106.2 | AO209: =$F$209*AO9 -> 106.2 | AP209: 106.2 | AQ209: 106.2 | AR209: 106.2 | AS209: 106.2 | AT209: 106.2 | AU209: 106.2 | AV209: 106.2 | AW209: 106.2 | AX209: 106.2 | AY209: 106.2 | AZ209: 106.2 | BA209: 106.2 | BB209: 106.2 | BC209: 106.2 | BD209: 106.2 | BE209: 0 | BF209: 0 | BG209: 0 | BH209: 0 | BI209: 0 | BJ209: 0 | BK209: 0 | BL209: 0 | BM209: 0 | BN209: 0 | BO209: 0 | BP209: 0
B210: P50 Production | E210: GWH | F210: =F36 -> 441.1 | I210: =$F$210*I9 -> 0 | J210: 0 | K210: 0 | L210: 0 | M210: 0 | N210: 0 | O210: 0 | P210: 0 | Q210: 0 | R210: 0 | S210: 0 | T210: 0 | U210: 0 | V210: 0 | W210: 0 | X210: 0 | Y210: 0 | Z210: 0 | AA210: 441.1 | AB210: 441.1 | AC210: 441.1 | AD210: 441.1 | AE210: 441.1 | AF210: 441.1 | AG210: 441.1 | AH210: 441.1 | AI210: 441.1 | AJ210: 441.1 | AK210: 441.1 | AL210: 441.1 | AM210: 441.1 | AN210: 441.1 | AO210: =$F$210*AO9 -> 441.1 | AP210: 441.1 | AQ210: 441.1 | AR210: 441.1 | AS210: 441.1 | AT210: 441.1 | AU210: 441.1 | AV210: 441.1 | AW210: 441.1 | AX210: 441.1 | AY210: 441.1 | AZ210: 441.1 | BA210: 441.1 | BB210: 441.1 | BC210: 441.1 | BD210: 441.1 | BE210: 0 | BF210: 0 | BG210: 0 | BH210: 0 | BI210: 0 | BJ210: 0 | BK210: 0 | BL210: 0 | BM210: 0 | BN210: 0 | BO210: 0 | BP210: 0
B211: P99 Production | E211: GWH | F211: =F32 -> 275.4640314 | I211: =$F$211*I9 -> 0 | J211: 0 | K211: 0 | L211: 0 | M211: 0 | N211: 0 | O211: 0 | P211: 0 | Q211: 0 | R211: 0 | S211: 0 | T211: 0 | U211: 0 | V211: 0 | W211: 0 | X211: 0 | Y211: 0 | Z211: 0 | AA211: 275.4640314 | AB211: 275.4640314 | AC211: 275.4640314 | AD211: 275.4640314 | AE211: 275.4640314 | AF211: 275.4640314 | AG211: 275.4640314 | AH211: 275.4640314 | AI211: 275.4640314 | AJ211: 275.4640314 | AK211: 275.4640314 | AL211: 275.4640314 | AM211: 275.4640314 | AN211: 275.4640314 | AO211: =$F$211*AO9 -> 275.4640314 | AP211: 275.4640314 | AQ211: 275.4640314 | AR211: 275.4640314 | AS211: 275.4640314 | AT211: 275.4640314 | AU211: 275.4640314 | AV211: 275.4640314 | AW211: 275.4640314 | AX211: 275.4640314 | AY211: 275.4640314 | AZ211: 275.4640314 | BA211: 275.4640314 | BB211: 275.4640314 | BC211: 275.4640314 | BD211: 275.4640314 | BE211: 0 | BF211: 0 | BG211: 0 | BH211: 0 | BI211: 0 | BJ211: 0 | BK211: 0 | BL211: 0 | BM211: 0 | BN211: 0 | BO211: 0 | BP211: 0
B212: P90 Production | E212: GWH
C213: =INDEX('Scenario sheet'!$A$15:$A$17,'Financial Model'!F213) -> P99 Worst Case | F213: ='Scenario sheet'!$G$16 -> 2 | I213: =INDEX(I210:I212,$F$213) -> 0 | J213: 0 | K213: 0 | L213: 0 | M213: 0 | N213: 0 | O213: 0 | P213: 0 | Q213: 0 | R213: 0 | S213: 0 | T213: 0 | U213: 0 | V213: 0 | W213: 0 | X213: 0 | Y213: 0 | Z213: 0 | AA213: 275.4640314 | AB213: 275.4640314 | AC213: 275.4640314 | AD213: 275.4640314 | AE213: 275.4640314 | AF213: 275.4640314 | AG213: 275.4640314 | AH213: 275.4640314 | AI213: 275.4640314 | AJ213: 275.4640314 | AK213: 275.4640314 | AL213: 275.4640314 | AM213: 275.4640314 | AN213: 275.4640314 | AO213: =INDEX(AO210:AO212,$F$213) -> 275.4640314 | AP213: 275.4640314 | AQ213: 275.4640314 | AR213: 275.4640314 | AS213: 275.4640314 | AT213: 275.4640314 | AU213: 275.4640314 | AV213: 275.4640314 | AW213: 275.4640314 | AX213: 275.4640314 | AY213: 275.4640314 | AZ213: 275.4640314 | BA213: 275.4640314 | BB213: 275.4640314 | BC213: 275.4640314 | BD213: 275.4640314 | BE213: 0 | BF213: 0 | BG213: 0 | BH213: 0 | BI213: 0 | BJ213: 0 | BK213: 0 | BL213: 0 | BM213: 0 | BN213: 0 | BO213: 0 | BP213: 0
B215: EPC/O&M/PPA
C216: EPC | E216: USD 000 | F216: =F43*1000 -> 218800 | I216: =$F$216*I6 -> 218800 | J216: 218800 | K216: 218800 | L216: 218800 | M216: 218800 | N216: 218800 | O216: 218800 | P216: 218800 | Q216: 218800 | R216: 218800 | S216: 218800 | T216: 218800 | U216: 218800 | V216: 218800 | W216: 218800 | X216: 218800 | Y216: 218800 | Z216: 218800 | AA216: 0 | AB216: 0 | AC216: 0 | AD216: 0 | AE216: 0 | AF216: 0 | AG216: 0 | AH216: 0 | AI216: 0 | AJ216: 0 | AK216: 0 | AL216: 0 | AM216: 0 | AN216: 0 | AO216: =$F$216*AO6 -> 0 | AP216: 0 | AQ216: 0 | AR216: 0 | AS216: 0 | AT216: 0 | AU216: 0 | AV216: 0 | AW216: 0 | AX216: 0 | AY216: 0 | AZ216: 0 | BA216: 0 | BB216: 0 | BC216: 0 | BD216: 0 | BE216: 0 | BF216: 0 | BG216: 0 | BH216: 0 | BI216: 0 | BJ216: 0 | BK216: 0 | BL216: 0 | BM216: 0 | BN216: 0 | BO216: 0 | BP216: 0
C217: S-Curve | I217: =LOOKUP(I5,48:48,49:49) -> 0.05555555556 | J217: 0.05555555556 | K217: 0.05555555556 | L217: 0.05555555556 | M217: 0.05555555556 | N217: 0.05555555556 | O217: 0.05555555556 | P217: 0.05555555556 | Q217: 0.05555555556 | R217: 0.05555555556 | S217: 0.05555555556 | T217: 0.05555555556 | U217: 0.05555555556 | V217: 0.05555555556 | W217: 0.05555555556 | X217: 0.05555555556 | Y217: 0.05555555556 | Z217: 0.05555555556 | AA217: 0 | AB217: 0 | AC217: 0 | AD217: 0 | AE217: 0 | AF217: 0 | AG217: 0 | AH217: 0 | AI217: 0 | AJ217: 0 | AK217: 0 | AL217: 0 | AM217: 0 | AN217: 0 | AO217: =LOOKUP(AO5,48:48,49:49) -> 0 | AP217: 0 | AQ217: 0 | AR217: 0 | AS217: 0 | AT217: 0 | AU217: 0 | AV217: 0 | AW217: 0 | AX217: 0 | AY217: 0 | AZ217: 0 | BA217: 0 | BB217: 0 | BC217: 0 | BD217: 0 | BE217: 0 | BF217: 0 | BG217: 0 | BH217: 0 | BI217: 0 | BJ217: 0 | BK217: 0 | BL217: 0 | BM217: 0 | BN217: 0 | BO217: 0 | BP217: 0
D218: Capital Expenditures | E218: USD 000 | I218: =I216*I217 -> 12155.55556 | J218: =J216*J217 -> 12155.55556 | K218: 12155.55556 | L218: 12155.55556 | M218: 12155.55556 | N218: 12155.55556 | O218: 12155.55556 | P218: 12155.55556 | Q218: 12155.55556 | R218: 12155.55556 | S218: 12155.55556 | T218: 12155.55556 | U218: 12155.55556 | V218: 12155.55556 | W218: 12155.55556 | X218: 12155.55556 | Y218: 12155.55556 | Z218: 12155.55556 | AA218: 0 | AB218: 0 | AC218: 0 | AD218: 0 | AE218: 0 | AF218: 0 | AG218: 0 | AH218: 0 | AI218: 0 | AJ218: 0 | AK218: 0 | AL218: 0 | AM218: 0 | AN218: 0 | AO218: 0 | AP218: 0 | AQ218: 0 | AR218: 0 | AS218: 0 | AT218: 0 | AU218: 0 | AV218: 0 | AW218: 0 | AX218: 0 | AY218: 0 | AZ218: 0 | BA218: 0 | BB218: 0 | BC218: 0 | BD218: 0 | BE218: 0 | BF218: 0 | BG218: 0 | BH218: 0 | BI218: 0 | BJ218: 0 | BK218: 0 | BL218: 0 | BM218: 0 | BN218: 0 | BO218: 0 | BP218: 0
B220: Revenues
C221: PPA Price without Inflation | E221: USD/MWh | F221: =F57 -> 51.67817082 | I221: =$F$221 -> 51.67817082 | J221: 51.67817082 | K221: 51.67817082 | L221: 51.67817082 | M221: 51.67817082 | N221: 51.67817082 | O221: 51.67817082 | P221: 51.67817082 | Q221: 51.67817082 | R221: 51.67817082 | S221: 51.67817082 | T221: 51.67817082 | U221: 51.67817082 | V221: 51.67817082 | W221: 51.67817082 | X221: 51.67817082 | Y221: 51.67817082 | Z221: 51.67817082 | AA221: 51.67817082 | AB221: 51.67817082 | AC221: 51.67817082 | AD221: 51.67817082 | AE221: 51.67817082 | AF221: 51.67817082 | AG221: 51.67817082 | AH221: 51.67817082 | AI221: 51.67817082 | AJ221: 51.67817082 | AK221: 51.67817082 | AL221: 51.67817082 | AM221: 51.67817082 | AN221: 51.67817082 | AO221: =$F$221 -> 51.67817082 | AP221: 51.67817082 | AQ221: 51.67817082 | AR221: 51.67817082 | AS221: 51.67817082 | AT221: 51.67817082 | AU221: 51.67817082 | AV221: 51.67817082 | AW221: 51.67817082 | AX221: 51.67817082 | AY221: 51.67817082 | AZ221: 51.67817082 | BA221: 51.67817082 | BB221: 51.67817082 | BC221: 51.67817082 | BD221: 51.67817082 | BE221: 51.67817082 | BF221: 51.67817082 | BG221: 51.67817082 | BH221: 51.67817082 | BI221: 51.67817082 | BJ221: 51.67817082 | BK221: 51.67817082 | BL221: 51.67817082 | BM221: 51.67817082 | BN221: 51.67817082 | BO221: 51.67817082 | BP221: 51.67817082
C222: PPA Inflation Index | E222: Index | F222: =F58 -> 0.02 | H222: 1 | I222: =H222*(1+$F$222*I9) -> 1 | J222: 1 | K222: 1 | L222: 1 | M222: 1 | N222: 1 | O222: 1 | P222: 1 | Q222: 1 | R222: 1 | S222: 1 | T222: 1 | U222: 1 | V222: 1 | W222: 1 | X222: 1 | Y222: 1 | Z222: 1 | AA222: 1.02 | AB222: 1.0404 | AC222: 1.061208 | AD222: 1.08243216 | AE222: 1.104080803 | AF222: 1.126162419 | AG222: 1.148685668 | AH222: 1.171659381 | AI222: 1.195092569 | AJ222: 1.21899442 | AK222: 1.243374308 | AL222: 1.268241795 | AM222: 1.29360663 | AN222: 1.319478763 | AO222: =AN222*(1+$F$222*AO9) -> 1.345868338 | AP222: 1.372785705 | AQ222: 1.400241419 | AR222: 1.428246248 | AS222: 1.456811173 | AT222: 1.485947396 | AU222: 1.515666344 | AV222: 1.545979671 | AW222: 1.576899264 | AX222: 1.608437249 | AY222: 1.640605994 | AZ222: 1.673418114 | BA222: 1.706886477 | BB222: 1.741024206 | BC222: 1.77584469 | BD222: 1.811361584 | BE222: 1.811361584 | BF222: 1.811361584 | BG222: 1.811361584 | BH222: 1.811361584 | BI222: 1.811361584 | BJ222: 1.811361584 | BK222: 1.811361584 | BL222: 1.811361584 | BM222: 1.811361584 | BN222: 1.811361584 | BO222: 1.811361584 | BP222: 1.811361584
C223: PPA Price with Inflation | E223: USD/MWh | I223: =I221*I222 -> 51.67817082 | J223: =J221*J222 -> 51.67817082 | K223: 51.67817082 | L223: 51.67817082 | M223: 51.67817082 | N223: 51.67817082 | O223: 51.67817082 | P223: 51.67817082 | Q223: 51.67817082 | R223: 51.67817082 | S223: 51.67817082 | T223: 51.67817082 | U223: 51.67817082 | V223: 51.67817082 | W223: 51.67817082 | X223: 51.67817082 | Y223: 51.67817082 | Z223: 51.67817082 | AA223: 52.71173423 | AB223: 53.76596892 | AC223: 54.8412883 | AD223: 55.93811406 | AE223: 57.05687634 | AF223: 58.19801387 | AG223: 59.36197415 | AH223: 60.54921363 | AI223: 61.7601979 | AJ223: 62.99540186 | AK223: 64.2553099 | AL223: 65.5404161 | AM223: 66.85122442 | AN223: 68.18824891 | AO223: 69.55201389 | AP223: 70.94305416 | AQ223: 72.36191525 | AR223: 73.80915355 | AS223: 75.28533662 | AT223: 76.79104336 | AU223: 78.32686422 | AV223: 79.89340151 | AW223: 81.49126954 | AX223: 83.12109493 | AY223: 84.78351683 | AZ223: 86.47918716 | BA223: 88.20877091 | BB223: 89.97294633 | BC223: 91.77240525 | BD223: 93.60785336 | BE223: 93.60785336 | BF223: 93.60785336 | BG223: 93.60785336 | BH223: 93.60785336 | BI223: 93.60785336 | BJ223: 93.60785336 | BK223: 93.60785336 | BL223: 93.60785336 | BM223: 93.60785336 | BN223: 93.60785336 | BO223: 93.60785336 | BP223: 93.60785336
C225: ="Revenues at "&INDEX('Scenario sheet'!$A$15:$A$17,'Financial Model'!F225) -> Revenues at P99 Worst Case | E225: USD 000s | F225: ='Scenario sheet'!$G$16 -> 2 | I225: =I223*I213 -> 0 | J225: =J223*J213 -> 0 | K225: 0 | L225: 0 | M225: 0 | N225: 0 | O225: 0 | P225: 0 | Q225: 0 | R225: 0 | S225: 0 | T225: 0 | U225: 0 | V225: 0 | W225: 0 | X225: 0 | Y225: 0 | Z225: 0 | AA225: 14520.18681 | AB225: 14810.59055 | AC225: 15106.80236 | AD225: 15408.93841 | AE225: 15717.11718 | AF225: 16031.45952 | AG225: 16352.08871 | AH225: 16679.13048 | AI225: 17012.71309 | AJ225: 17352.96735 | AK225: 17700.0267 | AL225: 18054.02724 | AM225: 18415.10778 | AN225: 18783.40994 | AO225: 19159.07813 | AP225: 19542.2597 | AQ225: 19933.10489 | AR225: 20331.76699 | AS225: 20738.40233 | AT225: 21153.17038 | AU225: 21576.23378 | AV225: 22007.75846 | AW225: 22447.91363 | AX225: 22896.8719 | AY225: 23354.80934 | AZ225: 23821.90553 | BA225: 24298.34364 | BB225: 24784.31051 | BC225: 25279.99672 | BD225: 25785.59665 | BE225: 0 | BF225: 0 | BG225: 0 | BH225: 0 | BI225: 0 | BJ225: 0 | BK225: 0 | BL225: 0 | BM225: 0 | BN225: 0 | BO225: 0 | BP225: 0
B227: O&M Costs
C228: O&M per kW | E228: USD/kW-yr | I228: =LOOKUP(I8,51:51,52:52) -> 0 | J228: 0 | K228: 0 | L228: 0 | M228: 0 | N228: 0 | O228: 0 | P228: 0 | Q228: 0 | R228: 0 | S228: 0 | T228: 0 | U228: 0 | V228: 0 | W228: 0 | X228: 0 | Y228: 0 | Z228: 0 | AA228: 30 | AB228: 30 | AC228: 30 | AD228: 30 | AE228: 30 | AF228: 32 | AG228: 32 | AH228: 32 | AI228: 32 | AJ228: 32 | AK228: 40 | AL228: 40 | AM228: 40 | AN228: 40 | AO228: =LOOKUP(AO8,51:51,52:52) -> 40 | AP228: 45 | AQ228: 45 | AR228: 45 | AS228: 45 | AT228: 45 | AU228: 45 | AV228: 45 | AW228: 45 | AX228: 45 | AY228: 45 | AZ228: 45 | BA228: 45 | BB228: 45 | BC228: 45 | BD228: 45 | BE228: 45 | BF228: 45 | BG228: 45 | BH228: 45 | BI228: 45 | BJ228: 45 | BK228: 45 | BL228: 45 | BM228: 45 | BN228: 45 | BO228: 45 | BP228: 45
C229: Inflation Rate | E229: % | I229: =(1+LOOKUP(I8,51:51,54:54))^(I7/12)-1 -> 0.001241487716 | J229: 0.001241487716 | K229: 0.001241487716 | L229: 0.001241487716 | M229: 0.001241487716 | N229: 0.001241487716 | O229: 0.001241487716 | P229: 0.001241487716 | Q229: 0.001241487716 | R229: 0.001241487716 | S229: 0.001241487716 | T229: 0.001241487716 | U229: 0.001241487716 | V229: 0.001241487716 | W229: 0.001241487716 | X229: 0.001241487716 | Y229: 0.001241487716 | Z229: 0.001241487716 | AA229: 0.02 | AB229: 0.02 | AC229: 0.02 | AD229: 0.02 | AE229: 0.02 | AF229: 0.022 | AG229: 0.022 | AH229: 0.022 | AI229: 0.022 | AJ229: 0.022 | AK229: 0.024 | AL229: 0.024 | AM229: 0.024 | AN229: 0.024 | AO229: =(1+LOOKUP(AO8,51:51,54:54))^(AO7/12)-1 -> 0.024 | AP229: 0 | AQ229: 0 | AR229: 0 | AS229: 0 | AT229: 0 | AU229: 0 | AV229: 0 | AW229: 0 | AX229: 0 | AY229: 0 | AZ229: 0 | BA229: 0 | BB229: 0 | BC229: 0 | BD229: 0 | BE229: 0 | BF229: 0 | BG229: 0 | BH229: 0 | BI229: 0 | BJ229: 0 | BK229: 0 | BL229: 0 | BM229: 0 | BN229: 0 | BO229: 0 | BP229: 0
C230: Inflation Index | E230: Index | H230: 1 | I230: =H230*(1+I229) -> 1.001241488 | J230: =I230*(1+J229) -> 1.002484517 | K230: 1.003729089 | L230: 1.004975206 | M230: 1.006222871 | N230: 1.007472084 | O230: 1.008722848 | P230: 1.009975165 | Q230: 1.011229037 | R230: 1.012484465 | S230: 1.013741452 | T230: 1.015 | U230: 1.01626011 | V230: 1.017521784 | W230: 1.018785025 | X230: 1.020049834 | Y230: 1.021316214 | Z230: 1.022584165 | AA230: 1.043035849 | AB230: 1.063896566 | AC230: 1.085174497 | AD230: 1.106877987 | AE230: 1.129015546 | AF230: 1.153853889 | AG230: 1.179238674 | AH230: 1.205181925 | AI230: 1.231695927 | AJ230: 1.258793238 | AK230: 1.289004275 | AL230: 1.319940378 | AM230: 1.351618947 | AN230: 1.384057802 | AO230: 1.417275189 | AP230: 1.417275189 | AQ230: 1.417275189 | AR230: 1.417275189 | AS230: 1.417275189 | AT230: 1.417275189 | AU230: 1.417275189 | AV230: 1.417275189 | AW230: 1.417275189 | AX230: 1.417275189 | AY230: 1.417275189 | AZ230: 1.417275189 | BA230: 1.417275189 | BB230: 1.417275189 | BC230: 1.417275189 | BD230: 1.417275189 | BE230: 1.417275189 | BF230: 1.417275189 | BG230: 1.417275189 | BH230: 1.417275189 | BI230: 1.417275189 | BJ230: 1.417275189 | BK230: 1.417275189 | BL230: 1.417275189 | BM230: 1.417275189 | BN230: 1.417275189 | BO230: 1.417275189 | BP230: 1.417275189
C231: O&M per kW Inflated | E231: USD/kW-yr | I231: =I230*I228 -> 0 | J231: =J230*J228 -> 0 | K231: 0 | L231: 0 | M231: 0 | N231: 0 | O231: 0 | P231: 0 | Q231: 0 | R231: 0 | S231: 0 | T231: 0 | U231: 0 | V231: 0 | W231: 0 | X231: 0 | Y231: 0 | Z231: 0 | AA231: 31.29107546 | AB231: 31.91689697 | AC231: 32.5552349 | AD231: 33.2063396 | AE231: 33.87046639 | AF231: 36.92332443 | AG231: 37.73563757 | AH231: 38.5658216 | AI231: 39.41426967 | AJ231: 40.2813836 | AK231: 51.56017101 | AL231: 52.79761512 | AM231: 54.06475788 | AN231: 55.36231207 | AO231: 56.69100756 | AP231: 63.7773835 | AQ231: 63.7773835 | AR231: 63.7773835 | AS231: 63.7773835 | AT231: 63.7773835 | AU231: 63.7773835 | AV231: 63.7773835 | AW231: 63.7773835 | AX231: 63.7773835 | AY231: 63.7773835 | AZ231: 63.7773835 | BA231: 63.7773835 | BB231: 63.7773835 | BC231: 63.7773835 | BD231: 63.7773835 | BE231: 63.7773835 | BF231: 63.7773835 | BG231: 63.7773835 | BH231: 63.7773835 | BI231: 63.7773835 | BJ231: 63.7773835 | BK231: 63.7773835 | BL231: 63.7773835 | BM231: 63.7773835 | BN231: 63.7773835 | BO231: 63.7773835 | BP231: 63.7773835
C233: Capacity | E233: MW | I233: =I209 -> 0 | J233: 0 | K233: 0 | L233: 0 | M233: 0 | N233: 0 | O233: 0 | P233: 0 | Q233: 0 | R233: 0 | S233: 0 | T233: 0 | U233: 0 | V233: 0 | W233: 0 | X233: 0 | Y233: 0 | Z233: 0 | AA233: 106.2 | AB233: 106.2 | AC233: 106.2 | AD233: 106.2 | AE233: 106.2 | AF233: 106.2 | AG233: 106.2 | AH233: 106.2 | AI233: 106.2 | AJ233: 106.2 | AK233: 106.2 | AL233: 106.2 | AM233: 106.2 | AN233: 106.2 | AO233: =AO209 -> 106.2 | AP233: 106.2 | AQ233: 106.2 | AR233: 106.2 | AS233: 106.2 | AT233: 106.2 | AU233: 106.2 | AV233: 106.2 | AW233: 106.2 | AX233: 106.2 | AY233: 106.2 | AZ233: 106.2 | BA233: 106.2 | BB233: 106.2 | BC233: 106.2 | BD233: 106.2 | BE233: 0 | BF233: 0 | BG233: 0 | BH233: 0 | BI233: 0 | BJ233: 0 | BK233: 0 | BL233: 0 | BM233: 0 | BN233: 0 | BO233: 0 | BP233: 0
D234: O&M Costs | I234: =I233*I231 -> 0 | J234: =J233*J231 -> 0 | K234: 0 | L234: 0 | M234: 0 | N234: 0 | O234: 0 | P234: 0 | Q234: 0 | R234: 0 | S234: 0 | T234: 0 | U234: 0 | V234: 0 | W234: 0 | X234: 0 | Y234: 0 | Z234: 0 | AA234: 3323.112213 | AB234: 3389.574458 | AC234: 3457.365947 | AD234: 3526.513266 | AE234: 3597.043531 | AF234: 3921.257055 | AG234: 4007.52471 | AH234: 4095.690254 | AI234: 4185.795439 | AJ234: 4277.882939 | AK234: 5475.690162 | AL234: 5607.106726 | AM234: 5741.677287 | AN234: 5879.477542 | AO234: 6020.585003 | AP234: 6773.158128 | AQ234: 6773.158128 | AR234: 6773.158128 | AS234: 6773.158128 | AT234: 6773.158128 | AU234: 6773.158128 | AV234: 6773.158128 | AW234: 6773.158128 | AX234: 6773.158128 | AY234: 6773.158128 | AZ234: 6773.158128 | BA234: 6773.158128 | BB234: 6773.158128 | BC234: 6773.158128 | BD234: 6773.158128 | BE234: 0 | BF234: 0 | BG234: 0 | BH234: 0 | BI234: 0 | BJ234: 0 | BK234: 0 | BL234: 0 | BM234: 0 | BN234: 0 | BO234: 0 | BP234: 0
C236: EBITDA P50 | I236: =I225-I234 -> 0 | J236: 0 | K236: 0 | L236: 0 | M236: 0 | N236: 0 | O236: 0 | P236: 0 | Q236: 0 | R236: 0 | S236: 0 | T236: 0 | U236: 0 | V236: 0 | W236: 0 | X236: 0 | Y236: 0 | Z236: 0 | AA236: 11197.0746 | AB236: 11421.01609 | AC236: 11649.43641 | AD236: 11882.42514 | AE236: 12120.07364 | AF236: 12110.20246 | AG236: 12344.564 | AH236: 12583.44023 | AI236: 12826.91765 | AJ236: 13075.08442 | AK236: 12224.33654 | AL236: 12446.92051 | AM236: 12673.43049 | AN236: 12903.93239 | AO236: =AO225-AO234 -> 13138.49313 | AP236: 12769.10157 | AQ236: 13159.94676 | AR236: 13558.60886 | AS236: 13965.2442 | AT236: 14380.01225 | AU236: 14803.07566 | AV236: 15234.60033 | AW236: 15674.7555 | AX236: 16123.71377 | AY236: 16581.65121 | AZ236: 17048.7474 | BA236: 17525.18551 | BB236: 18011.15238 | BC236: 18506.83859 | BD236: 19012.43853 | BE236: 0 | BF236: 0 | BG236: 0 | BH236: 0 | BI236: 0 | BJ236: 0 | BK236: 0 | BL236: 0 | BM236: 0 | BN236: 0 | BO236: 0 | BP236: 0
C238: Net Project Cash Flow P50 | H238: =H236-H218-0.0000001 -> -1e-07 | I238: =I236-I218 -> -12155.55556 | J238: -12155.55556 | K238: -12155.55556 | L238: -12155.55556 | M238: -12155.55556 | N238: -12155.55556 | O238: -12155.55556 | P238: -12155.55556 | Q238: -12155.55556 | R238: -12155.55556 | S238: -12155.55556 | T238: -12155.55556 | U238: -12155.55556 | V238: -12155.55556 | W238: -12155.55556 | X238: -12155.55556 | Y238: -12155.55556 | Z238: -12155.55556 | AA238: 11197.0746 | AB238: 11421.01609 | AC238: 11649.43641 | AD238: 11882.42514 | AE238: 12120.07364 | AF238: 12110.20246 | AG238: 12344.564 | AH238: 12583.44023 | AI238: 12826.91765 | AJ238: 13075.08442 | AK238: 12224.33654 | AL238: 12446.92051 | AM238: 12673.43049 | AN238: 12903.93239 | AO238: =AO236-AO218 -> 13138.49313 | AP238: 12769.10157 | AQ238: 13159.94676 | AR238: 13558.60886 | AS238: 13965.2442 | AT238: 14380.01225 | AU238: 14803.07566 | AV238: 15234.60033 | AW238: 15674.7555 | AX238: 16123.71377 | AY238: 16581.65121 | AZ238: 17048.7474 | BA238: 17525.18551 | BB238: 18011.15238 | BC238: 18506.83859 | BD238: 19012.43853 | BE238: 0 | BF238: 0 | BG238: 0 | BH238: 0 | BI238: 0 | BJ238: 0 | BK238: 0 | BL238: 0 | BM238: 0 | BN238: 0 | BO238: 0 | BP238: 0
C240: Project IRR P50 | F240: =XIRR(I238:BP238,I8:BP8) -> 0.04191755354
A242: Operating Taxes
B243: Costs Base | H243: =$I$216 -> 218800 | I243: 218800 | J243: 218800 | K243: 218800 | L243: 218800 | M243: 218800 | N243: 218800 | O243: 218800 | P243: 218800 | Q243: 218800 | R243: 218800 | S243: 218800 | T243: 218800 | U243: 218800 | V243: 218800 | W243: 218800 | X243: 218800 | Y243: 218800 | Z243: 218800 | AA243: 218800 | AB243: 218800 | AC243: 218800 | AD243: 218800 | AE243: 218800 | AF243: 218800 | AG243: 218800 | AH243: 218800 | AI243: 218800 | AJ243: 218800 | AK243: 218800 | AL243: 218800 | AM243: 218800 | AN243: =$I$216 -> 218800 | AO243: 218800 | AP243: 218800 | AQ243: 218800 | AR243: 218800 | AS243: 218800 | AT243: 218800 | AU243: 218800 | AV243: 218800 | AW243: 218800 | AX243: 218800 | AY243: 218800 | AZ243: 218800 | BA243: 218800 | BB243: 218800 | BC243: 218800 | BD243: 218800 | BE243: 218800 | BF243: 218800 | BG243: 218800 | BH243: 218800 | BI243: 218800 | BJ243: 218800 | BK243: 218800 | BL243: 218800 | BM243: 218800 | BN243: 218800 | BO243: 218800 | BP243: 218800
C244: Depreciation Expense | F244: =1/$F$61 -> 0.08333333333 | I244: =MIN(I243*$F$244,H246)*I9 -> 0 | J244: 0 | K244: 0 | L244: 0 | M244: 0 | N244: 0 | O244: 0 | P244: 0 | Q244: 0 | R244: 0 | S244: 0 | T244: 0 | U244: 0 | V244: 0 | W244: 0 | X244: 0 | Y244: 0 | Z244: 0 | AA244: 18233.33333 | AB244: 18233.33333 | AC244: 18233.33333 | AD244: 18233.33333 | AE244: 18233.33333 | AF244: 18233.33333 | AG244: 18233.33333 | AH244: 18233.33333 | AI244: 18233.33333 | AJ244: 18233.33333 | AK244: 18233.33333 | AL244: 18233.33333 | AM244: 0 | AN244: 0 | AO244: =MIN(AO243*$F$244,AN246)*AO9 -> 0 | AP244: 0 | AQ244: 0 | AR244: 0 | AS244: 0 | AT244: 0 | AU244: 0 | AV244: 0 | AW244: 0 | AX244: 0 | AY244: 0 | AZ244: 0 | BA244: 0 | BB244: 0 | BC244: 0 | BD244: 0 | BE244: 0 | BF244: 0 | BG244: 0 | BH244: 0 | BI244: 0 | BJ244: 0 | BK244: 0 | BL244: 0 | BM244: 0 | BN244: 0 | BO244: 0 | BP244: 0
C245: Accumulated Depreciation | I245: =H245+I244 -> 0 | J245: =I245+J244 -> 0 | K245: 0 | L245: 0 | M245: 0 | N245: 0 | O245: 0 | P245: 0 | Q245: 0 | R245: 0 | S245: 0 | T245: 0 | U245: 0 | V245: 0 | W245: 0 | X245: 0 | Y245: 0 | Z245: 0 | AA245: 18233.33333 | AB245: 36466.66667 | AC245: 54700 | AD245: 72933.33333 | AE245: 91166.66667 | AF245: 109400 | AG245: 127633.3333 | AH245: 145866.6667 | AI245: 164100 | AJ245: 182333.3333 | AK245: 200566.6667 | AL245: 218800 | AM245: 218800 | AN245: =AM245+AN244 -> 218800 | AO245: 218800 | AP245: 218800 | AQ245: 218800 | AR245: 218800 | AS245: 218800 | AT245: 218800 | AU245: 218800 | AV245: 218800 | AW245: 218800 | AX245: 218800 | AY245: 218800 | AZ245: 218800 | BA245: 218800 | BB245: 218800 | BC245: 218800 | BD245: 218800 | BE245: 218800 | BF245: 218800 | BG245: 218800 | BH245: 218800 | BI245: 218800 | BJ245: 218800 | BK245: 218800 | BL245: 218800 | BM245: 218800 | BN245: 218800 | BO245: 218800 | BP245: 218800
C246: Net Plant | H246: =H243-H245 -> 218800 | I246: =I243-I245 -> 218800 | J246: 218800 | K246: 218800 | L246: 218800 | M246: 218800 | N246: 218800 | O246: 218800 | P246: 218800 | Q246: 218800 | R246: 218800 | S246: 218800 | T246: 218800 | U246: 218800 | V246: 218800 | W246: 218800 | X246: 218800 | Y246: 218800 | Z246: 218800 | AA246: 200566.6667 | AB246: 182333.3333 | AC246: 164100 | AD246: 145866.6667 | AE246: 127633.3333 | AF246: 109400 | AG246: 91166.66667 | AH246: 72933.33333 | AI246: 54700 | AJ246: 36466.66667 | AK246: 18233.33333 | AL246: 0 | AM246: 0 | AN246: 0 | AO246: 0 | AP246: 0 | AQ246: 0 | AR246: 0 | AS246: 0 | AT246: 0 | AU246: 0 | AV246: 0 | AW246: 0 | AX246: 0 | AY246: 0 | AZ246: 0 | BA246: 0 | BB246: 0 | BC246: 0 | BD246: 0 | BE246: 0 | BF246: 0 | BG246: 0 | BH246: 0 | BI246: 0 | BJ246: 0 | BK246: 0 | BL246: 0 | BM246: 0 | BN246: 0 | BO246: 0 | BP246: 0
C247: Depreciation Rate | I247: =I244/I243 -> 0 | J247: =J244/J243 -> 0 | K247: 0 | L247: 0 | M247: 0 | N247: 0 | O247: 0 | P247: 0 | Q247: 0 | R247: 0 | S247: 0 | T247: 0 | U247: 0 | V247: 0 | W247: 0 | X247: 0 | Y247: 0 | Z247: 0 | AA247: 0.08333333333 | AB247: 0.08333333333 | AC247: 0.08333333333 | AD247: 0.08333333333 | AE247: 0.08333333333 | AF247: 0.08333333333 | AG247: 0.08333333333 | AH247: 0.08333333333 | AI247: 0.08333333333 | AJ247: 0.08333333333 | AK247: 0.08333333333 | AL247: 0.08333333333 | AM247: 0 | AN247: 0 | AO247: 0 | AP247: 0 | AQ247: 0 | AR247: 0 | AS247: 0 | AT247: 0 | AU247: 0 | AV247: 0 | AW247: 0 | AX247: 0 | AY247: 0 | AZ247: 0 | BA247: 0 | BB247: 0 | BC247: 0 | BD247: 0 | BE247: 0 | BF247: 0 | BG247: 0 | BH247: 0 | BI247: 0 | BJ247: 0 | BK247: 0 | BL247: 0 | BM247: 0 | BN247: 0 | BO247: 0 | BP247: 0
B249: EBIT | I249: =I236-I244 -> 0 | J249: 0 | K249: 0 | L249: 0 | M249: 0 | N249: 0 | O249: 0 | P249: 0 | Q249: 0 | R249: 0 | S249: 0 | T249: 0 | U249: 0 | V249: 0 | W249: 0 | X249: 0 | Y249: 0 | Z249: 0 | AA249: -7036.258734 | AB249: -6812.317242 | AC249: -6583.89692 | AD249: -6350.908192 | AE249: -6113.259689 | AF249: -6123.130869 | AG249: -5888.769334 | AH249: -5649.893104 | AI249: -5406.41568 | AJ249: -5158.248917 | AK249: -6008.996793 | AL249: -5786.412823 | AM249: 12673.43049 | AN249: 12903.93239 | AO249: =AO236-AO244 -> 13138.49313 | AP249: 12769.10157 | AQ249: 13159.94676 | AR249: 13558.60886 | AS249: 13965.2442 | AT249: 14380.01225 | AU249: 14803.07566 | AV249: 15234.60033 | AW249: 15674.7555 | AX249: 16123.71377 | AY249: 16581.65121 | AZ249: 17048.7474 | BA249: 17525.18551 | BB249: 18011.15238 | BC249: 18506.83859 | BD249: 19012.43853 | BE249: 0 | BF249: 0 | BG249: 0 | BH249: 0 | BI249: 0 | BJ249: 0 | BK249: 0 | BL249: 0 | BM249: 0 | BN249: 0 | BO249: 0 | BP249: 0
B250: Taxes | F250: =$F$62 -> 0 | I250: =I249*$F$250 -> 0 | J250: 0 | K250: 0 | L250: 0 | M250: 0 | N250: 0 | O250: 0 | P250: 0 | Q250: 0 | R250: 0 | S250: 0 | T250: 0 | U250: 0 | V250: 0 | W250: 0 | X250: 0 | Y250: 0 | Z250: 0 | AA250: 0 | AB250: 0 | AC250: 0 | AD250: 0 | AE250: 0 | AF250: 0 | AG250: 0 | AH250: 0 | AI250: 0 | AJ250: 0 | AK250: 0 | AL250: 0 | AM250: 0 | AN250: 0 | AO250: =AO249*$F$250 -> 0 | AP250: 0 | AQ250: 0 | AR250: 0 | AS250: 0 | AT250: 0 | AU250: 0 | AV250: 0 | AW250: 0 | AX250: 0 | AY250: 0 | AZ250: 0 | BA250: 0 | BB250: 0 | BC250: 0 | BD250: 0 | BE250: 0 | BF250: 0 | BG250: 0 | BH250: 0 | BI250: 0 | BJ250: 0 | BK250: 0 | BL250: 0 | BM250: 0 | BN250: 0 | BO250: 0 | BP250: 0
B252: After taxes Cash Flow | H252: =H238-H250 -> -1e-07 | I252: -12155.55556 | J252: -12155.55556 | K252: -12155.55556 | L252: -12155.55556 | M252: -12155.55556 | N252: -12155.55556 | O252: -12155.55556 | P252: -12155.55556 | Q252: -12155.55556 | R252: -12155.55556 | S252: -12155.55556 | T252: -12155.55556 | U252: -12155.55556 | V252: -12155.55556 | W252: -12155.55556 | X252: -12155.55556 | Y252: -12155.55556 | Z252: -12155.55556 | AA252: 11197.0746 | AB252: 11421.01609 | AC252: 11649.43641 | AD252: 11882.42514 | AE252: 12120.07364 | AF252: 12110.20246 | AG252: 12344.564 | AH252: 12583.44023 | AI252: 12826.91765 | AJ252: 13075.08442 | AK252: 12224.33654 | AL252: 12446.92051 | AM252: 12673.43049 | AN252: =AN238-AN250 -> 12903.93239 | AO252: 13138.49313 | AP252: 12769.10157 | AQ252: 13159.94676 | AR252: 13558.60886 | AS252: 13965.2442 | AT252: 14380.01225 | AU252: 14803.07566 | AV252: 15234.60033 | AW252: 15674.7555 | AX252: 16123.71377 | AY252: 16581.65121 | AZ252: 17048.7474 | BA252: 17525.18551 | BB252: 18011.15238 | BC252: 18506.83859 | BD252: 19012.43853 | BE252: 0 | BF252: 0 | BG252: 0 | BH252: 0 | BI252: 0 | BJ252: 0 | BK252: 0 | BL252: 0 | BM252: 0 | BN252: 0 | BO252: 0 | BP252: 0
B253: After Tax project IRR | F253: =XIRR(I252:BP252,I8:BP8) -> 0.04191755354
A255: Project Finance - Summary Sources and Uses and Debt Size
B256: Uses and sources of funds
C257: Uses of funds
D258: EPC Cost | H258: =I216 -> 218800
D259: Development fees | H259: =J259*1000 -> 0 | J259: 0
D260: Development costs
D261: IDC | H261: =I261 -> 6329.751483 | I261: ='Parallel Model'!H293 -> 6329.751483 | J261: =SUM(I282:AM282) -> 6329.751483
D262: Up-front fees | H262: =I262 -> 1865.733299 | I262: ='Parallel Model'!H294 -> 1865.733299 | J262: =SUM(I283:AM283) -> 1865.733299
D263: Commitment Fees | H263: =I263 -> 987.7262621 | I263: ='Parallel Model'!H295 -> 987.7262621 | J263: =SUM(I284:AM284) -> 987.7262621
D264: DSRA | H264: =I264 -> 5598.545609 | I264: ='Parallel Model'!H297 -> 5598.545609 | J264: =SUM(285:285) -> 5598.545609
D265: Total | H265: =SUM(H258:H264) -> 233581.7567
C267: Sources of funds | F267: Method | H267: Applied
D268: Debt | F268: 2 | H268: =I268 -> 138716.2304 | I268: ='Parallel Model'!H310 -> 138716.2304 | J268: =H268/$H$270 -> 0.5938658584 | M268: =E422 -> 138716.2304 | N268: =H265*O268 -> 186865.4053 | O268: =F67 -> 0.8
D269: Equity | H269: =H265-H268 -> 94865.52623 | J269: =H269/H270 -> 0.4061341416
D270: Total | H270: =SUM(H268:H269) -> 233581.7567
D272: Up-Front Equity | F272: =F95 -> 0 | H272: =H269*F272 -> 0
... 304 more rows

Sheet Parallel Model
A1: Consistent Time Line from Model
B2: Press CNTL, Alt, F9 to Re-calc | F2: Instructions | I2: Input Check | J2: FALSE | L2: =I516 -> 0.02339372337
AA3: a | AB3: =AB445-AB452 -> -1.147389412e-06 | AC3: =AC445-AC452 -> -1.056323526e-06 | AD3: -9.645882528e-07
A4: Section 1: Get Time and Operating Inputs for the Parallel Model from Your Financial Model
B5: Start of Selection - First Line is Date | E5: Create Dates | J5: ='Financial Model'!I8 -> 2019-01-01 | K5: ='Financial Model'!J8 -> 2019-02-01 | L5: ='Financial Model'!K8 -> 2019-03-01 | M5: ='Financial Model'!L8 -> 2019-04-01 | N5: ='Financial Model'!M8 -> 2019-05-01 | O5: ='Financial Model'!N8 -> 2019-06-01 | P5: ='Financial Model'!O8 -> 2019-07-01 | Q5: ='Financial Model'!P8 -> 2019-08-01 | R5: ='Financial Model'!Q8 -> 2019-09-01 | S5: ='Financial Model'!R8 -> 2019-10-01 | T5: ='Financial Model'!S8 -> 2019-11-01 | U5: ='Financial Model'!T8 -> 2019-12-01 | V5: ='Financial Model'!U8 -> 2020-01-01 | W5: ='Financial Model'!V8 -> 2020-02-01 | X5: ='Financial Model'!W8 -> 2020-03-01 | Y5: ='Financial Model'!X8 -> 2020-04-01 | Z5: ='Financial Model'!Y8 -> 2020-05-01 | AA5: ='Financial Model'!Z8 -> 2020-06-01 | AB5: ='Financial Model'!AA8 -> 2021-06-01 | AC5: ='Financial Model'!AB8 -> 2022-06-01 | AD5: ='Financial Model'!AC8 -> 2023-06-01 | AE5: ='Financial Model'!AD8 -> 2024-06-01 | AF5: ='Financial Model'!AE8 -> 2025-06-01 | AG5: ='Financial Model'!AF8 -> 2026-06-01 | AH5: ='Financial Model'!AG8 -> 2027-06-01 | AI5: ='Financial Model'!AH8 -> 2028-06-01 | AJ5: ='Financial Model'!AI8 -> 2029-06-01 | AK5: ='Financial Model'!AJ8 -> 2030-06-01 | AL5: ='Financial Model'!AK8 -> 2031-06-01 | AM5: ='Financial Model'!AL8 -> 2032-06-01 | AN5: ='Financial Model'!AM8 -> 2033-06-01 | AO5: ='Financial Model'!AN8 -> 2034-06-01 | AP5: ='Financial Model'!AO8 -> 2035-06-01 | AQ5: ='Financial Model'!AP8 -> 2036-06-01 | AR5: ='Financial Model'!AQ8 -> 2037-06-01 | AS5: ='Financial Model'!AR8 -> 2038-06-01 | AT5: ='Financial Model'!AS8 -> 2039-06-01 | AU5: ='Financial Model'!AT8 -> 2040-06-01 | AV5: ='Financial Model'!AU8 -> 2041-06-01 | AW5: ='Financial Model'!AV8 -> 2042-06-01 | AX5: ='Financial Model'!AW8 -> 2043-06-01 | AY5: ='Financial Model'!AX8 -> 2044-06-01 | AZ5: ='Financial Model'!AY8 -> 2045-06-01 | BA5: ='Financial Model'!AZ8 -> 2046-06-01 | BB5: ='Financial Model'!BA8 -> 2047-06-01 | BC5: ='Financial Model'!BB8 -> 2048-06-01 | BD5: ='Financial Model'!BC8 -> 2049-06-01 | BE5: ='Financial Model'!BD8 -> 2050-06-01 | BF5: ='Financial Model'!BE8 -> 2051-06-01 | BG5: ='Financial Model'!BF8 -> 2052-06-01 | BH5: ='Financial Model'!BG8 -> 2053-06-01 | BI5: ='Financial Model'!BH8 -> 2054-06-01 | BJ5: ='Financial Model'!BI8 -> 2055-06-01 | BK5: ='Financial Model'!BJ8 -> 2056-06-01 | BL5: ='Financial Model'!BK8 -> 2057-06-01 | BM5: ='Financial Model'!BL8 -> 2058-06-01 | BN5: ='Financial Model'!BM8 -> 2059-06-01 | BO5: ='Financial Model'!BN8 -> 2060-06-01 | BP5: ='Financial Model'!BO8 -> 2061-06-01 | BQ5: ='Financial Model'!BP8 -> 2062-06-01
C6: Development Period (these can be 1's and 0's) | J6: TRUE | K6: FALSE | L6: FALSE | M6: FALSE | N6: FALSE | O6: FALSE | P6: FALSE | Q6: FALSE | R6: FALSE | S6: FALSE | T6: FALSE | U6: FALSE | V6: FALSE | W6: FALSE | X6: FALSE | Y6: FALSE | Z6: FALSE | AA6: FALSE | AB6: FALSE | AC6: FALSE | AD6: FALSE | AE6: FALSE | AF6: FALSE | AG6: FALSE | AH6: FALSE | AI6: FALSE | AJ6: FALSE | AK6: FALSE | AL6: FALSE | AM6: FALSE | AN6: FALSE | AO6: FALSE | AP6: FALSE | AQ6: FALSE | AR6: FALSE | AS6: FALSE | AT6: FALSE | AU6: FALSE | AV6: FALSE | AW6: FALSE | AX6: FALSE | AY6: FALSE | AZ6: FALSE | BA6: FALSE | BB6: FALSE | BC6: FALSE | BD6: FALSE | BE6: FALSE | BF6: FALSE | BG6: FALSE | BH6: FALSE | BI6: FALSE | BJ6: FALSE | BK6: FALSE | BL6: FALSE | BM6: FALSE | BN6: FALSE | BO6: FALSE | BP6: FALSE | BQ6: FALSE
C7: Construction Period | J7: ='Financial Model'!I6*1 -> 1 | K7: ='Financial Model'!J6*1 -> 1 | L7: ='Financial Model'!K6*1 -> 1 | M7: ='Financial Model'!L6*1 -> 1 | N7: ='Financial Model'!M6*1 -> 1 | O7: ='Financial Model'!N6*1 -> 1 | P7: ='Financial Model'!O6*1 -> 1 | Q7: ='Financial Model'!P6*1 -> 1 | R7: ='Financial Model'!Q6*1 -> 1 | S7: ='Financial Model'!R6*1 -> 1 | T7: ='Financial Model'!S6*1 -> 1 | U7: ='Financial Model'!T6*1 -> 1 | V7: ='Financial Model'!U6*1 -> 1 | W7: ='Financial Model'!V6*1 -> 1 | X7: ='Financial Model'!W6*1 -> 1 | Y7: ='Financial Model'!X6*1 -> 1 | Z7: ='Financial Model'!Y6*1 -> 1 | AA7: ='Financial Model'!Z6*1 -> 1 | AB7: ='Financial Model'!AA6*1 -> 0 | AC7: ='Financial Model'!AB6*1 -> 0 | AD7: ='Financial Model'!AC6*1 -> 0 | AE7: ='Financial Model'!AD6*1 -> 0 | AF7: ='Financial Model'!AE6*1 -> 0 | AG7: ='Financial Model'!AF6*1 -> 0 | AH7: ='Financial Model'!AG6*1 -> 0 | AI7: ='Financial Model'!AH6*1 -> 0 | AJ7: ='Financial Model'!AI6*1 -> 0 | AK7: ='Financial Model'!AJ6*1 -> 0 | AL7: ='Financial Model'!AK6*1 -> 0 | AM7: ='Financial Model'!AL6*1 -> 0 | AN7: ='Financial Model'!AM6*1 -> 0 | AO7: ='Financial Model'!AN6*1 -> 0 | AP7: ='Financial Model'!AO6*1 -> 0 | AQ7: ='Financial Model'!AP6*1 -> 0 | AR7: ='Financial Model'!AQ6*1 -> 0 | AS7: ='Financial Model'!AR6*1 -> 0 | AT7: ='Financial Model'!AS6*1 -> 0 | AU7: ='Financial Model'!AT6*1 -> 0 | AV7: ='Financial Model'!AU6*1 -> 0 | AW7: ='Financial Model'!AV6*1 -> 0 | AX7: ='Financial Model'!AW6*1 -> 0 | AY7: ='Financial Model'!AX6*1 -> 0 | AZ7: ='Financial Model'!AY6*1 -> 0 | BA7: ='Financial Model'!AZ6*1 -> 0 | BB7: ='Financial Model'!BA6*1 -> 0 | BC7: ='Financial Model'!BB6*1 -> 0 | BD7: ='Financial Model'!BC6*1 -> 0 | BE7: ='Financial Model'!BD6*1 -> 0 | BF7: ='Financial Model'!BE6*1 -> 0 | BG7: ='Financial Model'!BF6*1 -> 0 | BH7: ='Financial Model'!BG6*1 -> 0 | BI7: ='Financial Model'!BH6*1 -> 0 | BJ7: ='Financial Model'!BI6*1 -> 0 | BK7: ='Financial Model'!BJ6*1 -> 0 | BL7: ='Financial Model'!BK6*1 -> 0 | BM7: ='Financial Model'!BL6*1 -> 0 | BN7: ='Financial Model'!BM6*1 -> 0 | BO7: ='Financial Model'!BN6*1 -> 0 | BP7: ='Financial Model'!BO6*1 -> 0 | BQ7: ='Financial Model'!BP6*1 -> 0
C8: Operation Period | J8: ='Financial Model'!I9*1 -> 0 | K8: ='Financial Model'!J9*1 -> 0 | L8: ='Financial Model'!K9*1 -> 0 | M8: ='Financial Model'!L9*1 -> 0 | N8: ='Financial Model'!M9*1 -> 0 | O8: ='Financial Model'!N9*1 -> 0 | P8: ='Financial Model'!O9*1 -> 0 | Q8: ='Financial Model'!P9*1 -> 0 | R8: ='Financial Model'!Q9*1 -> 0 | S8: ='Financial Model'!R9*1 -> 0 | T8: ='Financial Model'!S9*1 -> 0 | U8: ='Financial Model'!T9*1 -> 0 | V8: ='Financial Model'!U9*1 -> 0 | W8: ='Financial Model'!V9*1 -> 0 | X8: ='Financial Model'!W9*1 -> 0 | Y8: ='Financial Model'!X9*1 -> 0 | Z8: ='Financial Model'!Y9*1 -> 0 | AA8: ='Financial Model'!Z9*1 -> 0 | AB8: ='Financial Model'!AA9*1 -> 1 | AC8: ='Financial Model'!AB9*1 -> 1 | AD8: ='Financial Model'!AC9*1 -> 1 | AE8: ='Financial Model'!AD9*1 -> 1 | AF8: ='Financial Model'!AE9*1 -> 1 | AG8: ='Financial Model'!AF9*1 -> 1 | AH8: ='Financial Model'!AG9*1 -> 1 | AI8: ='Financial Model'!AH9*1 -> 1 | AJ8: ='Financial Model'!AI9*1 -> 1 | AK8: ='Financial Model'!AJ9*1 -> 1 | AL8: ='Financial Model'!AK9*1 -> 1 | AM8: ='Financial Model'!AL9*1 -> 1 | AN8: ='Financial Model'!AM9*1 -> 1 | AO8: ='Financial Model'!AN9*1 -> 1 | AP8: ='Financial Model'!AO9*1 -> 1 | AQ8: ='Financial Model'!AP9*1 -> 1 | AR8: ='Financial Model'!AQ9*1 -> 1 | AS8: ='Financial Model'!AR9*1 -> 1 | AT8: ='Financial Model'!AS9*1 -> 1 | AU8: ='Financial Model'!AT9*1 -> 1 | AV8: ='Financial Model'!AU9*1 -> 1 | AW8: ='Financial Model'!AV9*1 -> 1 | AX8: ='Financial Model'!AW9*1 -> 1 | AY8: ='Financial Model'!AX9*1 -> 1 | AZ8: ='Financial Model'!AY9*1 -> 1 | BA8: ='Financial Model'!AZ9*1 -> 1 | BB8: ='Financial Model'!BA9*1 -> 1 | BC8: ='Financial Model'!BB9*1 -> 1 | BD8: ='Financial Model'!BC9*1 -> 1 | BE8: ='Financial Model'!BD9*1 -> 1 | BF8: ='Financial Model'!BE9*1 -> 0 | BG8: ='Financial Model'!BF9*1 -> 0 | BH8: ='Financial Model'!BG9*1 -> 0 | BI8: ='Financial Model'!BH9*1 -> 0 | BJ8: ='Financial Model'!BI9*1 -> 0 | BK8: ='Financial Model'!BJ9*1 -> 0 | BL8: ='Financial Model'!BK9*1 -> 0 | BM8: ='Financial Model'!BL9*1 -> 0 | BN8: ='Financial Model'!BM9*1 -> 0 | BO8: ='Financial Model'!BN9*1 -> 0 | BP8: ='Financial Model'!BO9*1 -> 0 | BQ8: ='Financial Model'!BP9*1 -> 0
C10: Capital Expenditures (Physical from Model; i.e. no IDC, DSRA Fees, Development Fees etc.) | J10: ='Financial Model'!I218 -> 12155.55556 | K10: ='Financial Model'!J218 -> 12155.55556 | L10: ='Financial Model'!K218 -> 12155.55556 | M10: ='Financial Model'!L218 -> 12155.55556 | N10: ='Financial Model'!M218 -> 12155.55556 | O10: ='Financial Model'!N218 -> 12155.55556 | P10: ='Financial Model'!O218 -> 12155.55556 | Q10: ='Financial Model'!P218 -> 12155.55556 | R10: ='Financial Model'!Q218 -> 12155.55556 | S10: ='Financial Model'!R218 -> 12155.55556 | T10: ='Financial Model'!S218 -> 12155.55556 | U10: ='Financial Model'!T218 -> 12155.55556 | V10: ='Financial Model'!U218 -> 12155.55556 | W10: ='Financial Model'!V218 -> 12155.55556 | X10: ='Financial Model'!W218 -> 12155.55556 | Y10: ='Financial Model'!X218 -> 12155.55556 | Z10: ='Financial Model'!Y218 -> 12155.55556 | AA10: ='Financial Model'!Z218 -> 12155.55556 | AB10: ='Financial Model'!AA218 -> 0 | AC10: ='Financial Model'!AB218 -> 0 | AD10: ='Financial Model'!AC218 -> 0 | AE10: ='Financial Model'!AD218 -> 0 | AF10: ='Financial Model'!AE218 -> 0 | AG10: ='Financial Model'!AF218 -> 0 | AH10: ='Financial Model'!AG218 -> 0 | AI10: ='Financial Model'!AH218 -> 0 | AJ10: ='Financial Model'!AI218 -> 0 | AK10: ='Financial Model'!AJ218 -> 0 | AL10: ='Financial Model'!AK218 -> 0 | AM10: ='Financial Model'!AL218 -> 0 | AN10: ='Financial Model'!AM218 -> 0 | AO10: ='Financial Model'!AN218 -> 0 | AP10: ='Financial Model'!AO218 -> 0 | AQ10: ='Financial Model'!AP218 -> 0 | AR10: ='Financial Model'!AQ218 -> 0 | AS10: ='Financial Model'!AR218 -> 0 | AT10: ='Financial Model'!AS218 -> 0 | AU10: ='Financial Model'!AT218 -> 0 | AV10: ='Financial Model'!AU218 -> 0 | AW10: ='Financial Model'!AV218 -> 0 | AX10: ='Financial Model'!AW218 -> 0 | AY10: ='Financial Model'!AX218 -> 0 | AZ10: ='Financial Model'!AY218 -> 0 | BA10: ='Financial Model'!AZ218 -> 0 | BB10: ='Financial Model'!BA218 -> 0 | BC10: ='Financial Model'!BB218 -> 0 | BD10: ='Financial Model'!BC218 -> 0 | BE10: ='Financial Model'!BD218 -> 0 | BF10: ='Financial Model'!BE218 -> 0 | BG10: ='Financial Model'!BF218 -> 0 | BH10: ='Financial Model'!BG218 -> 0 | BI10: ='Financial Model'!BH218 -> 0 | BJ10: ='Financial Model'!BI218 -> 0 | BK10: ='Financial Model'!BJ218 -> 0 | BL10: ='Financial Model'!BK218 -> 0 | BM10: ='Financial Model'!BL218 -> 0 | BN10: ='Financial Model'!BM218 -> 0 | BO10: ='Financial Model'!BN218 -> 0 | BP10: ='Financial Model'!BO218 -> 0 | BQ10: ='Financial Model'!BP218 -> 0
C11: EBITDA from Model | J11: ='Financial Model'!I236 -> 0 | K11: ='Financial Model'!J236 -> 0 | L11: ='Financial Model'!K236 -> 0 | M11: ='Financial Model'!L236 -> 0 | N11: ='Financial Model'!M236 -> 0 | O11: ='Financial Model'!N236 -> 0 | P11: ='Financial Model'!O236 -> 0 | Q11: ='Financial Model'!P236 -> 0 | R11: ='Financial Model'!Q236 -> 0 | S11: ='Financial Model'!R236 -> 0 | T11: ='Financial Model'!S236 -> 0 | U11: ='Financial Model'!T236 -> 0 | V11: ='Financial Model'!U236 -> 0 | W11: ='Financial Model'!V236 -> 0 | X11: ='Financial Model'!W236 -> 0 | Y11: ='Financial Model'!X236 -> 0 | Z11: ='Financial Model'!Y236 -> 0 | AA11: ='Financial Model'!Z236 -> 0 | AB11: ='Financial Model'!AA236 -> 11197.0746 | AC11: ='Financial Model'!AB236 -> 11421.01609 | AD11: ='Financial Model'!AC236 -> 11649.43641 | AE11: ='Financial Model'!AD236 -> 11882.42514 | AF11: ='Financial Model'!AE236 -> 12120.07364 | AG11: ='Financial Model'!AF236 -> 12110.20246 | AH11: ='Financial Model'!AG236 -> 12344.564 | AI11: ='Financial Model'!AH236 -> 12583.44023 | AJ11: ='Financial Model'!AI236 -> 12826.91765 | AK11: ='Financial Model'!AJ236 -> 13075.08442 | AL11: ='Financial Model'!AK236 -> 12224.33654 | AM11: ='Financial Model'!AL236 -> 12446.92051 | AN11: ='Financial Model'!AM236 -> 12673.43049 | AO11: ='Financial Model'!AN236 -> 12903.93239 | AP11: ='Financial Model'!AO236 -> 13138.49313 | AQ11: ='Financial Model'!AP236 -> 12769.10157 | AR11: ='Financial Model'!AQ236 -> 13159.94676 | AS11: ='Financial Model'!AR236 -> 13558.60886 | AT11: ='Financial Model'!AS236 -> 13965.2442 | AU11: ='Financial Model'!AT236 -> 14380.01225 | AV11: ='Financial Model'!AU236 -> 14803.07566 | AW11: ='Financial Model'!AV236 -> 15234.60033 | AX11: ='Financial Model'!AW236 -> 15674.7555 | AY11: ='Financial Model'!AX236 -> 16123.71377 | AZ11: ='Financial Model'!AY236 -> 16581.65121 | BA11: ='Financial Model'!AZ236 -> 17048.7474 | BB11: ='Financial Model'!BA236 -> 17525.18551 | BC11: ='Financial Model'!BB236 -> 18011.15238 | BD11: ='Financial Model'!BC236 -> 18506.83859 | BE11: ='Financial Model'!BD236 -> 19012.43853 | BF11: ='Financial Model'!BE236 -> 0 | BG11: ='Financial Model'!BF236 -> 0 | BH11: ='Financial Model'!BG236 -> 0 | BI11: ='Financial Model'!BH236 -> 0 | BJ11: ='Financial Model'!BI236 -> 0 | BK11: ='Financial Model'!BJ236 -> 0 | BL11: ='Financial Model'!BK236 -> 0 | BM11: ='Financial Model'!BL236 -> 0 | BN11: ='Financial Model'!BM236 -> 0 | BO11: ='Financial Model'!BN236 -> 0 | BP11: ='Financial Model'!BO236 -> 0 | BQ11: ='Financial Model'!BP236 -> 0
C12: Working Capital Change from Model | J12: 0 | K12: 0 | L12: 0 | M12: 0 | N12: 0 | O12: 0 | P12: 0 | Q12: 0 | R12: 0 | S12: 0 | T12: 0 | U12: 0 | V12: 0 | W12: 0 | X12: 0 | Y12: 0 | Z12: 0 | AA12: 0 | AB12: 0 | AC12: 0 | AD12: 0 | AE12: 0 | AF12: 0 | AG12: 0 | AH12: 0 | AI12: 0 | AJ12: 0 | AK12: 0 | AL12: 0 | AM12: 0 | AN12: 0 | AO12: 0 | AP12: 0 | AQ12: 0 | AR12: 0 | AS12: 0 | AT12: 0 | AU12: 0 | AV12: 0 | AW12: 0 | AX12: 0 | AY12: 0 | AZ12: 0 | BA12: 0 | BB12: 0 | BC12: 0 | BD12: 0 | BE12: 0 | BF12: 0 | BG12: 0 | BH12: 0 | BI12: 0 | BJ12: 0 | BK12: 0 | BL12: 0 | BM12: 0 | BN12: 0 | BO12: 0 | BP12: 0 | BQ12: 0
C13: Tax Depreciation Expense (Physical Cap Exp; i.e. excl IDC, Fees etc.) | J13: ='Financial Model'!I244 -> 0 | K13: ='Financial Model'!J244 -> 0 | L13: ='Financial Model'!K244 -> 0 | M13: ='Financial Model'!L244 -> 0 | N13: ='Financial Model'!M244 -> 0 | O13: ='Financial Model'!N244 -> 0 | P13: ='Financial Model'!O244 -> 0 | Q13: ='Financial Model'!P244 -> 0 | R13: ='Financial Model'!Q244 -> 0 | S13: ='Financial Model'!R244 -> 0 | T13: ='Financial Model'!S244 -> 0 | U13: ='Financial Model'!T244 -> 0 | V13: ='Financial Model'!U244 -> 0 | W13: ='Financial Model'!V244 -> 0 | X13: ='Financial Model'!W244 -> 0 | Y13: ='Financial Model'!X244 -> 0 | Z13: ='Financial Model'!Y244 -> 0 | AA13: ='Financial Model'!Z244 -> 0 | AB13: ='Financial Model'!AA244 -> 18233.33333 | AC13: ='Financial Model'!AB244 -> 18233.33333 | AD13: ='Financial Model'!AC244 -> 18233.33333 | AE13: ='Financial Model'!AD244 -> 18233.33333 | AF13: ='Financial Model'!AE244 -> 18233.33333 | AG13: ='Financial Model'!AF244 -> 18233.33333 | AH13: ='Financial Model'!AG244 -> 18233.33333 | AI13: ='Financial Model'!AH244 -> 18233.33333 | AJ13: ='Financial Model'!AI244 -> 18233.33333 | AK13: ='Financial Model'!AJ244 -> 18233.33333 | AL13: ='Financial Model'!AK244 -> 18233.33333 | AM13: ='Financial Model'!AL244 -> 18233.33333 | AN13: ='Financial Model'!AM244 -> 0 | AO13: ='Financial Model'!AN244 -> 0 | AP13: ='Financial Model'!AO244 -> 0 | AQ13: ='Financial Model'!AP244 -> 0 | AR13: ='Financial Model'!AQ244 -> 0 | AS13: ='Financial Model'!AR244 -> 0 | AT13: ='Financial Model'!AS244 -> 0 | AU13: ='Financial Model'!AT244 -> 0 | AV13: ='Financial Model'!AU244 -> 0 | AW13: ='Financial Model'!AV244 -> 0 | AX13: ='Financial Model'!AW244 -> 0 | AY13: ='Financial Model'!AX244 -> 0 | AZ13: ='Financial Model'!AY244 -> 0 | BA13: ='Financial Model'!AZ244 -> 0 | BB13: ='Financial Model'!BA244 -> 0 | BC13: ='Financial Model'!BB244 -> 0 | BD13: ='Financial Model'!BC244 -> 0 | BE13: ='Financial Model'!BD244 -> 0 | BF13: ='Financial Model'!BE244 -> 0 | BG13: ='Financial Model'!BF244 -> 0 | BH13: ='Financial Model'!BG244 -> 0 | BI13: ='Financial Model'!BH244 -> 0 | BJ13: ='Financial Model'!BI244 -> 0 | BK13: ='Financial Model'!BJ244 -> 0 | BL13: ='Financial Model'!BK244 -> 0 | BM13: ='Financial Model'!BL244 -> 0 | BN13: ='Financial Model'!BM244 -> 0 | BO13: ='Financial Model'!BN244 -> 0 | BP13: ='Financial Model'!BO244 -> 0 | BQ13: ='Financial Model'!BP244 -> 0
C14: Tax Rate (Time Based) | J14: ='Financial Model'!$F$250 -> 0 | K14: ='Financial Model'!$F$250 -> 0 | L14: ='Financial Model'!$F$250 -> 0 | M14: ='Financial Model'!$F$250 -> 0 | N14: ='Financial Model'!$F$250 -> 0 | O14: ='Financial Model'!$F$250 -> 0 | P14: ='Financial Model'!$F$250 -> 0 | Q14: ='Financial Model'!$F$250 -> 0 | R14: ='Financial Model'!$F$250 -> 0 | S14: ='Financial Model'!$F$250 -> 0 | T14: ='Financial Model'!$F$250 -> 0 | U14: ='Financial Model'!$F$250 -> 0 | V14: ='Financial Model'!$F$250 -> 0 | W14: ='Financial Model'!$F$250 -> 0 | X14: ='Financial Model'!$F$250 -> 0 | Y14: ='Financial Model'!$F$250 -> 0 | Z14: ='Financial Model'!$F$250 -> 0 | AA14: ='Financial Model'!$F$250 -> 0 | AB14: ='Financial Model'!$F$250 -> 0 | AC14: ='Financial Model'!$F$250 -> 0 | AD14: ='Financial Model'!$F$250 -> 0 | AE14: ='Financial Model'!$F$250 -> 0 | AF14: ='Financial Model'!$F$250 -> 0 | AG14: ='Financial Model'!$F$250 -> 0 | AH14: ='Financial Model'!$F$250 -> 0 | AI14: ='Financial Model'!$F$250 -> 0 | AJ14: ='Financial Model'!$F$250 -> 0 | AK14: ='Financial Model'!$F$250 -> 0 | AL14: ='Financial Model'!$F$250 -> 0 | AM14: ='Financial Model'!$F$250 -> 0 | AN14: ='Financial Model'!$F$250 -> 0 | AO14: ='Financial Model'!$F$250 -> 0 | AP14: ='Financial Model'!$F$250 -> 0 | AQ14: ='Financial Model'!$F$250 -> 0 | AR14: ='Financial Model'!$F$250 -> 0 | AS14: ='Financial Model'!$F$250 -> 0 | AT14: ='Financial Model'!$F$250 -> 0 | AU14: ='Financial Model'!$F$250 -> 0 | AV14: ='Financial Model'!$F$250 -> 0 | AW14: ='Financial Model'!$F$250 -> 0 | AX14: ='Financial Model'!$F$250 -> 0 | AY14: ='Financial Model'!$F$250 -> 0 | AZ14: ='Financial Model'!$F$250 -> 0 | BA14: ='Financial Model'!$F$250 -> 0 | BB14: ='Financial Model'!$F$250 -> 0 | BC14: ='Financial Model'!$F$250 -> 0 | BD14: ='Financial Model'!$F$250 -> 0 | BE14: ='Financial Model'!$F$250 -> 0 | BF14: ='Financial Model'!$F$250 -> 0 | BG14: ='Financial Model'!$F$250 -> 0 | BH14: ='Financial Model'!$F$250 -> 0 | BI14: ='Financial Model'!$F$250 -> 0 | BJ14: ='Financial Model'!$F$250 -> 0 | BK14: ='Financial Model'!$F$250 -> 0 | BL14: ='Financial Model'!$F$250 -> 0 | BM14: ='Financial Model'!$F$250 -> 0 | BN14: ='Financial Model'!$F$250 -> 0 | BO14: ='Financial Model'!$F$250 -> 0 | BP14: ='Financial Model'!$F$250 -> 0 | BQ14: ='Financial Model'!$F$250 -> 0
C15: Capital Expenditures After COD | J15: 0 | K15: 0 | L15: 0 | M15: 0 | N15: 0 | O15: 0 | P15: 0 | Q15: 0 | R15: 0 | S15: 0 | T15: 0 | U15: 0 | V15: 0 | W15: 0 | X15: 0 | Y15: 0 | Z15: 0 | AA15: 0 | AB15: 0 | AC15: 0 | AD15: 0 | AE15: 0 | AF15: 0 | AG15: 0 | AH15: 0 | AI15: 0 | AJ15: 0 | AK15: 0 | AL15: 0 | AM15: 0 | AN15: 0 | AO15: 0 | AP15: 0 | AQ15: 0 | AR15: 0 | AS15: 0 | AT15: 0 | AU15: 0 | AV15: 0 | AW15: 0 | AX15: 0 | AY15: 0 | AZ15: 0 | BA15: 0 | BB15: 0 | BC15: 0 | BD15: 0 | BE15: 0 | BF15: 0 | BG15: 0 | BH15: 0 | BI15: 0 | BJ15: 0 | BK15: 0 | BL15: 0 | BM15: 0 | BN15: 0 | BO15: 0 | BP15: 0 | BQ15: 0
C16: Periods in Accumulating Tax (1 is for every period; could be quarterly with 2 or 4 etc) | J16: 1
C17: Apply Same Depreciation Rate to Financing Costs (IDC and Fees) | J17: TRUE
C18: Zero Tax Depreciation for Amortisation of Financing Costs | J18: FALSE
C19: Debt Balance Percent for Finance Cost Amortisation | J19: FALSE
C20: Maximum Interest Limit as Percent of Taxable EBIT | J20: 1
C21: Apply NOL (Not True Sets Tax to Zero but Does Not Accumulate) | J21: TRUE
A24: Start of General Debt Options Block Inputs Block (Start Selection Here and Select Entire Line)
C25: 2. Development Fee Percent (If zero use amount from below) | J25: 0
C26: 3. Development Fee Amount (If zero use percent) | J26: 0
C27: 4. Up-Front Equity Percent (Remainder is Pro-Rata) | J27: ='Financial Model'!F272 -> 0
C28: 5. Senior Debt Sizing Option (1-4) 1-Fix;2-% Cap;3-DSCR;4-Min | J28: =Debt_Method -> 1
C29: 6. Senior Debt Fixed Amount for Option 1 (Currency in Model) | J29: ='Financial Model'!F76 -> 138716.2304
C30: 7. Sr. Debt as Percent of Project Cost for Option 2 | J30: ='Financial Model'!F67 -> 0.8
C31: 8. DSCR for Senior Debt Sizing and Sculpting Debt | J31: ='Financial Model'!F71 -> 1 | K31: =J31 -> 1 | L31: =K31 -> 1 | M31: 1 | N31: 1 | O31: 1 | P31: 1 | Q31: 1 | R31: 1 | S31: 1 | T31: 1 | U31: 1 | V31: 1 | W31: 1 | X31: 1 | Y31: 1 | Z31: 1
C32: 9. Include Mezzanine Debt (Boolean) | J32: TRUE
C33: 10. Mezzanine Debt Sizing Option (1-4) 1-Fix;2-% Cap;3-DSCR;4-Min | J33: 1
C34: 11. Fixed Amount of Mezzanine Debt Input | J34: 0
C35: 12. Mezzanine Debt as Percent of Project Cost | J35: 0
C36: 13. Total DSCR for Sculpting including Mezzanine Debt (Scalar or Time Series) | J36: 0
C37: Mezzanine Interest Deductability Percent | J37: 1
C38: Include Mezzanine IDC in Project Cost (Boolean) | J38: TRUE
C39: Mezzanine Debt Draws as Pro-Rata Debt (Boolean) | J39: TRUE
C40: Include Shareholder Debt (Boolean) | J40: TRUE
C41: Shareholder Debt Sizing Option (1 or 2) 1-Fix;2-% Equity | J41: 1
C42: Shareholder Fixed Amount of Debt | J42: 0
C43: Shareholder Debt as % of Equity | J43: 0
C44: Include Shareholder Debt IDC in Project Cost | J44: FALSE
C45: Shareholder Interest Deductibility Percent | J45: 0
C46: DSRA Forward Periods (Percent if Annual) | J46: ='Financial Model'!F98 -> 0.5
C47: DSRA Letter of Credit (TRUE-L/C; NOT TRUE - Funded) | J47: FALSE
C48: Interest Income Rate for DSRA | J48: 0 | K48: 0 | L48: 0 | M48: 0 | N48: 0 | O48: 0 | P48: 0 | Q48: 0 | R48: 0 | S48: 0 | T48: 0 | U48: 0 | V48: 0 | W48: 0 | X48: 0 | Y48: 0 | Z48: 0 | AA48: 0 | AB48: 0 | AC48: 0 | AD48: 0 | AE48: 0 | AF48: 0 | AG48: 0 | AH48: 0 | AI48: 0 | AJ48: 0 | AK48: 0 | AL48: 0 | AM48: 0 | AN48: 0 | AO48: 0 | AP48: 0 | AQ48: 0 | AR48: 0 | AS48: 0 | AT48: 0 | AU48: 0 | AV48: 0 | AW48: 0 | AX48: 0 | AY48: 0 | AZ48: 0 | BA48: 0 | BB48: 0 | BC48: 0 | BD48: 0 | BE48: 0 | BF48: 0 | BG48: 0 | BH48: 0 | BI48: 0 | BJ48: 0 | BK48: 0 | BL48: 0 | BM48: 0 | BN48: 0 | BO48: 0 | BP48: 0 | BQ48: 0
C49: Fee Percent for DSRA Letter of Credit | J49: 0 | K49: 0 | L49: 0 | M49: 0 | N49: 0 | O49: 0 | P49: 0 | Q49: 0 | R49: 0 | S49: 0 | T49: 0 | U49: 0 | V49: 0 | W49: 0 | X49: 0 | Y49: 0 | Z49: 0 | AA49: 0 | AB49: 0 | AC49: 0 | AD49: 0 | AE49: 0 | AF49: 0 | AG49: 0 | AH49: 0 | AI49: 0 | AJ49: 0 | AK49: 0 | AL49: 0 | AM49: 0 | AN49: 0 | AO49: 0 | AP49: 0 | AQ49: 0 | AR49: 0 | AS49: 0 | AT49: 0 | AU49: 0 | AV49: 0 | AW49: 0 | AX49: 0 | AY49: 0 | AZ49: 0 | BA49: 0 | BB49: 0 | BC49: 0 | BD49: 0 | BE49: 0 | BF49: 0 | BG49: 0 | BH49: 0 | BI49: 0 | BJ49: 0 | BK49: 0 | BL49: 0 | BM49: 0 | BN49: 0 | BO49: 0 | BP49: 0 | BQ49: 0
C50: MRA Net Cash Flows | J50: 0 | K50: 0 | L50: 0 | M50: 0 | N50: 0 | O50: 0 | P50: 0 | Q50: 0 | R50: 0 | S50: 0 | T50: 0 | U50: 0 | V50: 0 | W50: 0 | X50: 0 | Y50: 0 | Z50: 0 | AA50: 0 | AB50: 0 | AC50: 0 | AD50: 0 | AE50: 0 | AF50: 0 | AG50: 0 | AH50: 0 | AI50: 0 | AJ50: 0 | AK50: 0 | AL50: 0 | AM50: 0 | AN50: 0 | AO50: 0 | AP50: 0 | AQ50: 0 | AR50: 0 | AS50: 0 | AT50: 0 | AU50: 0 | AV50: 0 | AW50: 0 | AX50: 0 | AY50: 0 | AZ50: 0 | BA50: 0 | BB50: 0 | BC50: 0 | BD50: 0 | BE50: 0 | BF50: 0 | BG50: 0 | BH50: 0 | BI50: 0 | BJ50: 0 | BK50: 0 | BL50: 0 | BM50: 0 | BN50: 0 | BO50: 0 | BP50: 0 | BQ50: 0
C51: Total Number of Debt Issues | J51: 4
C52: Include Repayment Section of UDF | J52: TRUE
C53: Option to Include DSRA Changes in CFADS (1-3) | J53: 1
C54: Taxes on Development Fee | J54: FALSE
C55: Taxes on Pre-COD Income | J55: FALSE
C56: Percent of Development Fee at Financial Close (Can Change to COD) | J56: 1
C57: EBL Switch (True is include) | J57: FALSE
C58: EBL Periodic Interest Rate | J58: 0 | K58: 0 | L58: 0 | M58: 0 | N58: 0 | O58: 0 | P58: 0 | Q58: 0 | R58: 0 | S58: 0 | T58: 0 | U58: 0 | V58: 0 | W58: 0 | X58: 0 | Y58: 0 | Z58: 0 | AA58: 0 | AB58: 0 | AC58: 0 | AD58: 0 | AE58: 0 | AF58: 0 | AG58: 0 | AH58: 0 | AI58: 0 | AJ58: 0 | AK58: 0 | AL58: 0 | AM58: 0 | AN58: 0 | AO58: 0 | AP58: 0 | AQ58: 0 | AR58: 0 | AS58: 0 | AT58: 0 | AU58: 0 | AV58: 0 | AW58: 0 | AX58: 0 | AY58: 0 | AZ58: 0 | BA58: 0 | BB58: 0 | BC58: 0 | BD58: 0 | BE58: 0 | BF58: 0 | BG58: 0 | BH58: 0 | BI58: 0 | BJ58: 0 | BK58: 0 | BL58: 0 | BM58: 0 | BN58: 0 | BO58: 0 | BP58: 0 | BQ58: 0
C59: EBL Periodic Commitment Fee | J59: 0.2
C60: EBL Up-Front Fee | J60: 0
C61: Term of EBL After COD | J61: 0
C62: Initial Share Capital in Case of EBL | J62: 0
C63: Percent of Debt Subject to Witholding Tax | J63: 0
C64: Witholding Tax Rate | J64: 0 | K64: 0 | L64: 0 | M64: 0 | N64: 0 | O64: 0 | P64: 0 | Q64: 0 | R64: 0 | S64: 0 | T64: 0 | U64: 0 | V64: 0 | W64: 0 | X64: 0 | Y64: 0 | Z64: 0 | AA64: 0 | AB64: 0 | AC64: 0 | AD64: 0 | AE64: 0 | AF64: 0 | AG64: 0 | AH64: 0 | AI64: 0 | AJ64: 0 | AK64: 0 | AL64: 0 | AM64: 0 | AN64: 0 | AO64: 0 | AP64: 0 | AQ64: 0 | AR64: 0 | AS64: 0 | AT64: 0 | AU64: 0 | AV64: 0 | AW64: 0 | AX64: 0 | AY64: 0 | AZ64: 0 | BA64: 0 | BB64: 0 | BC64: 0 | BD64: 0 | BE64: 0 | BF64: 0 | BG64: 0 | BH64: 0 | BI64: 0 | BJ64: 0 | BK64: 0 | BL64: 0 | BM64: 0 | BN64: 0 | BO64: 0 | BP64: 0 | BQ64: 0
C65: Working Capital Facility Switch | J65: TRUE
C66: Working Capital Facility Interest Rate | J66: 0 | K66: 0 | L66: 0 | M66: 0 | N66: 0 | O66: 0 | P66: 0 | Q66: 0 | R66: 0 | S66: 0 | T66: 0 | U66: 0 | V66: 0 | W66: 0 | X66: 0 | Y66: 0 | Z66: 0 | AA66: 0 | AB66: 0 | AC66: 0 | AD66: 0 | AE66: 0 | AF66: 0 | AG66: 0 | AH66: 0 | AI66: 0 | AJ66: 0 | AK66: 0 | AL66: 0 | AM66: 0 | AN66: 0 | AO66: 0 | AP66: 0 | AQ66: 0 | AR66: 0 | AS66: 0 | AT66: 0 | AU66: 0 | AV66: 0 | AW66: 0 | AX66: 0 | AY66: 0 | AZ66: 0 | BA66: 0 | BB66: 0 | BC66: 0 | BD66: 0 | BE66: 0 | BF66: 0 | BG66: 0 | BH66: 0 | BI66: 0 | BJ66: 0 | BK66: 0 | BL66: 0 | BM66: 0 | BN66: 0 | BO66: 0 | BP66: 0 | BQ66: 0
C67: Working Capital Periodic Commitment Fee | J67: 0 | K67: 0 | L67: 0 | M67: 0 | N67: 0 | O67: 0 | P67: 0 | Q67: 0 | R67: 0 | S67: 0 | T67: 0 | U67: 0 | V67: 0 | W67: 0 | X67: 0 | Y67: 0 | Z67: 0 | AA67: 0 | AB67: 0 | AC67: 0 | AD67: 0 | AE67: 0 | AF67: 0 | AG67: 0 | AH67: 0 | AI67: 0 | AJ67: 0 | AK67: 0 | AL67: 0 | AM67: 0 | AN67: 0 | AO67: 0 | AP67: 0 | AQ67: 0 | AR67: 0 | AS67: 0 | AT67: 0 | AU67: 0 | AV67: 0 | AW67: 0 | AX67: 0 | AY67: 0 | AZ67: 0 | BA67: 0 | BB67: 0 | BC67: 0 | BD67: 0 | BE67: 0 | BF67: 0 | BG67: 0 | BH67: 0 | BI67: 0 | BJ67: 0 | BK67: 0 | BL67: 0 | BM67: 0 | BN67: 0 | BO67: 0 | BP67: 0 | BQ67: 0
C68: Working Capital Up Front Fee | J68: 0
C69: Standby Commitment Switch (True is Inpt) | J69: FALSE
C70: Standby Commitment Input | J70: 0
C71: Standby Commitment as Percent of Equity | J71: 0
C72: Standby Interest Rate | J72: 0 | K72: 0 | L72: 0 | M72: 0 | N72: 0 | O72: 0 | P72: 0 | Q72: 0 | R72: 0 | S72: 0 | T72: 0 | U72: 0 | V72: 0 | W72: 0 | X72: 0 | Y72: 0 | Z72: 0 | AA72: 0 | AB72: 0 | AC72: 0 | AD72: 0 | AE72: 0 | AF72: 0 | AG72: 0 | AH72: 0 | AI72: 0 | AJ72: 0 | AK72: 0 | AL72: 0 | AM72: 0 | AN72: 0 | AO72: 0 | AP72: 0 | AQ72: 0 | AR72: 0 | AS72: 0 | AT72: 0 | AU72: 0 | AV72: 0 | AW72: 0 | AX72: 0 | AY72: 0 | AZ72: 0 | BA72: 0 | BB72: 0 | BC72: 0 | BD72: 0 | BE72: 0 | BF72: 0 | BG72: 0 | BH72: 0 | BI72: 0 | BJ72: 0 | BK72: 0 | BL72: 0 | BM72: 0 | BN72: 0 | BO72: 0 | BP72: 0 | BQ72: 0
C73: Standby Repayment =Senior Repayment Switch | J73: TRUE
C74: Standby Repayment Input Percentage | J74: 0
C75: Standby Interest Rate | J75: 0 | K75: 0 | L75: 0 | M75: 0 | N75: 0 | O75: 0 | P75: 0 | Q75: 0 | R75: 0 | S75: 0 | T75: 0 | U75: 0 | V75: 0 | W75: 0 | X75: 0 | Y75: 0 | Z75: 0 | AA75: 0 | AB75: 0 | AC75: 0 | AD75: 0 | AE75: 0 | AF75: 0 | AG75: 0 | AH75: 0 | AI75: 0 | AJ75: 0 | AK75: 0 | AL75: 0 | AM75: 0 | AN75: 0 | AO75: 0 | AP75: 0 | AQ75: 0 | AR75: 0 | AS75: 0 | AT75: 0 | AU75: 0 | AV75: 0 | AW75: 0 | AX75: 0 | AY75: 0 | AZ75: 0 | BA75: 0 | BB75: 0 | BC75: 0 | BD75: 0 | BE75: 0 | BF75: 0 | BG75: 0 | BH75: 0 | BI75: 0 | BJ75: 0 | BK75: 0 | BL75: 0 | BM75: 0 | BN75: 0 | BO75: 0 | BP75: 0 | BQ75: 0
C76: Grace Period for Senior Sculpting (in Periods) | J76: 0
C77: Debt Tenor for Initial Sculpting (in Periods) | J77: 20
C78: Enable Sculpting Optimisation of DSCR with Fixed Debt | J78: FALSE
A82: Senior 1 (Name this whatever you want to)
C83: Issue 1
C84: Senior/Mezz Debt (1-Senior; 2-Mezz; 3-Shareholder Loan) | J84: 1
C85: Percent of Senior Debt (or Mezz Debt) | J85: ='Financial Model'!F103 -> 0.55
C86: Periodic Interest Rate | J86: ='Financial Model'!I319 -> 0.005625 | K86: ='Financial Model'!J319 -> 0.005625 | L86: ='Financial Model'!K319 -> 0.005625 | M86: ='Financial Model'!L319 -> 0.005625 | N86: ='Financial Model'!M319 -> 0.005625 | O86: ='Financial Model'!N319 -> 0.005625 | P86: ='Financial Model'!O319 -> 0.005625 | Q86: ='Financial Model'!P319 -> 0.005625 | R86: ='Financial Model'!Q319 -> 0.005625 | S86: ='Financial Model'!R319 -> 0.005625 | T86: ='Financial Model'!S319 -> 0.005625 | U86: ='Financial Model'!T319 -> 0.005625 | V86: ='Financial Model'!U319 -> 0.005625 | W86: ='Financial Model'!V319 -> 0.005625 | X86: ='Financial Model'!W319 -> 0.005625 | Y86: ='Financial Model'!X319 -> 0.005625 | Z86: ='Financial Model'!Y319 -> 0.005625 | AA86: ='Financial Model'!Z319 -> 0.005625 | AB86: ='Financial Model'!AA319 -> 0.0687 | AC86: ='Financial Model'!AB319 -> 0.0687 | AD86: ='Financial Model'!AC319 -> 0.0687 | AE86: ='Financial Model'!AD319 -> 0.07 | AF86: ='Financial Model'!AE319 -> 0.07 | AG86: ='Financial Model'!AF319 -> 0.07 | AH86: ='Financial Model'!AG319 -> 0.0725 | AI86: ='Financial Model'!AH319 -> 0.0725 | AJ86: ='Financial Model'!AI319 -> 0.0725 | AK86: ='Financial Model'!AJ319 -> 0.075 | AL86: ='Financial Model'!AK319 -> 0.075 | AM86: ='Financial Model'!AL319 -> 0.075 | AN86: ='Financial Model'!AM319 -> 0.08 | AO86: ='Financial Model'!AN319 -> 0.08 | AP86: ='Financial Model'!AO319 -> 0.08 | AQ86: ='Financial Model'!AP319 -> 0.08 | AR86: ='Financial Model'!AQ319 -> 0.08 | AS86: ='Financial Model'!AR319 -> 0.08 | AT86: ='Financial Model'!AS319 -> 0.08 | AU86: ='Financial Model'!AT319 -> 0.08 | AV86: ='Financial Model'!AU319 -> 0.08 | AW86: ='Financial Model'!AV319 -> 0.08 | AX86: ='Financial Model'!AW319 -> 0.08 | AY86: ='Financial Model'!AX319 -> 0.08 | AZ86: ='Financial Model'!AY319 -> 0.08 | BA86: ='Financial Model'!AZ319 -> 0.08 | BB86: ='Financial Model'!BA319 -> 0.08 | BC86: ='Financial Model'!BB319 -> 0.08 | BD86: ='Financial Model'!BC319 -> 0.08 | BE86: ='Financial Model'!BD319 -> 0.08 | BF86: ='Financial Model'!BE319 -> 0.08 | BG86: ='Financial Model'!BF319 -> 0.08 | BH86: ='Financial Model'!BG319 -> 0.08 | BI86: ='Financial Model'!BH319 -> 0.08 | BJ86: ='Financial Model'!BI319 -> 0.08 | BK86: ='Financial Model'!BJ319 -> 0.08 | BL86: ='Financial Model'!BK319 -> 0.08 | BM86: ='Financial Model'!BL319 -> 0.08 | BN86: ='Financial Model'!BM319 -> 0.08 | BO86: ='Financial Model'!BN319 -> 0.08 | BP86: ='Financial Model'!BO319 -> 0.08 | BQ86: ='Financial Model'!BP319 -> 0.08
C87: Up-Front Fee | J87: ='Financial Model'!F327 -> 0.015
C88: Periodic Commitment Fee | J88: ='Financial Model'!$F$326 -> 0.0006666666667 | K88: ='Financial Model'!$F$326 -> 0.0006666666667 | L88: ='Financial Model'!$F$326 -> 0.0006666666667 | M88: ='Financial Model'!$F$326 -> 0.0006666666667 | N88: ='Financial Model'!$F$326 -> 0.0006666666667 | O88: ='Financial Model'!$F$326 -> 0.0006666666667 | P88: ='Financial Model'!$F$326 -> 0.0006666666667 | Q88: ='Financial Model'!$F$326 -> 0.0006666666667 | R88: ='Financial Model'!$F$326 -> 0.0006666666667 | S88: ='Financial Model'!$F$326 -> 0.0006666666667 | T88: ='Financial Model'!$F$326 -> 0.0006666666667 | U88: ='Financial Model'!$F$326 -> 0.0006666666667 | V88: ='Financial Model'!$F$326 -> 0.0006666666667 | W88: ='Financial Model'!$F$326 -> 0.0006666666667 | X88: ='Financial Model'!$F$326 -> 0.0006666666667 | Y88: ='Financial Model'!$F$326 -> 0.0006666666667 | Z88: ='Financial Model'!$F$326 -> 0.0006666666667 | AA88: ='Financial Model'!$F$326 -> 0.0006666666667 | AB88: ='Financial Model'!$F$326 -> 0.0006666666667 | AC88: ='Financial Model'!$F$326 -> 0.0006666666667 | AD88: ='Financial Model'!$F$326 -> 0.0006666666667 | AE88: ='Financial Model'!$F$326 -> 0.0006666666667 | AF88: ='Financial Model'!$F$326 -> 0.0006666666667 | AG88: ='Financial Model'!$F$326 -> 0.0006666666667 | AH88: ='Financial Model'!$F$326 -> 0.0006666666667 | AI88: ='Financial Model'!$F$326 -> 0.0006666666667 | AJ88: ='Financial Model'!$F$326 -> 0.0006666666667 | AK88: ='Financial Model'!$F$326 -> 0.0006666666667 | AL88: ='Financial Model'!$F$326 -> 0.0006666666667 | AM88: ='Financial Model'!$F$326 -> 0.0006666666667 | AN88: ='Financial Model'!$F$326 -> 0.0006666666667 | AO88: ='Financial Model'!$F$326 -> 0.0006666666667 | AP88: ='Financial Model'!$F$326 -> 0.0006666666667 | AQ88: ='Financial Model'!$F$326 -> 0.0006666666667 | AR88: ='Financial Model'!$F$326 -> 0.0006666666667 | AS88: ='Financial Model'!$F$326 -> 0.0006666666667 | AT88: ='Financial Model'!$F$326 -> 0.0006666666667 | AU88: ='Financial Model'!$F$326 -> 0.0006666666667 | AV88: ='Financial Model'!$F$326 -> 0.0006666666667 | AW88: ='Financial Model'!$F$326 -> 0.0006666666667 | AX88: ='Financial Model'!$F$326 -> 0.0006666666667 | AY88: ='Financial Model'!$F$326 -> 0.0006666666667 | AZ88: ='Financial Model'!$F$326 -> 0.0006666666667 | BA88: ='Financial Model'!$F$326 -> 0.0006666666667 | BB88: ='Financial Model'!$F$326 -> 0.0006666666667 | BC88: ='Financial Model'!$F$326 -> 0.0006666666667 | BD88: ='Financial Model'!$F$326 -> 0.0006666666667 | BE88: ='Financial Model'!$F$326 -> 0.0006666666667 | BF88: ='Financial Model'!$F$326 -> 0.0006666666667 | BG88: ='Financial Model'!$F$326 -> 0.0006666666667 | BH88: ='Financial Model'!$F$326 -> 0.0006666666667 | BI88: ='Financial Model'!$F$326 -> 0.0006666666667 | BJ88: ='Financial Model'!$F$326 -> 0.0006666666667 | BK88: ='Financial Model'!$F$326 -> 0.0006666666667 | BL88: ='Financial Model'!$F$326 -> 0.0006666666667 | BM88: ='Financial Model'!$F$326 -> 0.0006666666667 | BN88: ='Financial Model'!$F$326 -> 0.0006666666667 | BO88: ='Financial Model'!$F$326 -> 0.0006666666667 | BP88: ='Financial Model'!$F$326 -> 0.0006666666667 | BQ88: ='Financial Model'!$F$326 -> 0.0006666666667
C89: PRI | J89: 0 | K89: 0 | L89: 0 | M89: 0 | N89: 0 | O89: 0 | P89: 0 | Q89: 0 | R89: 0 | S89: 0 | T89: 0 | U89: 0 | V89: 0 | W89: 0 | X89: 0 | Y89: 0 | Z89: 0 | AA89: 0 | AB89: 0 | AC89: 0 | AD89: 0 | AE89: 0 | AF89: 0 | AG89: 0 | AH89: 0 | AI89: 0 | AJ89: 0 | AK89: 0 | AL89: 0 | AM89: 0 | AN89: 0 | AO89: 0 | AP89: 0 | AQ89: 0 | AR89: 0 | AS89: 0 | AT89: 0 | AU89: 0 | AV89: 0 | AW89: 0 | AX89: 0 | AY89: 0 | AZ89: 0 | BA89: 0 | BB89: 0 | BC89: 0 | BD89: 0 | BE89: 0 | BF89: 0 | BG89: 0 | BH89: 0 | BI89: 0 | BJ89: 0 | BK89: 0 | BL89: 0 | BM89: 0 | BN89: 0 | BO89: 0 | BP89: 0 | BQ89: 0
C90: Capitalised Interest During Construction Switch | J90: 0
C91: Capitalised Fee During Construction Switch | J91: 0
C92: Sculpting Switch - TRUE is Automated Sculpting | J92: TRUE
C93: Debt Tenure | J93: ='Financial Model'!F313 -> 20
C94: Repayment Percent Input | J94: 0 | K94: 0 | L94: 0 | M94: 0 | N94: 0 | O94: 0 | P94: 0 | Q94: 0 | R94: 0 | S94: 0 | T94: 0 | U94: 0 | V94: 0 | W94: 0 | X94: 0 | Y94: 0 | Z94: 0 | AA94: 0 | AB94: 0 | AC94: 0 | AD94: 0 | AE94: 0 | AF94: 0 | AG94: 0 | AH94: 0 | AI94: 0 | AJ94: 0 | AK94: 0 | AL94: 0 | AM94: 0 | AN94: 0 | AO94: 0 | AP94: 0 | AQ94: 0 | AR94: 0 | AS94: 0 | AT94: 0 | AU94: 0 | AV94: 0 | AW94: 0 | AX94: 0 | AY94: 0 | AZ94: 0 | BA94: 0 | BB94: 0 | BC94: 0 | BD94: 0 | BE94: 0 | BF94: 0 | BG94: 0 | BH94: 0 | BI94: 0 | BJ94: 0 | BK94: 0 | BL94: 0 | BM94: 0 | BN94: 0 | BO94: 0 | BP94: 0 | BQ94: 0
C95: Balloon Percent | J95: 0
C96: Sweep Percent | J96: 0
C97: Start Period after COD for Sweep | J97: 0
C98: Fee as Percent of Debt other than LC Fee | J98: 0 | K98: 0 | L98: 0 | M98: 0 | N98: 0 | O98: 0 | P98: 0 | Q98: 0 | R98: 0 | S98: 0 | T98: 0 | U98: 0 | V98: 0 | W98: 0 | X98: 0 | Y98: 0 | Z98: 0 | AA98: 0 | AB98: 0 | AC98: 0 | AD98: 0 | AE98: 0 | AF98: 0 | AG98: 0 | AH98: 0 | AI98: 0 | AJ98: 0 | AK98: 0 | AL98: 0 | AM98: 0 | AN98: 0 | AO98: 0 | AP98: 0 | AQ98: 0 | AR98: 0 | AS98: 0 | AT98: 0 | AU98: 0 | AV98: 0 | AW98: 0 | AX98: 0 | AY98: 0 | AZ98: 0 | BA98: 0 | BB98: 0 | BC98: 0 | BD98: 0 | BE98: 0 | BF98: 0 | BG98: 0 | BH98: 0 | BI98: 0 | BJ98: 0 | BK98: 0 | BL98: 0 | BM98: 0 | BN98: 0 | BO98: 0 | BP98: 0 | BQ98: 0
C99: Re-financing Issue | J99: FALSE
C100: Period of Re-financing in case of Re-financing Issue | J100: 50
C101: Fixed Amount of Re-financing | J101: 0
C102: DSCR for Sculpted Re-financing | J102: 0
C103: Tenor of Re-financing in Periods | J103: 20
C104: Breakage Costs and Re-financing Fees | J104: 0
C105: Start of Debt Issues Block number 2
C106: Senior/Mezz Debt (1-Senior; 2-Mezz) | J106: 1
C107: Percent of Senior Debt (or Mezz Debt) | J107: ='Financial Model'!F122 -> 0.1
C108: Periodic Interest Rate | J108: ='Financial Model'!I338 -> 0.004625 | K108: ='Financial Model'!J338 -> 0.004625 | L108: ='Financial Model'!K338 -> 0.004625 | M108: ='Financial Model'!L338 -> 0.004625 | N108: ='Financial Model'!M338 -> 0.004625 | O108: ='Financial Model'!N338 -> 0.004625 | P108: ='Financial Model'!O338 -> 0.004625 | Q108: ='Financial Model'!P338 -> 0.004625 | R108: ='Financial Model'!Q338 -> 0.004625 | S108: ='Financial Model'!R338 -> 0.004625 | T108: ='Financial Model'!S338 -> 0.004625 | U108: ='Financial Model'!T338 -> 0.004625 | V108: ='Financial Model'!U338 -> 0.004625 | W108: ='Financial Model'!V338 -> 0.004625 | X108: ='Financial Model'!W338 -> 0.004625 | Y108: ='Financial Model'!X338 -> 0.004625 | Z108: ='Financial Model'!Y338 -> 0.004625 | AA108: ='Financial Model'!Z338 -> 0.004625 | AB108: ='Financial Model'!AA338 -> 0.043 | AC108: ='Financial Model'!AB338 -> 0.043 | AD108: ='Financial Model'!AC338 -> 0.043 | AE108: ='Financial Model'!AD338 -> 0.043 | AF108: ='Financial Model'!AE338 -> 0.043 | AG108: ='Financial Model'!AF338 -> 0.043 | AH108: ='Financial Model'!AG338 -> 0.043 | AI108: ='Financial Model'!AH338 -> 0.043 | AJ108: ='Financial Model'!AI338 -> 0.043 | AK108: ='Financial Model'!AJ338 -> 0.043 | AL108: ='Financial Model'!AK338 -> 0.043 | AM108: ='Financial Model'!AL338 -> 0.043 | AN108: ='Financial Model'!AM338 -> 0.043 | AO108: ='Financial Model'!AN338 -> 0.043 | AP108: ='Financial Model'!AO338 -> 0.043 | AQ108: ='Financial Model'!AP338 -> 0.043 | AR108: ='Financial Model'!AQ338 -> 0.043 | AS108: ='Financial Model'!AR338 -> 0.043 | AT108: ='Financial Model'!AS338 -> 0.043 | AU108: ='Financial Model'!AT338 -> 0.043 | AV108: ='Financial Model'!AU338 -> 0.043 | AW108: ='Financial Model'!AV338 -> 0.043 | AX108: ='Financial Model'!AW338 -> 0.043 | AY108: ='Financial Model'!AX338 -> 0.043 | AZ108: ='Financial Model'!AY338 -> 0.043 | BA108: ='Financial Model'!AZ338 -> 0.043 | BB108: ='Financial Model'!BA338 -> 0.043 | BC108: ='Financial Model'!BB338 -> 0.043 | BD108: ='Financial Model'!BC338 -> 0.043 | BE108: ='Financial Model'!BD338 -> 0.043 | BF108: ='Financial Model'!BE338 -> 0.043 | BG108: ='Financial Model'!BF338 -> 0.043 | BH108: ='Financial Model'!BG338 -> 0.043 | BI108: ='Financial Model'!BH338 -> 0.043 | BJ108: ='Financial Model'!BI338 -> 0.043 | BK108: ='Financial Model'!BJ338 -> 0.043 | BL108: ='Financial Model'!BK338 -> 0.043 | BM108: ='Financial Model'!BL338 -> 0.043 | BN108: ='Financial Model'!BM338 -> 0.043 | BO108: ='Financial Model'!BN338 -> 0.043 | BP108: ='Financial Model'!BO338 -> 0.043 | BQ108: ='Financial Model'!BP338 -> 0.043
C109: Up-Front Fee | J109: ='Financial Model'!F346 -> 0.013
C110: Periodic Commitment Fee | J110: ='Financial Model'!$F$345 -> 0.0005833333333 | K110: ='Financial Model'!$F$345 -> 0.0005833333333 | L110: ='Financial Model'!$F$345 -> 0.0005833333333 | M110: ='Financial Model'!$F$345 -> 0.0005833333333 | N110: ='Financial Model'!$F$345 -> 0.0005833333333 | O110: ='Financial Model'!$F$345 -> 0.0005833333333 | P110: ='Financial Model'!$F$345 -> 0.0005833333333 | Q110: ='Financial Model'!$F$345 -> 0.0005833333333 | R110: ='Financial Model'!$F$345 -> 0.0005833333333 | S110: ='Financial Model'!$F$345 -> 0.0005833333333 | T110: ='Financial Model'!$F$345 -> 0.0005833333333 | U110: ='Financial Model'!$F$345 -> 0.0005833333333 | V110: ='Financial Model'!$F$345 -> 0.0005833333333 | W110: ='Financial Model'!$F$345 -> 0.0005833333333 | X110: ='Financial Model'!$F$345 -> 0.0005833333333 | Y110: ='Financial Model'!$F$345 -> 0.0005833333333 | Z110: ='Financial Model'!$F$345 -> 0.0005833333333 | AA110: ='Financial Model'!$F$345 -> 0.0005833333333 | AB110: ='Financial Model'!$F$345 -> 0.0005833333333 | AC110: ='Financial Model'!$F$345 -> 0.0005833333333 | AD110: ='Financial Model'!$F$345 -> 0.0005833333333 | AE110: ='Financial Model'!$F$345 -> 0.0005833333333 | AF110: ='Financial Model'!$F$345 -> 0.0005833333333 | AG110: ='Financial Model'!$F$345 -> 0.0005833333333 | AH110: ='Financial Model'!$F$345 -> 0.0005833333333 | AI110: ='Financial Model'!$F$345 -> 0.0005833333333 | AJ110: ='Financial Model'!$F$345 -> 0.0005833333333 | AK110: ='Financial Model'!$F$345 -> 0.0005833333333 | AL110: ='Financial Model'!$F$345 -> 0.0005833333333 | AM110: ='Financial Model'!$F$345 -> 0.0005833333333 | AN110: ='Financial Model'!$F$345 -> 0.0005833333333 | AO110: ='Financial Model'!$F$345 -> 0.0005833333333 | AP110: ='Financial Model'!$F$345 -> 0.0005833333333 | AQ110: ='Financial Model'!$F$345 -> 0.0005833333333 | AR110: ='Financial Model'!$F$345 -> 0.0005833333333 | AS110: ='Financial Model'!$F$345 -> 0.0005833333333 | AT110: ='Financial Model'!$F$345 -> 0.0005833333333 | AU110: ='Financial Model'!$F$345 -> 0.0005833333333 | AV110: ='Financial Model'!$F$345 -> 0.0005833333333 | AW110: ='Financial Model'!$F$345 -> 0.0005833333333 | AX110: ='Financial Model'!$F$345 -> 0.0005833333333 | AY110: ='Financial Model'!$F$345 -> 0.0005833333333 | AZ110: ='Financial Model'!$F$345 -> 0.0005833333333 | BA110: ='Financial Model'!$F$345 -> 0.0005833333333 | BB110: ='Financial Model'!$F$345 -> 0.0005833333333 | BC110: ='Financial Model'!$F$345 -> 0.0005833333333 | BD110: ='Financial Model'!$F$345 -> 0.0005833333333 | BE110: ='Financial Model'!$F$345 -> 0.0005833333333 | BF110: ='Financial Model'!$F$345 -> 0.0005833333333 | BG110: ='Financial Model'!$F$345 -> 0.0005833333333 | BH110: ='Financial Model'!$F$345 -> 0.0005833333333 | BI110: ='Financial Model'!$F$345 -> 0.0005833333333 | BJ110: ='Financial Model'!$F$345 -> 0.0005833333333 | BK110: ='Financial Model'!$F$345 -> 0.0005833333333 | BL110: ='Financial Model'!$F$345 -> 0.0005833333333 | BM110: ='Financial Model'!$F$345 -> 0.0005833333333 | BN110: ='Financial Model'!$F$345 -> 0.0005833333333 | BO110: ='Financial Model'!$F$345 -> 0.0005833333333 | BP110: ='Financial Model'!$F$345 -> 0.0005833333333 | BQ110: ='Financial Model'!$F$345 -> 0.0005833333333
C111: PRI | J111: 0 | K111: 0 | L111: 0 | M111: 0 | N111: 0 | O111: 0 | P111: 0 | Q111: 0 | R111: 0 | S111: 0 | T111: 0 | U111: 0 | V111: 0 | W111: 0 | X111: 0 | Y111: 0 | Z111: 0 | AA111: 0 | AB111: 0 | AC111: 0 | AD111: 0 | AE111: 0 | AF111: 0 | AG111: 0 | AH111: 0 | AI111: 0 | AJ111: 0 | AK111: 0 | AL111: 0 | AM111: 0 | AN111: 0 | AO111: 0 | AP111: 0 | AQ111: 0 | AR111: 0 | AS111: 0 | AT111: 0 | AU111: 0 | AV111: 0 | AW111: 0 | AX111: 0 | AY111: 0 | AZ111: 0 | BA111: 0 | BB111: 0 | BC111: 0 | BD111: 0 | BE111: 0 | BF111: 0 | BG111: 0 | BH111: 0 | BI111: 0 | BJ111: 0 | BK111: 0 | BL111: 0 | BM111: 0 | BN111: 0 | BO111: 0 | BP111: 0 | BQ111: 0
C112: Capitalised Interest During Construction Switch | J112: 0
C113: Capitalised Fee During Construction Switch | J113: 0
C114: Sculpting Switch - TRUE is Automated Sculpting | J114: TRUE
C115: Debt Tenure | J115: ='Financial Model'!F332 -> 14
C116: Repayment Percent Input | J116: 0 | K116: 0 | L116: 0 | M116: 0 | N116: 0 | O116: 0 | P116: 0 | Q116: 0 | R116: 0 | S116: 0 | T116: 0 | U116: 0 | V116: 0 | W116: 0 | X116: 0 | Y116: 0 | Z116: 0 | AA116: 0 | AB116: 0 | AC116: 0 | AD116: 0 | AE116: 0 | AF116: 0 | AG116: 0 | AH116: 0 | AI116: 0 | AJ116: 0 | AK116: 0 | AL116: 0 | AM116: 0 | AN116: 0 | AO116: 0 | AP116: 0 | AQ116: 0 | AR116: 0 | AS116: 0 | AT116: 0 | AU116: 0 | AV116: 0 | AW116: 0 | AX116: 0 | AY116: 0 | AZ116: 0 | BA116: 0 | BB116: 0 | BC116: 0 | BD116: 0 | BE116: 0 | BF116: 0 | BG116: 0 | BH116: 0 | BI116: 0 | BJ116: 0 | BK116: 0 | BL116: 0 | BM116: 0 | BN116: 0 | BO116: 0 | BP116: 0 | BQ116: 0
C117: Balloon Percent | J117: 0
C118: Sweep Percent | J118: 0
C119: Start Period after COD for Sweep | J119: 0
C120: Fee as Percent of Debt other than LC Fee | J120: 0 | K120: 0 | L120: 0 | M120: 0 | N120: 0 | O120: 0 | P120: 0 | Q120: 0 | R120: 0 | S120: 0 | T120: 0 | U120: 0 | V120: 0 | W120: 0 | X120: 0 | Y120: 0 | Z120: 0 | AA120: 0 | AB120: 0 | AC120: 0 | AD120: 0 | AE120: 0 | AF120: 0 | AG120: 0 | AH120: 0 | AI120: 0 | AJ120: 0 | AK120: 0 | AL120: 0 | AM120: 0 | AN120: 0 | AO120: 0 | AP120: 0 | AQ120: 0 | AR120: 0 | AS120: 0 | AT120: 0 | AU120: 0 | AV120: 0 | AW120: 0 | AX120: 0 | AY120: 0 | AZ120: 0 | BA120: 0 | BB120: 0 | BC120: 0 | BD120: 0 | BE120: 0 | BF120: 0 | BG120: 0 | BH120: 0 | BI120: 0 | BJ120: 0 | BK120: 0 | BL120: 0 | BM120: 0 | BN120: 0 | BO120: 0 | BP120: 0 | BQ120: 0
C121: Re-financing Issue | J121: FALSE
C122: Period of Re-financing in case of Re-financing Issue | J122: 50
C123: Fixed Amount of Re-financing | J123: 0
C124: DSCR for Sculpted Re-financing | J124: 0
C125: Tenor of Re-financing in Periods | J125: 20
C126: Breakage Costs and Re-financing Fees | J126: 0
C127: Start of Debt Issues Block 3
C128: Senior/Mezz Debt (1-Senior; 2-Mezz) | J128: 1
C129: Percent of Senior Debt (or Mezz Debt) | J129: ='Financial Model'!F143 -> 0.15
C130: Periodic Interest Rate | J130: ='Financial Model'!I357 -> 0.006041666667 | K130: ='Financial Model'!J357 -> 0.006041666667 | L130: ='Financial Model'!K357 -> 0.006041666667 | M130: ='Financial Model'!L357 -> 0.006041666667 | N130: ='Financial Model'!M357 -> 0.006041666667 | O130: ='Financial Model'!N357 -> 0.006041666667 | P130: ='Financial Model'!O357 -> 0.006041666667 | Q130: ='Financial Model'!P357 -> 0.006041666667 | R130: ='Financial Model'!Q357 -> 0.006041666667 | S130: ='Financial Model'!R357 -> 0.006041666667 | T130: ='Financial Model'!S357 -> 0.006041666667 | U130: ='Financial Model'!T357 -> 0.006041666667 | V130: ='Financial Model'!U357 -> 0.006041666667 | W130: ='Financial Model'!V357 -> 0.006041666667 | X130: ='Financial Model'!W357 -> 0.006041666667 | Y130: ='Financial Model'!X357 -> 0.006041666667 | Z130: ='Financial Model'!Y357 -> 0.006041666667 | AA130: ='Financial Model'!Z357 -> 0.006041666667 | AB130: ='Financial Model'!AA357 -> 0.06 | AC130: ='Financial Model'!AB357 -> 0.06 | AD130: ='Financial Model'!AC357 -> 0.06 | AE130: ='Financial Model'!AD357 -> 0.06 | AF130: ='Financial Model'!AE357 -> 0.06 | AG130: ='Financial Model'!AF357 -> 0.06 | AH130: ='Financial Model'!AG357 -> 0.06 | AI130: ='Financial Model'!AH357 -> 0.06 | AJ130: ='Financial Model'!AI357 -> 0.06 | AK130: ='Financial Model'!AJ357 -> 0.06 | AL130: ='Financial Model'!AK357 -> 0.06 | AM130: ='Financial Model'!AL357 -> 0.06 | AN130: ='Financial Model'!AM357 -> 0.06 | AO130: ='Financial Model'!AN357 -> 0.06 | AP130: ='Financial Model'!AO357 -> 0.06 | AQ130: ='Financial Model'!AP357 -> 0.06 | AR130: ='Financial Model'!AQ357 -> 0.06 | AS130: ='Financial Model'!AR357 -> 0.06 | AT130: ='Financial Model'!AS357 -> 0.06 | AU130: ='Financial Model'!AT357 -> 0.06 | AV130: ='Financial Model'!AU357 -> 0.06 | AW130: ='Financial Model'!AV357 -> 0.06 | AX130: ='Financial Model'!AW357 -> 0.06 | AY130: ='Financial Model'!AX357 -> 0.06 | AZ130: ='Financial Model'!AY357 -> 0.06 | BA130: ='Financial Model'!AZ357 -> 0.06 | BB130: ='Financial Model'!BA357 -> 0.06 | BC130: ='Financial Model'!BB357 -> 0.06 | BD130: ='Financial Model'!BC357 -> 0.06 | BE130: ='Financial Model'!BD357 -> 0.06 | BF130: ='Financial Model'!BE357 -> 0.06 | BG130: ='Financial Model'!BF357 -> 0.06 | BH130: ='Financial Model'!BG357 -> 0.06 | BI130: ='Financial Model'!BH357 -> 0.06 | BJ130: ='Financial Model'!BI357 -> 0.06 | BK130: ='Financial Model'!BJ357 -> 0.06 | BL130: ='Financial Model'!BK357 -> 0.06 | BM130: ='Financial Model'!BL357 -> 0.06 | BN130: ='Financial Model'!BM357 -> 0.06 | BO130: ='Financial Model'!BN357 -> 0.06 | BP130: ='Financial Model'!BO357 -> 0.06 | BQ130: ='Financial Model'!BP357 -> 0.06
C131: Up-Front Fee | J131: ='Financial Model'!F365 -> 0.01
C132: Periodic Commitment Fee | J132: ='Financial Model'!$F$364 -> 0.0008333333333 | K132: ='Financial Model'!$F$364 -> 0.0008333333333 | L132: ='Financial Model'!$F$364 -> 0.0008333333333 | M132: ='Financial Model'!$F$364 -> 0.0008333333333 | N132: ='Financial Model'!$F$364 -> 0.0008333333333 | O132: ='Financial Model'!$F$364 -> 0.0008333333333 | P132: ='Financial Model'!$F$364 -> 0.0008333333333 | Q132: ='Financial Model'!$F$364 -> 0.0008333333333 | R132: ='Financial Model'!$F$364 -> 0.0008333333333 | S132: ='Financial Model'!$F$364 -> 0.0008333333333 | T132: ='Financial Model'!$F$364 -> 0.0008333333333 | U132: ='Financial Model'!$F$364 -> 0.0008333333333 | V132: ='Financial Model'!$F$364 -> 0.0008333333333 | W132: ='Financial Model'!$F$364 -> 0.0008333333333 | X132: ='Financial Model'!$F$364 -> 0.0008333333333 | Y132: ='Financial Model'!$F$364 -> 0.0008333333333 | Z132: ='Financial Model'!$F$364 -> 0.0008333333333 | AA132: ='Financial Model'!$F$364 -> 0.0008333333333 | AB132: ='Financial Model'!$F$364 -> 0.0008333333333 | AC132: ='Financial Model'!$F$364 -> 0.0008333333333 | AD132: ='Financial Model'!$F$364 -> 0.0008333333333 | AE132: ='Financial Model'!$F$364 -> 0.0008333333333 | AF132: ='Financial Model'!$F$364 -> 0.0008333333333 | AG132: ='Financial Model'!$F$364 -> 0.0008333333333 | AH132: ='Financial Model'!$F$364 -> 0.0008333333333 | AI132: ='Financial Model'!$F$364 -> 0.0008333333333 | AJ132: ='Financial Model'!$F$364 -> 0.0008333333333 | AK132: ='Financial Model'!$F$364 -> 0.0008333333333 | AL132: ='Financial Model'!$F$364 -> 0.0008333333333 | AM132: ='Financial Model'!$F$364 -> 0.0008333333333 | AN132: ='Financial Model'!$F$364 -> 0.0008333333333 | AO132: ='Financial Model'!$F$364 -> 0.0008333333333 | AP132: ='Financial Model'!$F$364 -> 0.0008333333333 | AQ132: ='Financial Model'!$F$364 -> 0.0008333333333 | AR132: ='Financial Model'!$F$364 -> 0.0008333333333 | AS132: ='Financial Model'!$F$364 -> 0.0008333333333 | AT132: ='Financial Model'!$F$364 -> 0.0008333333333 | AU132: ='Financial Model'!$F$364 -> 0.0008333333333 | AV132: ='Financial Model'!$F$364 -> 0.0008333333333 | AW132: ='Financial Model'!$F$364 -> 0.0008333333333 | AX132: ='Financial Model'!$F$364 -> 0.0008333333333 | AY132: ='Financial Model'!$F$364 -> 0.0008333333333 | AZ132: ='Financial Model'!$F$364 -> 0.0008333333333 | BA132: ='Financial Model'!$F$364 -> 0.0008333333333 | BB132: ='Financial Model'!$F$364 -> 0.0008333333333 | BC132: ='Financial Model'!$F$364 -> 0.0008333333333 | BD132: ='Financial Model'!$F$364 -> 0.0008333333333 | BE132: ='Financial Model'!$F$364 -> 0.0008333333333 | BF132: ='Financial Model'!$F$364 -> 0.0008333333333 | BG132: ='Financial Model'!$F$364 -> 0.0008333333333 | BH132: ='Financial Model'!$F$364 -> 0.0008333333333 | BI132: ='Financial Model'!$F$364 -> 0.0008333333333 | BJ132: ='Financial Model'!$F$364 -> 0.0008333333333 | BK132: ='Financial Model'!$F$364 -> 0.0008333333333 | BL132: ='Financial Model'!$F$364 -> 0.0008333333333 | BM132: ='Financial Model'!$F$364 -> 0.0008333333333 | BN132: ='Financial Model'!$F$364 -> 0.0008333333333 | BO132: ='Financial Model'!$F$364 -> 0.0008333333333 | BP132: ='Financial Model'!$F$364 -> 0.0008333333333 | BQ132: ='Financial Model'!$F$364 -> 0.0008333333333
C133: PRI | J133: 0 | K133: 0 | L133: 0 | M133: 0 | N133: 0 | O133: 0 | P133: 0 | Q133: 0 | R133: 0 | S133: 0 | T133: 0 | U133: 0 | V133: 0 | W133: 0 | X133: 0 | Y133: 0 | Z133: 0 | AA133: 0 | AB133: 0 | AC133: 0 | AD133: 0 | AE133: 0 | AF133: 0 | AG133: 0 | AH133: 0 | AI133: 0 | AJ133: 0 | AK133: 0 | AL133: 0 | AM133: 0 | AN133: 0 | AO133: 0 | AP133: 0 | AQ133: 0 | AR133: 0 | AS133: 0 | AT133: 0 | AU133: 0 | AV133: 0 | AW133: 0 | AX133: 0 | AY133: 0 | AZ133: 0 | BA133: 0 | BB133: 0 | BC133: 0 | BD133: 0 | BE133: 0 | BF133: 0 | BG133: 0 | BH133: 0 | BI133: 0 | BJ133: 0 | BK133: 0 | BL133: 0 | BM133: 0 | BN133: 0 | BO133: 0 | BP133: 0 | BQ133: 0
C134: Capitalised Interest During Construction Switch | J134: 0
C135: Capitalised Fee During Construction Switch | J135: 0
C136: Sculpting Switch - TRUE is Automated Sculpting | J136: TRUE
C137: Debt Tenure | J137: ='Financial Model'!F351 -> 15
C138: Repayment Percent Input | J138: 0 | K138: 0 | L138: 0 | M138: 0 | N138: 0 | O138: 0 | P138: 0 | Q138: 0 | R138: 0 | S138: 0 | T138: 0 | U138: 0 | V138: 0 | W138: 0 | X138: 0 | Y138: 0 | Z138: 0 | AA138: 0 | AB138: 0 | AC138: 0 | AD138: 0 | AE138: 0 | AF138: 0 | AG138: 0 | AH138: 0 | AI138: 0 | AJ138: 0 | AK138: 0 | AL138: 0 | AM138: 0 | AN138: 0 | AO138: 0 | AP138: 0 | AQ138: 0 | AR138: 0 | AS138: 0 | AT138: 0 | AU138: 0 | AV138: 0 | AW138: 0 | AX138: 0 | AY138: 0 | AZ138: 0 | BA138: 0 | BB138: 0 | BC138: 0 | BD138: 0 | BE138: 0 | BF138: 0 | BG138: 0 | BH138: 0 | BI138: 0 | BJ138: 0 | BK138: 0 | BL138: 0 | BM138: 0 | BN138: 0 | BO138: 0 | BP138: 0 | BQ138: 0
C139: Balloon Percent | J139: 0
C140: Sweep Percent | J140: 0
C141: Start Period after COD for Sweep | J141: 0
C142: Fee as Percent of Debt other than LC Fee | J142: 0 | K142: 0 | L142: 0 | M142: 0 | N142: 0 | O142: 0 | P142: 0 | Q142: 0 | R142: 0 | S142: 0 | T142: 0 | U142: 0 | V142: 0 | W142: 0 | X142: 0 | Y142: 0 | Z142: 0 | AA142: 0 | AB142: 0 | AC142: 0 | AD142: 0 | AE142: 0 | AF142: 0 | AG142: 0 | AH142: 0 | AI142: 0 | AJ142: 0 | AK142: 0 | AL142: 0 | AM142: 0 | AN142: 0 | AO142: 0 | AP142: 0 | AQ142: 0 | AR142: 0 | AS142: 0 | AT142: 0 | AU142: 0 | AV142: 0 | AW142: 0 | AX142: 0 | AY142: 0 | AZ142: 0 | BA142: 0 | BB142: 0 | BC142: 0 | BD142: 0 | BE142: 0 | BF142: 0 | BG142: 0 | BH142: 0 | BI142: 0 | BJ142: 0 | BK142: 0 | BL142: 0 | BM142: 0 | BN142: 0 | BO142: 0 | BP142: 0 | BQ142: 0
C143: Re-financing Issue | J143: FALSE
C144: Period of Re-financing in case of Re-financing Issue | J144: 50
C145: Fixed Amount of Re-financing | J145: 0
C146: DSCR for Sculpted Re-financing | J146: 0
C147: Tenor of Re-financing in Periods | J147: 20
C148: Breakage Costs and Re-financing Fees | J148: 0
C149: Start of Debt Issues Block 4
C150: Senior/Mezz Debt (1-Senior; 2-Mezz) | J150: 1
C151: Percent of Senior Debt (or Mezz Debt) | J151: ='Financial Model'!F164 -> 0.2
C152: Periodic Interest Rate | J152: ='Financial Model'!I376 -> 0.005208333333 | K152: ='Financial Model'!J376 -> 0.005208333333 | L152: ='Financial Model'!K376 -> 0.005208333333 | M152: ='Financial Model'!L376 -> 0.005208333333 | N152: ='Financial Model'!M376 -> 0.005208333333 | O152: ='Financial Model'!N376 -> 0.005208333333 | P152: ='Financial Model'!O376 -> 0.005208333333 | Q152: ='Financial Model'!P376 -> 0.005208333333 | R152: ='Financial Model'!Q376 -> 0.005208333333 | S152: ='Financial Model'!R376 -> 0.005208333333 | T152: ='Financial Model'!S376 -> 0.005208333333 | U152: ='Financial Model'!T376 -> 0.005208333333 | V152: ='Financial Model'!U376 -> 0.005208333333 | W152: ='Financial Model'!V376 -> 0.005208333333 | X152: ='Financial Model'!W376 -> 0.005208333333 | Y152: ='Financial Model'!X376 -> 0.005208333333 | Z152: ='Financial Model'!Y376 -> 0.005208333333 | AA152: ='Financial Model'!Z376 -> 0.005208333333 | AB152: ='Financial Model'!AA376 -> 0.05 | AC152: ='Financial Model'!AB376 -> 0.05 | AD152: ='Financial Model'!AC376 -> 0.05 | AE152: ='Financial Model'!AD376 -> 0.05 | AF152: ='Financial Model'!AE376 -> 0.05 | AG152: ='Financial Model'!AF376 -> 0.05 | AH152: ='Financial Model'!AG376 -> 0.02 | AI152: ='Financial Model'!AH376 -> 0.02 | AJ152: ='Financial Model'!AI376 -> 0.02 | AK152: ='Financial Model'!AJ376 -> 0.02 | AL152: ='Financial Model'!AK376 -> 0.02 | AM152: ='Financial Model'!AL376 -> 0.02 | AN152: ='Financial Model'!AM376 -> 0.02 | AO152: ='Financial Model'!AN376 -> 0.02 | AP152: ='Financial Model'!AO376 -> 0.02 | AQ152: ='Financial Model'!AP376 -> 0.02 | AR152: ='Financial Model'!AQ376 -> 0.02 | AS152: ='Financial Model'!AR376 -> 0.02 | AT152: ='Financial Model'!AS376 -> 0.02 | AU152: ='Financial Model'!AT376 -> 0.02 | AV152: ='Financial Model'!AU376 -> 0.02 | AW152: ='Financial Model'!AV376 -> 0.02 | AX152: ='Financial Model'!AW376 -> 0.02 | AY152: ='Financial Model'!AX376 -> 0.02 | AZ152: ='Financial Model'!AY376 -> 0.02 | BA152: ='Financial Model'!AZ376 -> 0.02 | BB152: ='Financial Model'!BA376 -> 0.02 | BC152: ='Financial Model'!BB376 -> 0.02 | BD152: ='Financial Model'!BC376 -> 0.02 | BE152: ='Financial Model'!BD376 -> 0.02 | BF152: ='Financial Model'!BE376 -> 0.02 | BG152: ='Financial Model'!BF376 -> 0.02 | BH152: ='Financial Model'!BG376 -> 0.02 | BI152: ='Financial Model'!BH376 -> 0.02 | BJ152: ='Financial Model'!BI376 -> 0.02 | BK152: ='Financial Model'!BJ376 -> 0.02 | BL152: ='Financial Model'!BK376 -> 0.02 | BM152: ='Financial Model'!BL376 -> 0.02 | BN152: ='Financial Model'!BM376 -> 0.02 | BO152: ='Financial Model'!BN376 -> 0.02 | BP152: ='Financial Model'!BO376 -> 0.02 | BQ152: ='Financial Model'!BP376 -> 0.02
C153: Up-Front Fee | J153: ='Financial Model'!F384 -> 0.012
C154: Periodic Commitment Fee | J154: ='Financial Model'!$F$383 -> 0.0009166666667 | K154: ='Financial Model'!$F$383 -> 0.0009166666667 | L154: ='Financial Model'!$F$383 -> 0.0009166666667 | M154: ='Financial Model'!$F$383 -> 0.0009166666667 | N154: ='Financial Model'!$F$383 -> 0.0009166666667 | O154: ='Financial Model'!$F$383 -> 0.0009166666667 | P154: ='Financial Model'!$F$383 -> 0.0009166666667 | Q154: ='Financial Model'!$F$383 -> 0.0009166666667 | R154: ='Financial Model'!$F$383 -> 0.0009166666667 | S154: ='Financial Model'!$F$383 -> 0.0009166666667 | T154: ='Financial Model'!$F$383 -> 0.0009166666667 | U154: ='Financial Model'!$F$383 -> 0.0009166666667 | V154: ='Financial Model'!$F$383 -> 0.0009166666667 | W154: ='Financial Model'!$F$383 -> 0.0009166666667 | X154: ='Financial Model'!$F$383 -> 0.0009166666667 | Y154: ='Financial Model'!$F$383 -> 0.0009166666667 | Z154: ='Financial Model'!$F$383 -> 0.0009166666667 | AA154: ='Financial Model'!$F$383 -> 0.0009166666667 | AB154: ='Financial Model'!$F$383 -> 0.0009166666667 | AC154: ='Financial Model'!$F$383 -> 0.0009166666667 | AD154: ='Financial Model'!$F$383 -> 0.0009166666667 | AE154: ='Financial Model'!$F$383 -> 0.0009166666667 | AF154: ='Financial Model'!$F$383 -> 0.0009166666667 | AG154: ='Financial Model'!$F$383 -> 0.0009166666667 | AH154: ='Financial Model'!$F$383 -> 0.0009166666667 | AI154: ='Financial Model'!$F$383 -> 0.0009166666667 | AJ154: ='Financial Model'!$F$383 -> 0.0009166666667 | AK154: ='Financial Model'!$F$383 -> 0.0009166666667 | AL154: ='Financial Model'!$F$383 -> 0.0009166666667 | AM154: ='Financial Model'!$F$383 -> 0.0009166666667 | AN154: ='Financial Model'!$F$383 -> 0.0009166666667 | AO154: ='Financial Model'!$F$383 -> 0.0009166666667 | AP154: ='Financial Model'!$F$383 -> 0.0009166666667 | AQ154: ='Financial Model'!$F$383 -> 0.0009166666667 | AR154: ='Financial Model'!$F$383 -> 0.0009166666667 | AS154: ='Financial Model'!$F$383 -> 0.0009166666667 | AT154: ='Financial Model'!$F$383 -> 0.0009166666667 | AU154: ='Financial Model'!$F$383 -> 0.0009166666667 | AV154: ='Financial Model'!$F$383 -> 0.0009166666667 | AW154: ='Financial Model'!$F$383 -> 0.0009166666667 | AX154: ='Financial Model'!$F$383 -> 0.0009166666667 | AY154: ='Financial Model'!$F$383 -> 0.0009166666667 | AZ154: ='Financial Model'!$F$383 -> 0.0009166666667 | BA154: ='Financial Model'!$F$383 -> 0.0009166666667 | BB154: ='Financial Model'!$F$383 -> 0.0009166666667 | BC154: ='Financial Model'!$F$383 -> 0.0009166666667 | BD154: ='Financial Model'!$F$383 -> 0.0009166666667 | BE154: ='Financial Model'!$F$383 -> 0.0009166666667 | BF154: ='Financial Model'!$F$383 -> 0.0009166666667 | BG154: ='Financial Model'!$F$383 -> 0.0009166666667 | BH154: ='Financial Model'!$F$383 -> 0.0009166666667 | BI154: ='Financial Model'!$F$383 -> 0.0009166666667 | BJ154: ='Financial Model'!$F$383 -> 0.0009166666667 | BK154: ='Financial Model'!$F$383 -> 0.0009166666667 | BL154: ='Financial Model'!$F$383 -> 0.0009166666667 | BM154: ='Financial Model'!$F$383 -> 0.0009166666667 | BN154: ='Financial Model'!$F$383 -> 0.0009166666667 | BO154: ='Financial Model'!$F$383 -> 0.0009166666667 | BP154: ='Financial Model'!$F$383 -> 0.0009166666667 | BQ154: ='Financial Model'!$F$383 -> 0.0009166666667
C155: PRI | J155: 0 | K155: 0 | L155: 0 | M155: 0 | N155: 0 | O155: 0 | P155: 0 | Q155: 0 | R155: 0 | S155: 0 | T155: 0 | U155: 0 | V155: 0 | W155: 0 | X155: 0 | Y155: 0 | Z155: 0 | AA155: 0 | AB155: 0 | AC155: 0 | AD155: 0 | AE155: 0 | AF155: 0 | AG155: 0 | AH155: 0 | AI155: 0 | AJ155: 0 | AK155: 0 | AL155: 0 | AM155: 0 | AN155: 0 | AO155: 0 | AP155: 0 | AQ155: 0 | AR155: 0 | AS155: 0 | AT155: 0 | AU155: 0 | AV155: 0 | AW155: 0 | AX155: 0 | AY155: 0 | AZ155: 0 | BA155: 0 | BB155: 0 | BC155: 0 | BD155: 0 | BE155: 0 | BF155: 0 | BG155: 0 | BH155: 0 | BI155: 0 | BJ155: 0 | BK155: 0 | BL155: 0 | BM155: 0 | BN155: 0 | BO155: 0 | BP155: 0 | BQ155: 0
C156: Capitalised Interest During Construction Switch | J156: 0
C157: Capitalised Fee During Construction Switch | J157: 0
C158: Sculpting Switch - TRUE is Automated Sculpting | J158: TRUE
C159: Debt Tenure | J159: ='Financial Model'!F370 -> 17
C160: Repayment Percent Input | J160: 0 | K160: 0 | L160: 0 | M160: 0 | N160: 0 | O160: 0 | P160: 0 | Q160: 0 | R160: 0 | S160: 0 | T160: 0 | U160: 0 | V160: 0 | W160: 0 | X160: 0 | Y160: 0 | Z160: 0 | AA160: 0 | AB160: 0 | AC160: 0 | AD160: 0 | AE160: 0 | AF160: 0 | AG160: 0 | AH160: 0 | AI160: 0 | AJ160: 0 | AK160: 0 | AL160: 0 | AM160: 0 | AN160: 0 | AO160: 0 | AP160: 0 | AQ160: 0 | AR160: 0 | AS160: 0 | AT160: 0 | AU160: 0 | AV160: 0 | AW160: 0 | AX160: 0 | AY160: 0 | AZ160: 0 | BA160: 0 | BB160: 0 | BC160: 0 | BD160: 0 | BE160: 0 | BF160: 0 | BG160: 0 | BH160: 0 | BI160: 0 | BJ160: 0 | BK160: 0 | BL160: 0 | BM160: 0 | BN160: 0 | BO160: 0 | BP160: 0 | BQ160: 0
C161: Balloon Percent | J161: 0
C162: Sweep Percent | J162: 0
C163: Start Period after COD for Sweep | J163: 0
C164: Fee as Percent of Debt other than LC Fee | J164: 0 | K164: 0 | L164: 0 | M164: 0 | N164: 0 | O164: 0 | P164: 0 | Q164: 0 | R164: 0 | S164: 0 | T164: 0 | U164: 0 | V164: 0 | W164: 0 | X164: 0 | Y164: 0 | Z164: 0 | AA164: 0 | AB164: 0 | AC164: 0 | AD164: 0 | AE164: 0 | AF164: 0 | AG164: 0 | AH164: 0 | AI164: 0 | AJ164: 0 | AK164: 0 | AL164: 0 | AM164: 0 | AN164: 0 | AO164: 0 | AP164: 0 | AQ164: 0 | AR164: 0 | AS164: 0 | AT164: 0 | AU164: 0 | AV164: 0 | AW164: 0 | AX164: 0 | AY164: 0 | AZ164: 0 | BA164: 0 | BB164: 0 | BC164: 0 | BD164: 0 | BE164: 0 | BF164: 0 | BG164: 0 | BH164: 0 | BI164: 0 | BJ164: 0 | BK164: 0 | BL164: 0 | BM164: 0 | BN164: 0 | BO164: 0 | BP164: 0 | BQ164: 0
C165: Re-financing Issue | J165: FALSE
C166: Period of Re-financing in case of Re-financing Issue | J166: 50
C167: Fixed Amount of Re-financing | J167: 0
C168: DSCR for Sculpted Re-financing | J168: 0
C169: Tenor of Re-financing in Periods | J169: 20
C170: Breakage Costs and Re-financing Fees | J170: 0
A288: Function Output
B289: =Titles!A1 -> '1 Iteration/Start Development/Period Count | E289: 1 | H289: =circular_template(UDF_switch,5:21,24:78,83:170) -> 12 | J289: 3 | K289: 4 | L289: 5 | M289: 6 | N289: 7 | O289: 8 | P289: 9 | Q289: 10 | R289: 11 | S289: 12 | T289: 13 | U289: 14 | V289: 15 | W289: 16 | X289: 17 | Y289: 18 | Z289: 19 | AA289: 20 | AB289: 21 | AC289: 22 | AD289: 23 | AE289: 24 | AF289: 25 | AG289: 26 | AH289: 27 | AI289: 28 | AJ289: 29 | AK289: 30 | AL289: 31 | AM289: 32 | AN289: 33 | AO289: 34 | AP289: 35 | AQ289: 36 | AR289: 37 | AS289: 38 | AT289: 39 | AU289: 40 | AV289: 41 | AW289: 42 | AX289: 43 | AY289: 44 | AZ289: 45 | BA289: 46 | BB289: 47 | BC289: 48 | BD289: 49 | BE289: 50
B290: =Titles!A2 -> '2 Uses of Funds: Cap Exp/Total/Pr Cost | E290: 2 | H290: 218800 | J290: 12155.55556 | K290: 12155.55556 | L290: 12155.55556 | M290: 12155.55556 | N290: 12155.55556 | O290: 12155.55556 | P290: 12155.55556 | Q290: 12155.55556 | R290: 12155.55556 | S290: 12155.55556 | T290: 12155.55556 | U290: 12155.55556 | V290: 12155.55556 | W290: 12155.55556 | X290: 12155.55556 | Y290: 12155.55556 | Z290: 12155.55556 | AA290: 12155.55556 | AB290: 0 | AC290: 0 | AD290: 0 | AE290: 0 | AF290: 0 | AG290: 0 | AH290: 0 | AI290: 0 | AJ290: 0 | AK290: 0 | AL290: 0 | AM290: 0 | AN290: 0 | AO290: 0 | AP290: 0 | AQ290: 0 | AR290: 0 | AS290: 0 | AT290: 0 | AU290: 0 | AV290: 0 | AW290: 0 | AX290: 0 | AY290: 0 | AZ290: 0 | BA290: 0 | BB290: 0 | BC290: 0 | BD290: 0 | BE290: 0
B291: =Titles!A3 -> '3 Working Capital Pre-COD/Total | E291: 3 | H291: 0 | J291: 0 | K291: 0 | L291: 0 | M291: 0 | N291: 0 | O291: 0 | P291: 0 | Q291: 0 | R291: 0 | S291: 0 | T291: 0 | U291: 0 | V291: 0 | W291: 0 | X291: 0 | Y291: 0 | Z291: 0 | AA291: 0 | AB291: 0 | AC291: 0 | AD291: 0 | AE291: 0 | AF291: 0 | AG291: 0 | AH291: 0 | AI291: 0 | AJ291: 0 | AK291: 0 | AL291: 0 | AM291: 0 | AN291: 0 | AO291: 0 | AP291: 0 | AQ291: 0 | AR291: 0 | AS291: 0 | AT291: 0 | AU291: 0 | AV291: 0 | AW291: 0 | AX291: 0 | AY291: 0 | AZ291: 0 | BA291: 0 | BB291: 0 | BC291: 0 | BD291: 0 | BE291: 0
B292: =Titles!A4 -> '4 Development Success Fee | E292: 4 | H292: 0 | J292: 0 | K292: 0 | L292: 0 | M292: 0 | N292: 0 | O292: 0 | P292: 0 | Q292: 0 | R292: 0 | S292: 0 | T292: 0 | U292: 0 | V292: 0 | W292: 0 | X292: 0 | Y292: 0 | Z292: 0 | AA292: 0 | AB292: 0 | AC292: 0 | AD292: 0 | AE292: 0 | AF292: 0 | AG292: 0 | AH292: 0 | AI292: 0 | AJ292: 0 | AK292: 0 | AL292: 0 | AM292: 0 | AN292: 0 | AO292: 0 | AP292: 0 | AQ292: 0 | AR292: 0 | AS292: 0 | AT292: 0 | AU292: 0 | AV292: 0 | AW292: 0 | AX292: 0 | AY292: 0 | AZ292: 0 | BA292: 0 | BB292: 0 | BC292: 0 | BD292: 0 | BE292: 0
B293: =Titles!A5 -> '5 Interest During Construction | E293: 5 | H293: 6329.751483 | J293: 0 | K293: 46.16441394 | L293: 86.36103168 | M293: 126.6715359 | N293: 167.0962492 | O293: 207.6354953 | P293: 248.2895985 | Q293: 289.0588844 | R293: 329.9436793 | S293: 370.9443104 | T293: 412.0611059 | U293: 453.294395 | V293: 494.6445076 | W293: 536.1117749 | X293: 577.6965287 | Y293: 619.3991018 | Z293: 661.2198281 | AA293: 703.1590424 | AB293: 0 | AC293: 0 | AD293: 0 | AE293: 0 | AF293: 0 | AG293: 0 | AH293: 0 | AI293: 0 | AJ293: 0 | AK293: 0 | AL293: 0 | AM293: 0 | AN293: 0 | AO293: 0 | AP293: 0 | AQ293: 0 | AR293: 0 | AS293: 0 | AT293: 0 | AU293: 0 | AV293: 0 | AW293: 0 | AX293: 0 | AY293: 0 | AZ293: 0 | BA293: 0 | BB293: 0 | BC293: 0 | BD293: 0 | BE293: 0
B294: =Titles!A6 -> '6 Up-Front Fees | E294: 6 | H294: 1865.733299 | J294: 1865.733299 | K294: 0 | L294: 0 | M294: 0 | N294: 0 | O294: 0 | P294: 0 | Q294: 0 | R294: 0 | S294: 0 | T294: 0 | U294: 0 | V294: 0 | W294: 0 | X294: 0 | Y294: 0 | Z294: 0 | AA294: 0 | AB294: 0 | AC294: 0 | AD294: 0 | AE294: 0 | AF294: 0 | AG294: 0 | AH294: 0 | AI294: 0 | AJ294: 0 | AK294: 0 | AL294: 0 | AM294: 0 | AN294: 0 | AO294: 0 | AP294: 0 | AQ294: 0 | AR294: 0 | AS294: 0 | AT294: 0 | AU294: 0 | AV294: 0 | AW294: 0 | AX294: 0 | AY294: 0 | AZ294: 0 | BA294: 0 | BB294: 0 | BC294: 0 | BD294: 0 | BE294: 0
B295: =Titles!A7 -> '7 Commitment Fees | E295: 7 | H295: 987.7262621 | J295: 101.7252356 | K295: 95.57464 | L295: 90.21914816 | M295: 84.84848295 | N295: 79.46260138 | O295: 74.06146035 | P295: 68.64501661 | Q295: 63.21322682 | R295: 57.76604749 | S295: 52.30343502 | T295: 46.82534569 | U295: 41.33173564 | V295: 35.8225609 | W295: 30.29777737 | X295: 24.75734084 | Y295: 19.20120694 | Z295: 13.62933122 | AA295: 8.041669056 | AB295: 0 | AC295: 0 | AD295: 0 | AE295: 0 | AF295: 0 | AG295: 0 | AH295: 0 | AI295: 0 | AJ295: 0 | AK295: 0 | AL295: 0 | AM295: 0 | AN295: 0 | AO295: 0 | AP295: 0 | AQ295: 0 | AR295: 0 | AS295: 0 | AT295: 0 | AU295: 0 | AV295: 0 | AW295: 0 | AX295: 0 | AY295: 0 | AZ295: 0 | BA295: 0 | BB295: 0 | BC295: 0 | BD295: 0 | BE295: 0
B296: =Titles!A8 -> '8 Other: PRI/EBL Interest/Witholdding/Standby Interest | E296: 8 | H296: 0 | J296: 0 | K296: 0 | L296: 0 | M296: 0 | N296: 0 | O296: 0 | P296: 0 | Q296: 0 | R296: 0 | S296: 0 | T296: 0 | U296: 0 | V296: 0 | W296: 0 | X296: 0 | Y296: 0 | Z296: 0 | AA296: 0 | AB296: 0 | AC296: 0 | AD296: 0 | AE296: 0 | AF296: 0 | AG296: 0 | AH296: 0 | AI296: 0 | AJ296: 0 | AK296: 0 | AL296: 0 | AM296: 0 | AN296: 0 | AO296: 0 | AP296: 0 | AQ296: 0 | AR296: 0 | AS296: 0 | AT296: 0 | AU296: 0 | AV296: 0 | AW296: 0 | AX296: 0 | AY296: 0 | AZ296: 0 | BA296: 0 | BB296: 0 | BC296: 0 | BD296: 0 | BE296: 0
B297: =Titles!A9 -> '9 DSRA Funded During Construction | E297: 9 | H297: 5598.545609 | J297: 0 | K297: 0 | L297: 0 | M297: 0 | N297: 0 | O297: 0 | P297: 0 | Q297: 0 | R297: 0 | S297: 0 | T297: 0 | U297: 0 | V297: 0 | W297: 0 | X297: 0 | Y297: 0 | Z297: 0 | AA297: 5598.545609 | AB297: 0 | AC297: 0 | AD297: 0 | AE297: 0 | AF297: 0 | AG297: 0 | AH297: 0 | AI297: 0 | AJ297: 0 | AK297: 0 | AL297: 0 | AM297: 0 | AN297: 0 | AO297: 0 | AP297: 0 | AQ297: 0 | AR297: 0 | AS297: 0 | AT297: 0 | AU297: 0 | AV297: 0 | AW297: 0 | AX297: 0 | AY297: 0 | AZ297: 0 | BA297: 0 | BB297: 0 | BC297: 0 | BD297: 0 | BE297: 0
B298: =Titles!A10 -> '10 Withholding Tax | E298: 10 | H298: 0 | J298: 0 | K298: 0 | L298: 0 | M298: 0 | N298: 0 | O298: 0 | P298: 0 | Q298: 0 | R298: 0 | S298: 0 | T298: 0 | U298: 0 | V298: 0 | W298: 0 | X298: 0 | Y298: 0 | Z298: 0 | AA298: 0 | AB298: 0 | AC298: 0 | AD298: 0 | AE298: 0 | AF298: 0 | AG298: 0 | AH298: 0 | AI298: 0 | AJ298: 0 | AK298: 0 | AL298: 0 | AM298: 0 | AN298: 0 | AO298: 0 | AP298: 0 | AQ298: 0 | AR298: 0 | AS298: 0 | AT298: 0 | AU298: 0 | AV298: 0 | AW298: 0 | AX298: 0 | AY298: 0 | AZ298: 0 | BA298: 0 | BB298: 0 | BC298: 0 | BD298: 0 | BE298: 0
B299: =Titles!A11 -> '11 Total Uses Including Capitalised Items | E299: 11 | H299: 233581.7567 | J299: 14123.01409 | K299: 12297.29461 | L299: 12332.13574 | M299: 12367.07557 | N299: 12402.11441 | O299: 12437.25251 | P299: 12472.49017 | Q299: 12507.82767 | R299: 12543.26528 | S299: 12578.8033 | T299: 12614.44201 | U299: 12650.18169 | V299: 12686.02262 | W299: 12721.96511 | X299: 12758.00943 | Y299: 12794.15586 | Z299: 12830.40471 | AA299: 12866.75627 | AB299: 0 | AC299: 0 | AD299: 0 | AE299: 0 | AF299: 0 | AG299: 0 | AH299: 0 | AI299: 0 | AJ299: 0 | AK299: 0 | AL299: 0 | AM299: 0 | AN299: 0 | AO299: 0 | AP299: 0 | AQ299: 0 | AR299: 0 | AS299: 0 | AT299: 0 | AU299: 0 | AV299: 0 | AW299: 0 | AX299: 0 | AY299: 0 | AZ299: 0 | BA299: 0 | BB299: 0 | BC299: 0 | BD299: 0 | BE299: 0
B300: =Titles!A12 -> '12 Less: Capitalised Interest Incl EBL Interest | E300: 12 | H300: 0 | J300: 0 | K300: 0 | L300: 0 | M300: 0 | N300: 0 | O300: 0 | P300: 0 | Q300: 0 | R300: 0 | S300: 0 | T300: 0 | U300: 0 | V300: 0 | W300: 0 | X300: 0 | Y300: 0 | Z300: 0 | AA300: 0 | AB300: 0 | AC300: 0 | AD300: 0 | AE300: 0 | AF300: 0 | AG300: 0 | AH300: 0 | AI300: 0 | AJ300: 0 | AK300: 0 | AL300: 0 | AM300: 0 | AN300: 0 | AO300: 0 | AP300: 0 | AQ300: 0 | AR300: 0 | AS300: 0 | AT300: 0 | AU300: 0 | AV300: 0 | AW300: 0 | AX300: 0 | AY300: 0 | AZ300: 0 | BA300: 0 | BB300: 0 | BC300: 0 | BD300: 0 | BE300: 0
B301: =Titles!A13 -> '13 Less: Capitalised Fees Incl EBL Fees | E301: 13 | H301: 0 | J301: 0 | K301: 0 | L301: 0 | M301: 0 | N301: 0 | O301: 0 | P301: 0 | Q301: 0 | R301: 0 | S301: 0 | T301: 0 | U301: 0 | V301: 0 | W301: 0 | X301: 0 | Y301: 0 | Z301: 0 | AA301: 0 | AB301: 0 | AC301: 0 | AD301: 0 | AE301: 0 | AF301: 0 | AG301: 0 | AH301: 0 | AI301: 0 | AJ301: 0 | AK301: 0 | AL301: 0 | AM301: 0 | AN301: 0 | AO301: 0 | AP301: 0 | AQ301: 0 | AR301: 0 | AS301: 0 | AT301: 0 | AU301: 0 | AV301: 0 | AW301: 0 | AX301: 0 | AY301: 0 | AZ301: 0 | BA301: 0 | BB301: 0 | BC301: 0 | BD301: 0 | BE301: 0
B302: =Titles!A14 -> '14 Cash Funding Needs (excl capitalised items) | E302: 14 | H302: 233581.7567 | J302: 14123.01409 | K302: 12297.29461 | L302: 12332.13574 | M302: 12367.07557 | N302: 12402.11441 | O302: 12437.25251 | P302: 12472.49017 | Q302: 12507.82767 | R302: 12543.26528 | S302: 12578.8033 | T302: 12614.44201 | U302: 12650.18169 | V302: 12686.02262 | W302: 12721.96511 | X302: 12758.00943 | Y302: 12794.15586 | Z302: 12830.40471 | AA302: 18465.30188 | AB302: 0 | AC302: 0 | AD302: 0 | AE302: 0 | AF302: 0 | AG302: 0 | AH302: 0 | AI302: 0 | AJ302: 0 | AK302: 0 | AL302: 0 | AM302: 0 | AN302: 0 | AO302: 0 | AP302: 0 | AQ302: 0 | AR302: 0 | AS302: 0 | AT302: 0 | AU302: 0 | AV302: 0 | AW302: 0 | AX302: 0 | AY302: 0 | AZ302: 0 | BA302: 0 | BB302: 0 | BC302: 0 | BD302: 0 | BE302: 0
B303: =Titles!A15 -> '15 Allocation to Up-Front Equity Financing/Total/Percent | E303: 15 | H303: 0 | I303: 0 | J303: 0 | K303: 0 | L303: 0 | M303: 0 | N303: 0 | O303: 0 | P303: 0 | Q303: 0 | R303: 0 | S303: 0 | T303: 0 | U303: 0 | V303: 0 | W303: 0 | X303: 0 | Y303: 0 | Z303: 0 | AA303: 0 | AB303: 0 | AC303: 0 | AD303: 0 | AE303: 0 | AF303: 0 | AG303: 0 | AH303: 0 | AI303: 0 | AJ303: 0 | AK303: 0 | AL303: 0 | AM303: 0 | AN303: 0 | AO303: 0 | AP303: 0 | AQ303: 0 | AR303: 0 | AS303: 0 | AT303: 0 | AU303: 0 | AV303: 0 | AW303: 0 | AX303: 0 | AY303: 0 | AZ303: 0 | BA303: 0 | BB303: 0 | BC303: 0 | BD303: 0 | BE303: 0
B304: =Titles!A16 -> '16 Allocation to Pro-Rata Funding/Pro-Rata Base | E304: 16 | H304: 233581.7567 | J304: 14123.01409 | K304: 12297.29461 | L304: 12332.13574 | M304: 12367.07557 | N304: 12402.11441 | O304: 12437.25251 | P304: 12472.49017 | Q304: 12507.82767 | R304: 12543.26528 | S304: 12578.8033 | T304: 12614.44201 | U304: 12650.18169 | V304: 12686.02262 | W304: 12721.96511 | X304: 12758.00943 | Y304: 12794.15586 | Z304: 12830.40471 | AA304: 18465.30188 | AB304: 0 | AC304: 0 | AD304: 0 | AE304: 0 | AF304: 0 | AG304: 0 | AH304: 0 | AI304: 0 | AJ304: 0 | AK304: 0 | AL304: 0 | AM304: 0 | AN304: 0 | AO304: 0 | AP304: 0 | AQ304: 0 | AR304: 0 | AS304: 0 | AT304: 0 | AU304: 0 | AV304: 0 | AW304: 0 | AX304: 0 | AY304: 0 | AZ304: 0 | BA304: 0 | BB304: 0 | BC304: 0 | BD304: 0 | BE304: 0
B305: =Titles!A17 -> '17 Total Up Front and Pro-Rata | E305: 17 | H305: 233581.7567 | J305: 14123.01409 | K305: 12297.29461 | L305: 12332.13574 | M305: 12367.07557 | N305: 12402.11441 | O305: 12437.25251 | P305: 12472.49017 | Q305: 12507.82767 | R305: 12543.26528 | S305: 12578.8033 | T305: 12614.44201 | U305: 12650.18169 | V305: 12686.02262 | W305: 12721.96511 | X305: 12758.00943 | Y305: 12794.15586 | Z305: 12830.40471 | AA305: 18465.30188 | AB305: 0 | AC305: 0 | AD305: 0 | AE305: 0 | AF305: 0 | AG305: 0 | AH305: 0 | AI305: 0 | AJ305: 0 | AK305: 0 | AL305: 0 | AM305: 0 | AN305: 0 | AO305: 0 | AP305: 0 | AQ305: 0 | AR305: 0 | AS305: 0 | AT305: 0 | AU305: 0 | AV305: 0 | AW305: 0 | AX305: 0 | AY305: 0 | AZ305: 0 | BA305: 0 | BB305: 0 | BC305: 0 | BD305: 0 | BE305: 0
B306: =Titles!A18 -> '18 Senior Debt Sizing Parameters | E306: 18 | H306: Senior Size | I306: 138716.2304 | J306: From Fix Input | K306: 1 | L306: Debt % | M306: 0.5938658584 | N306: Fix Input Debt | O306: 138716.2304 | P306: From Pct | Q306: 186865.4053 | R306: From DSCR | S306: 138716.0245 | T306: From DSCR/Pct | U306: 138716.0245 | V306: Proj Cost | W306: 233581.7567 | X306: DSCR Input | Y306: 1 | Z306: DSCR Applied | AA306: 0.9999985157
B307: =Titles!A19 -> '19 Mezzanine Debt Sizing Parameters | E307: 19 | H307: Mezz Size | I307: 0 | J307: From Fix Input | K307: 1 | L307: Debt % | M307: 0 | N307: Fix Input Debt | O307: 0 | P307: From Pct | Q307: 0 | R307: From DSCR | S307: 0 | T307: From DSCR/Pct | U307: 0 | V307: Proj Cost | W307: 233581.7567 | X307: Total DSCR | Y307: 0 | Z307: Mezz IDC | AA307: 0 | AB307: Mezz Fees | AC307: 0 | AD307: Deductible Int | AE307: 1
B308: =Titles!A20 -> '20 Shareholder Debt Sizing Parameters | E308: 20 | H308: Sh Loan Size | I308: 0 | J308: From Fix Input | K308: 1 | L308: Pct of Equity | M308: 0 | N308: Input Debt | O308: 0 | P308: From Pct | Q308: 0 | V308: Equity Commitment | W308: 94865.52622 | X308: Shrldr IDC | Y308: 0 | AB308: Shrldr Fees | AC308: 0 | AD308: Deductible Int | AE308: 0
B309: =Titles!A21 -> '21 Total Equity Cash Draws | E309: 21 | H309: 94865.52622 | J309: 5735.838204 | K309: 4994.35119 | L309: 5008.501361 | M309: 5022.691622 | N309: 5036.922088 | O309: 5051.192872 | P309: 5065.504089 | Q309: 5079.855852 | R309: 5094.248278 | S309: 5108.681481 | T309: 5123.155576 | U309: 5137.67068 | V309: 5152.226908 | W309: 5166.824378 | X309: 5181.463206 | Y309: 5196.143509 | Z309: 5210.865405 | AA309: 7499.389526 | AB309: 0 | AC309: 0 | AD309: 0 | AE309: 0 | AF309: 0 | AG309: 0 | AH309: 0 | AI309: 0 | AJ309: 0 | AK309: 0 | AL309: 0 | AM309: 0 | AN309: 0 | AO309: 0 | AP309: 0 | AQ309: 0 | AR309: 0 | AS309: 0 | AT309: 0 | AU309: 0 | AV309: 0 | AW309: 0 | AX309: 0 | AY309: 0 | AZ309: 0 | BA309: 0 | BB309: 0 | BC309: 0 | BD309: 0 | BE309: 0
B310: =Titles!A22 -> '22 Total Debt Incl Cap Int and Fees | E310: 22 | H310: 138716.2304 | I310: 0.5938658585 | J310: 8387.175886 | K310: 7302.94342 | L310: 7323.634375 | M310: 7344.383952 | N310: 7365.192318 | O310: 7386.059639 | P310: 7406.986082 | Q310: 7427.971814 | R310: 7449.017004 | S310: 7470.12182 | T310: 7491.286431 | U310: 7512.511006 | V310: 7533.795716 | W310: 7555.14073 | X310: 7576.546219 | Y310: 7598.012355 | Z310: 7619.53931 | AA310: 10965.91235 | AB310: 0 | AC310: 0 | AD310: 0 | AE310: 0 | AF310: 0 | AG310: 0 | AH310: 0 | AI310: 0 | AJ310: 0 | AK310: 0 | AL310: 0 | AM310: 0 | AN310: 0 | AO310: 0 | AP310: 0 | AQ310: 0 | AR310: 0 | AS310: 0 | AT310: 0 | AU310: 0 | AV310: 0 | AW310: 0 | AX310: 0 | AY310: 0 | AZ310: 0 | BA310: 0 | BB310: 0 | BC310: 0 | BD310: 0 | BE310: 0
B311: =Titles!A23 -> '23 Total Debt Cash Draws | E311: 23 | H311: 138716.2304 | J311: 8387.175886 | K311: 7302.94342 | L311: 7323.634375 | M311: 7344.383952 | N311: 7365.192318 | O311: 7386.059639 | P311: 7406.986082 | Q311: 7427.971814 | R311: 7449.017004 | S311: 7470.12182 | T311: 7491.286431 | U311: 7512.511006 | V311: 7533.795716 | W311: 7555.14073 | X311: 7576.546219 | Y311: 7598.012355 | Z311: 7619.53931 | AA311: 10965.91235 | AB311: 0 | AC311: 0 | AD311: 0 | AE311: 0 | AF311: 0 | AG311: 0 | AH311: 0 | AI311: 0 | AJ311: 0 | AK311: 0 | AL311: 0 | AM311: 0 | AN311: 0 | AO311: 0 | AP311: 0 | AQ311: 0 | AR311: 0 | AS311: 0 | AT311: 0 | AU311: 0 | AV311: 0 | AW311: 0 | AX311: 0 | AY311: 0 | AZ311: 0 | BA311: 0 | BB311: 0 | BC311: 0 | BD311: 0 | BE311: 0
B312: =Titles!A24 -> '24 Senior Debt Financing/Pct Senior | E312: 24 | H312: 138716.2304 | I312: 0.5938658584 | J312: 101390.6347 | K312: 88285.82888 | L312: 88537.90579 | M312: 88790.70271 | N312: 89044.2217 | O312: 89298.46483 | P312: 89553.43416 | Q312: 89809.13177 | R312: 90065.55974 | S312: 90322.72015 | T312: 90580.6151 | U312: 90839.2467 | V312: 91098.61703 | W312: 91358.72822 | X312: 91619.58239 | Y312: 91881.18164 | Z312: 92143.52812 | AA312: 129213.4133 | AB312: 0 | AC312: 0 | AD312: 0 | AE312: 0 | AF312: 0 | AG312: 0 | AH312: 0 | AI312: 0 | AJ312: 0 | AK312: 0 | AL312: 0 | AM312: 0 | AN312: 0 | AO312: 0 | AP312: 0 | AQ312: 0 | AR312: 0 | AS312: 0 | AT312: 0 | AU312: 0 | AV312: 0 | AW312: 0 | AX312: 0 | AY312: 0 | AZ312: 0 | BA312: 0 | BB312: 0 | BC312: 0 | BD312: 0 | BE312: 0
B313: =Titles!A25 -> '25 Mezzanine Debt Financing/Pct Senior | E313: 25 | H313: 0 | I313: 0 | J313: 0 | K313: 0 | L313: 0 | M313: 0 | N313: 0 | O313: 0 | P313: 0 | Q313: 0 | R313: 0 | S313: 0 | T313: 0 | U313: 0 | V313: 0 | W313: 0 | X313: 0 | Y313: 0 | Z313: 0 | AA313: 0 | AB313: 0 | AC313: 0 | AD313: 0 | AE313: 0 | AF313: 0 | AG313: 0 | AH313: 0 | AI313: 0 | AJ313: 0 | AK313: 0 | AL313: 0 | AM313: 0 | AN313: 0 | AO313: 0 | AP313: 0 | AQ313: 0 | AR313: 0 | AS313: 0 | AT313: 0 | AU313: 0 | AV313: 0 | AW313: 0 | AX313: 0 | AY313: 0 | AZ313: 0 | BA313: 0 | BB313: 0 | BC313: 0 | BD313: 0 | BE313: 0
B314: =Titles!A26 -> '26 Working Capital Draws | E314: 26 | J314: 0 | K314: 0 | L314: 0 | M314: 0 | N314: 0 | O314: 0 | P314: 0 | Q314: 0 | R314: 0 | S314: 0 | T314: 0 | U314: 0 | V314: 0 | W314: 0 | X314: 0 | Y314: 0 | Z314: 0 | AA314: 0 | AB314: 0 | AC314: 0 | AD314: 0 | AE314: 0 | AF314: 0 | AG314: 0 | AH314: 0 | AI314: 0 | AJ314: 0 | AK314: 0 | AL314: 0 | AM314: 0 | AN314: 0 | AO314: 0 | AP314: 0 | AQ314: 0 | AR314: 0 | AS314: 0 | AT314: 0 | AU314: 0 | AV314: 0 | AW314: 0 | AX314: 0 | AY314: 0 | AZ314: 0 | BA314: 0 | BB314: 0 | BC314: 0 | BD314: 0 | BE314: 0
B315: =Titles!A27 -> '27 Standby Debt Draws | E315: 27 | J315: 0 | K315: 0 | L315: 0 | M315: 0 | N315: 0 | O315: 0 | P315: 0 | Q315: 0 | R315: 0 | S315: 0 | T315: 0 | U315: 0 | V315: 0 | W315: 0 | X315: 0 | Y315: 0 | Z315: 0 | AA315: 0 | AB315: 0 | AC315: 0 | AD315: 0 | AE315: 0 | AF315: 0 | AG315: 0 | AH315: 0 | AI315: 0 | AJ315: 0 | AK315: 0 | AL315: 0 | AM315: 0 | AN315: 0 | AO315: 0 | AP315: 0 | AQ315: 0 | AR315: 0 | AS315: 0 | AT315: 0 | AU315: 0 | AV315: 0 | AW315: 0 | AX315: 0 | AY315: 0 | AZ315: 0 | BA315: 0 | BB315: 0 | BC315: 0 | BD315: 0 | BE315: 0
B316: =Titles!A28 -> '28 Non Shareholder Equity Draws | E316: 28 | H316: 94865.52622 | J316: 5735.838204 | K316: 4994.35119 | L316: 5008.501361 | M316: 5022.691622 | N316: 5036.922088 | O316: 5051.192872 | P316: 5065.504089 | Q316: 5079.855852 | R316: 5094.248278 | S316: 5108.681481 | T316: 5123.155576 | U316: 5137.67068 | V316: 5152.226908 | W316: 5166.824378 | X316: 5181.463206 | Y316: 5196.143509 | Z316: 5210.865405 | AA316: 7499.389526 | AB316: 0 | AC316: 0 | AD316: 0 | AE316: 0 | AF316: 0 | AG316: 0 | AH316: 0 | AI316: 0 | AJ316: 0 | AK316: 0 | AL316: 0 | AM316: 0 | AN316: 0 | AO316: 0 | AP316: 0 | AQ316: 0 | AR316: 0 | AS316: 0 | AT316: 0 | AU316: 0 | AV316: 0 | AW316: 0 | AX316: 0 | AY316: 0 | AZ316: 0 | BA316: 0 | BB316: 0 | BC316: 0 | BD316: 0 | BE316: 0
B317: =Titles!A29 -> '29 Shareholder Loan Equity | E317: 29 | H317: 0 | I317: 0 | J317: 0 | K317: 0 | L317: 0 | M317: 0 | N317: 0 | O317: 0 | P317: 0 | Q317: 0 | R317: 0 | S317: 0 | T317: 0 | U317: 0 | V317: 0 | W317: 0 | X317: 0 | Y317: 0 | Z317: 0 | AA317: 0 | AB317: 0 | AC317: 0 | AD317: 0 | AE317: 0 | AF317: 0 | AG317: 0 | AH317: 0 | AI317: 0 | AJ317: 0 | AK317: 0 | AL317: 0 | AM317: 0 | AN317: 0 | AO317: 0 | AP317: 0 | AQ317: 0 | AR317: 0 | AS317: 0 | AT317: 0 | AU317: 0 | AV317: 0 | AW317: 0 | AX317: 0 | AY317: 0 | AZ317: 0 | BA317: 0 | BB317: 0 | BC317: 0 | BD317: 0 | BE317: 0
B318: =Titles!A30 -> '30 Total Sources | E318: 30 | H318: 233581.7567 | J318: 14123.01409 | K318: 12297.29461 | L318: 12332.13574 | M318: 12367.07557 | N318: 12402.11441 | O318: 12437.25251 | P318: 12472.49017 | Q318: 12507.82767 | R318: 12543.26528 | S318: 12578.8033 | T318: 12614.44201 | U318: 12650.18169 | V318: 12686.02262 | W318: 12721.96511 | X318: 12758.00943 | Y318: 12794.15586 | Z318: 12830.40471 | AA318: 18465.30188 | AB318: 0 | AC318: 0 | AD318: 0 | AE318: 0 | AF318: 0 | AG318: 0 | AH318: 0 | AI318: 0 | AJ318: 0 | AK318: 0 | AL318: 0 | AM318: 0 | AN318: 0 | AO318: 0 | AP318: 0 | AQ318: 0 | AR318: 0 | AS318: 0 | AT318: 0 | AU318: 0 | AV318: 0 | AW318: 0 | AX318: 0 | AY318: 0 | AZ318: 0 | BA318: 0 | BB318: 0 | BC318: 0 | BD318: 0 | BE318: 0
B319: =Titles!A31 -> '31 Up Front Equity Draws | E319: 31 | H319: 0 | I319: 0 | J319: 0 | K319: 0 | L319: 0 | M319: 0 | N319: 0 | O319: 0 | P319: 0 | Q319: 0 | R319: 0 | S319: 0 | T319: 0 | U319: 0 | V319: 0 | W319: 0 | X319: 0 | Y319: 0 | Z319: 0 | AA319: 0 | AB319: 0 | AC319: 0 | AD319: 0 | AE319: 0 | AF319: 0 | AG319: 0 | AH319: 0 | AI319: 0 | AJ319: 0 | AK319: 0 | AL319: 0 | AM319: 0 | AN319: 0 | AO319: 0 | AP319: 0 | AQ319: 0 | AR319: 0 | AS319: 0 | AT319: 0 | AU319: 0 | AV319: 0 | AW319: 0 | AX319: 0 | AY319: 0 | AZ319: 0 | BA319: 0 | BB319: 0 | BC319: 0 | BD319: 0 | BE319: 0
B320: =Titles!A32 -> '32 Pro-Rata Equity Draws | E320: 32 | H320: 94865.52622 | I320: 0.4061341416 | J320: 5735.838204 | K320: 4994.35119 | L320: 5008.501361 | M320: 5022.691622 | N320: 5036.922088 | O320: 5051.192872 | P320: 5065.504089 | Q320: 5079.855852 | R320: 5094.248278 | S320: 5108.681481 | T320: 5123.155576 | U320: 5137.67068 | V320: 5152.226908 | W320: 5166.824378 | X320: 5181.463206 | Y320: 5196.143509 | Z320: 5210.865405 | AA320: 7499.389526 | AB320: 0 | AC320: 0 | AD320: 0 | AE320: 0 | AF320: 0 | AG320: 0 | AH320: 0 | AI320: 0 | AJ320: 0 | AK320: 0 | AL320: 0 | AM320: 0 | AN320: 0 | AO320: 0 | AP320: 0 | AQ320: 0 | AR320: 0 | AS320: 0 | AT320: 0 | AU320: 0 | AV320: 0 | AW320: 0 | AX320: 0 | AY320: 0 | AZ320: 0 | BA320: 0 | BB320: 0 | BC320: 0 | BD320: 0 | BE320: 0
B321: =Titles!A33 -> '33 Total Cash Debt Draws | E321: 33 | H321: 138716.2304 | I321: 0.5938658584 | J321: 8387.175886 | K321: 7302.94342 | L321: 7323.634375 | M321: 7344.383952 | N321: 7365.192318 | O321: 7386.059639 | P321: 7406.986082 | Q321: 7427.971814 | R321: 7449.017004 | S321: 7470.12182 | T321: 7491.286431 | U321: 7512.511006 | V321: 7533.795716 | W321: 7555.14073 | X321: 7576.546219 | Y321: 7598.012355 | Z321: 7619.53931 | AA321: 10965.91235 | AB321: 0 | AC321: 0 | AD321: 0 | AE321: 0 | AF321: 0 | AG321: 0 | AH321: 0 | AI321: 0 | AJ321: 0 | AK321: 0 | AL321: 0 | AM321: 0 | AN321: 0 | AO321: 0 | AP321: 0 | AQ321: 0 | AR321: 0 | AS321: 0 | AT321: 0 | AU321: 0 | AV321: 0 | AW321: 0 | AX321: 0 | AY321: 0 | AZ321: 0 | BA321: 0 | BB321: 0 | BC321: 0 | BD321: 0 | BE321: 0
B322: =Titles!A34 -> '34 EBL Interest and Fees | E322: 34 | H322: 0 | I322: 0.4061341416 | J322: 0 | K322: 0 | L322: 0 | M322: 0 | N322: 0 | O322: 0 | P322: 0 | Q322: 0 | R322: 0 | S322: 0 | T322: 0 | U322: 0 | V322: 0 | W322: 0 | X322: 0 | Y322: 0 | Z322: 0 | AA322: 0 | AB322: 0 | AC322: 0 | AD322: 0 | AE322: 0 | AF322: 0 | AG322: 0 | AH322: 0 | AI322: 0 | AJ322: 0 | AK322: 0 | AL322: 0 | AM322: 0 | AN322: 0 | AO322: 0 | AP322: 0 | AQ322: 0 | AR322: 0 | AS322: 0 | AT322: 0 | AU322: 0 | AV322: 0 | AW322: 0 | AX322: 0 | AY322: 0 | AZ322: 0 | BA322: 0 | BB322: 0 | BC322: 0 | BD322: 0 | BE322: 0
B323: =Titles!A35 -> '35 Capital Interest and Fees | E323: 35 | H323: 0 | J323: 0 | K323: 0 | L323: 0 | M323: 0 | N323: 0 | O323: 0 | P323: 0 | Q323: 0 | R323: 0 | S323: 0 | T323: 0 | U323: 0 | V323: 0 | W323: 0 | X323: 0 | Y323: 0 | Z323: 0 | AA323: 0 | AB323: 0 | AC323: 0 | AD323: 0 | AE323: 0 | AF323: 0 | AG323: 0 | AH323: 0 | AI323: 0 | AJ323: 0 | AK323: 0 | AL323: 0 | AM323: 0 | AN323: 0 | AO323: 0 | AP323: 0 | AQ323: 0 | AR323: 0 | AS323: 0 | AT323: 0 | AU323: 0 | AV323: 0 | AW323: 0 | AX323: 0 | AY323: 0 | AZ323: 0 | BA323: 0 | BB323: 0 | BC323: 0 | BD323: 0 | BE323: 0
... 290 more rows

Sheet Sheet1
F2: Interest Rate | H2: 0.05 | I2: 0.06 | J2: 0.07 | K2: 0.08
F3: Factor | G3: =(1+H2) -> 1.05 | H3: =G3*(1+H2) -> 1.1025 | I3: =H3*(1+I2) -> 1.16865 | J3: 1.2504555 | K3: 1.35049194
F4: Debt | H4: 800
F5: Debt IRR | I5: 0.04 | J5: =F13 -> 0.05628506618 | K5: =J5-I5 -> 0.01628506618 | N5: 212 | O5: 32 | P5: =N5-O5 -> 180
N6: 100 | O6: 0 | P6: =N6-O6 -> 100
G7: 300 | H7: 300 | I7: 300 | J7: 300 | K7: 300
E8: PV CFADS | F8: =SUMPRODUCT(G7:K7/G3:K3) -> 1276.583435
E9: PV CFADS IRR | F9: =NPV(F19,G7:K7) -> 1276.583435
E10: LLCR | F10: =F8/H4 -> 1.595729294 | N10: 32
E11: DS | G11: =G7/$F$10 -> 188.0018128 | H11: =H7/$F$10 -> 188.0018128 | I11: 188.0018128 | J11: 188.0018128 | K11: 188.0018128 | N11: C | O11: F
E12: D CF | F12: =-H4 -> -800 | G12: =G11 -> 188.0018128 | H12: =H11 -> 188.0018128 | I12: 188.0018128 | J12: 188.0018128 | K12: 188.0018128 | N12: =(O12-N10)/1.8 -> 37.77777778 | O12: 100
E13: IRR | F13: =IRR(F12:K12) -> 0.05628506618
E15: NPV of DS | F15: =-SUMPRODUCT(G11:K11/G3:K3) -> -800 | G15: =G12 -> 188.0018128 | H15: =H12 -> 188.0018128 | I15: 188.0018128 | J15: 188.0018128 | K15: 188.0018128
E16: Debt | F16: =H4 -> 800
F17: =F15+F16 -> 0
F19: =IRR(F15:K15) -> 0.05628506618

Sheet Titles
A1: '1 Iteration/Start Development/Period Count
A2: '2 Uses of Funds: Cap Exp/Total/Pr Cost
A3: '3 Working Capital Pre-COD/Total
A4: '4 Development Success Fee
A5: '5 Interest During Construction
A6: '6 Up-Front Fees
A7: '7 Commitment Fees
A8: '8 Other: PRI/EBL Interest/Witholdding/Standby Interest
A9: '9 DSRA Funded During Construction
A10: '10 Withholding Tax
A11: '11 Total Uses Including Capitalised Items
A12: '12 Less: Capitalised Interest Incl EBL Interest
A13: '13 Less: Capitalised Fees Incl EBL Fees
A14: '14 Cash Funding Needs (excl capitalised items)
A15: '15 Allocation to Up-Front Equity Financing/Total/Percent
A16: '16 Allocation to Pro-Rata Funding/Pro-Rata Base
A17: '17 Total Up Front and Pro-Rata
A18: '18 Senior Debt Sizing Parameters
A19: '19 Mezzanine Debt Sizing Parameters
A20: '20 Shareholder Debt Sizing Parameters
A21: '21 Total Equity Cash Draws
A22: '22 Total Debt Incl Cap Int and Fees
A23: '23 Total Debt Cash Draws
A24: '24 Senior Debt Financing/Pct Senior
A25: '25 Mezzanine Debt Financing/Pct Senior
A26: '26 Working Capital Draws
A27: '27 Standby Debt Draws
A28: '28 Non Shareholder Equity Draws
A29: '29 Shareholder Loan Equity
A30: '30 Total Sources
A31: '31 Up Front Equity Draws
A32: '32 Pro-Rata Equity Draws
A33: '33 Total Cash Debt Draws
A34: '34 EBL Interest and Fees
A35: '35 Capital Interest and Fees
A36: '36 Total Sources Incl Cap Interest
A37: '37 EBL Allocation: Equity Cash Draws
A38: '38 Initial Share Capital
A39: '39 EBL Draws
A40: '40 Shareholder IDC
A41: '41 Tax Section: Tax Parameters
A42: '42 Tax Period (True is tax period)
A43: '43 EBITDA/Start/End
A44: '44 Depreciation without IDC
A45: '45 IDC Depreciation
A46: '46 Fee Amortisation
A47: '47 EBIT
A48: '48 Deductible Senior Interest
A49: '49 Deductible Mezzanine Interest
A50: '50 Deductible Shareholder Interest
A51: '51 Total Deductible Interest/Max Pct
A52: '52 EBT Before NOL Adjustment
A53: '53 Additions to NOL
A54: '54 Subtractions from NOL
A55: '55 Adjusted EBT for NOL
A56: '56 NOL Balance
A57: '57 Taxes Paid/Tax Rate
A58: '58 CFADS Analysis: EBITDA/Start/End
A59: '59 Working Capital Change
A60: '60 Taxes Paid/Rate
A61: '61 Interest Income/Rate
A62: '62 Post COD Capital Expenditure
A63: '63 Changes to MRA Account
A64: '64 Changes to DSRA Account
A65: '65 CFADS
A66: '66 Non Sculpted Debt Service: Interest Non-Sculpted
A67: '67 Repayment Non Sculpted/Total Non-Sculpted Debt
A68: '68 Non Sculpted Debt Service (No Balloon)/PV
A69: '69 Balloon Interest
A70: '70 Balloon Repayment/Total Balloon
A71: '71 Total Non-Sculpted Interest Incl Balloon
A72: '72 Total Non-Sculpted Repayment
A73: '73 Total Non-Sculpted Debt Service Incl Balloon
A74: '74 Senior Non-Sculpted Debt Service Incl Balloon
A75: '75 Mezzanine Non-Sculpted Debt Service Incl Balloon
A76: '76 Senior Sculpting Parameters
A77: '77 CFADS for Sculpting
A78: '78 Senior DSCR Applied for Sculpting
A79: '79 Senior Sculpted Debt Service Before Other Debt
A80: '80 Less: Senior Non Sculpt Debt Service
A81: '81 Senior Debt Service
A82: '82 Senior Interest Expense
A83: '83 Repayment Adjustment from DSRA
A84: '84 Senior Sculpted Repayment/Total
A85: '85 Sculpt Period
A86: '86 Sculpting Disc Fac/Debt IRR
A87: '87 Debt Cash Flow for Debt IRR
A88: '88 Total/Mezzanine Sculpting Parameters
A89: '89 CFADS for Sculpting
A90: '90 Total DSCR Applied for Sculpting
A91: '91 Total Sculpted Debt Service Before Other Debt
A92: '92 Less: Total Non Sculpt Debt Service
A93: '93 Net Total Sculpted Debt Service
A94: '94 Less: Total Interest Expense
A95: '95 Repayment Adjustment from DSRA
A96: '96 Total Repayment
A97: '97 Less: Senior Sculpted Debt Service
A98: '98 Mezzanine Sculpted Debt
A99: '99 Period for Sculpting Total
A100: '100 Compound Interest Total/Debt IRR
A101: '101 Total Debt Cash Flow for Debt IRR
A102: '102 Computed DSCR: DSRA Adjustment to CFADS
A103: '103 CFADS
A104: '104 Senior Debt Repayment
A105: '105 Senior Interest Expense
A106: '106 Senior Debt Service
A107: '107 Senior DSCR Computed
A108: '108 Total Debt Repayment
A109: '109 Total Interest Expense
A110: '110 Total Debt Service
A111: '111 Total DSCR Computed
A112: '112 Average Total Interest Rate
A113: '113 DSRA Parameters
A114: '114 Senior Debt Service
A115: '115 DSRA Requirement
A116: '116 DSRA Balance/DSRA Periods
A117: '117 DSRA Funded
A118: '118 DSRA Change/PV DSRA Flows/PV DSCR
A119: '119 DSRA LC/LC Switch
A120: '120 Interest Income
A121: '121 DSRA LC Fee/PV Fees
A122: '122 Re-finance Period
A123: '123 Refinancing: Senior Debt Service for re-financing
A124: '124 DSCR for Re-financing
A125: '125 Refinance Amount
A126: '126 Re-finance fees
A127: '127 Repayment of Loans from Re-financing
A128: '128 Cash Flow Waterfall: CFADS
A129: '129 Less: Senior Interest
A130: '130 Less: Senior Repayment
A131: '131 Less: Senior Fees
A132: '132 Subtotal: Senior Debt Service
A133: '133 Subtotal: Cash Flow Before Senior Sweep
A134: '134 Less: Senior Sweep
A135: '135 Subtotal: Cash Flow After Sweep
A136: '136 Less: Mezzanine Interest
A137: '137 Less: Mezzanine Repayment
A138: '138 Less: Mezzanine Fees
A139: '139 Subtotal: Mezzanine Debt Service
A140: '140 Subtotal: Cash Flow Before Mezzanine Sweep
A141: '141 Less: Mezzanine Sweep
A142: '142 Subtotal: Cash Flow Before Shareholder Loan
A143: '143 Less: Shareholder Loan Sweep
A144: '144 Cash Flow After Shareholder Loan
A145: '145 Plus: Proceeds from Re-financing
A146: '146 Less: Re-financing Fees
A147: '147 Less: Early Repayment
A148: '148 Dividends
A149: '149 Gross Equity (Incl Shareholder and EBL)
A150: '150 Net Equity Balance
A151: '151 Shareholder Loan Balance
A152: '152 Equity Bridge Loan Balance
A153: '153 Retained Earnings Balance
A154: '154 Mezzanine Debt Balance
A155: '155 Senior Debt Balance
A156: '156 Total Debt
A157: '157 Total Capitalisation
A158: '158 DSRA Balance
A159: '159 MRA Balance
A160: '160 Gross Plant Balance
A161: '161 Accumulated Depreciation
A162: '162 Net IDC Balance
A163: '163 Net Fee Balance
A164: '164 Total Net Assets
A165: '165 Pre tax cash flow
A166: '166 After tax cash flow
A167: '167 Pre tax debt cash flow
A168: '168 Debt tax shield
A169: '169 After tax debt cash flow
A170: '170 Pre tax DSRA Cash
A171: '171 MRA cash flow
A172: '172 Unadjusted tax (EBT x Tax)
A173: '173 Tax adjustment (Taxes - EBT x Tax)
A174: '174 Total Equity cash flow
A175: '175 Pre tax EBL cash flow
A176: '176 After tax EBL cash flow
A177: '177 Equity cash flow after EBL
A178: '178 Shareholder Equity Cash Flow
A179: '179 Residual Equity Cash Flow
A180: '180 Debt Commitment by Issue
A181: '181 Up Front Fee by Debt Issue
A182: '182 Commitment Fee by Debt Issue
A183: '183 IDC by Debt Issue
A184: '184 Debt at COD by Issue
A185: '185 PV of Cash Flow
A186: '186 Sculpt Switch by Issue
A187: '187 Debt Tenure by Issue
A188: '188 LLCR by Issue
A189: '189 Refinance Switch by Issue
A190: '190 Debt Service Issue 1
A191: '191 Debt Service Issue 2
A192: '192 Debt Service Issue 3
A193: '193 Debt Service Issue 4
A194: '194 Debt Service Issue 5
A195: '195 Debt Balance Issue 1
A196: '196 Debt Balance Issue 2
A197: '197 Debt Balance Issue 3
A198: '198 Debt Balance Issue 4
A199: '199 Debt Balance Issue 5
A200: '200 Repayment Issue 1
... 16 more rows

Sheet Scenario sheet
A2: Code number | B2: 2
B4: 0 | C4: 1 | D4: 4 | E4: 7 | F4: 10 | G4: 13
A5: Term sheet | B5: 0.0425 | C5: 0.0437 | D5: 0.045 | E5: 0.0475 | F5: 0.05 | G5: 0.055
A6: Base case | B6: 0.0425 | C6: 0.03 | D6: 0.03 | E6: 0.03 | F6: 0.03 | G6: 0.03
A7: Upside case | B7: 0.0425 | C7: 0.02 | D7: 0.02 | E7: 0.02 | F7: 0.02 | G7: 0.02
A9: =INDEX(A5:A7,$B$2) -> Base case | B9: =INDEX(B5:B7,$B$2) -> 0.0425 | C9: 0.03 | D9: 0.03 | E9: 0.03 | F9: 0.03 | G9: 0.03
A15: P50 Base Case
A16: P99 Worst Case | G16: 2 | H16: P scenario
A17: P90 Downside

Sheet Solar P90

Sheet Term Sheet

Sheet Uncertainty (2)
B2: Wind Speed | D2: Energy | F2: Square | G2: Square Root
B3: [%] | C3: [m/s] | D3: [%] | E3: [GWh/yr]
A4: Anemometer | B4: 2 | C4: 0.15
A5: Period representative of long term | B5: 3.6 | C5: 0.27
A6: Cross Synthesis from Paijan | B6: 0.2 | C6: 0.02
A7: Overall historical wind speed | C7: 0.31 | E7: 12.17 | F7: =E7^2 -> 148.1089 | I7: =_xlfn.FORMULATEXT(F7) -> =E7^2
A8: Substation metering | D8: 0.3 | E8: 0.43 | F8: =E8^2 -> 0.1849
A9: Wake and topographic calculation | D9: 6 | E9: 8.59 | F9: 73.7881
A10: Energy loss factor assumptions | D10: 3 | E10: 4.29 | F10: 18.4041
A11: Map | D11: 2 | E11: 2.86 | F11: 8.1796
A13: Future wind variability 1-year | B13: 6 | C13: 0.45 | E13: 17.7 | F13: 313.29
A14: Future wind variability 10-years | B14: 1.9 | C14: 0.14 | E14: 5.6 | F14: 31.36
A16: Overall energy uncertainty 1-year | E16: 23.71 | F16: =SUM(F7:F13) -> 561.9556 | G16: =F16^0.5 -> 23.70560271 | I16: =_xlfn.FORMULATEXT(G16) -> =F16^0.5
A17: Overall energy uncertainty 10-years | E17: 16.73 | F17: =SUM(F7:F11)+F14 -> 280.0256 | G17: =F17^0.5 -> 16.73396546
F19: =_xlfn.FORMULATEXT(F17) -> =SUM(F7:F11)+F14
A21: Estimated Production | E21: 143.1666667
A22: Wind Variability Percent | E22: =E13/E21 -> 0.1236321304
E24: One-yr | F24: 10-yr
A25: Probability | B25: P99 | D25: 0.01 | E25: =_xlfn.NORM.INV($D25,$E$21,$G$16) -> 88.01918819 | F25: =_xlfn.NORM.INV($D25,$E$21,$G$17) -> 104.2376417
D26: 0.05 | E26: =_xlfn.NORM.INV($D26,$E$21,$G$16) -> 104.1744201 | F26: =_xlfn.NORM.INV($D26,$E$21,$G$17) -> 115.6417429
D27: 0.1 | E27: =_xlfn.NORM.INV($D27,$E$21,$G$16) -> 112.7867144 | F27: =_xlfn.NORM.INV($D27,$E$21,$G$17) -> 121.721227
D28: 0.5 | E28: =_xlfn.NORM.INV($D28,$E$21,$G$16) -> 143.1666667 | F28: =_xlfn.NORM.INV($D28,$E$21,$G$17) -> 143.1666667
A30: P99 vs P50 | E30: =E25/E28 -> 0.6148022458 | F30: =F25/F28 -> 0.7280859723
